{"text_format":"1","workbook":"xlsx","n_sheets":9,"sheets":["Input","OdA","Riepilogo_Spec_Tecniche","ReadMe","Offerte_e_Calcoli","Congelam_PC","Config_Dispo","Contatti_Fornitori","Ana"],"not_rendered":{"charts":0,"images":1,"macros":1,"external_links":1,"defined_names":31,"comments":0,"pivot_tables":0},"unopened":[],"bounds":{"document_bytes":16777216,"sheet_cells":100000,"rows_first":2000,"rows_last":500,"rows_between":2000,"halvings":0,"cell_chars":16384,"cell_head_chars":4096},"cells_cut":0,"cells_raw":0,"read":"whole","date_system":"1900"}

{"sheet":"Input","index":0,"n_rows":32,"n_cols":8,"rows_kept":32,"cut":false,"hidden":false,"merged":[[7,7,9,21]]}
[null,"Nome amministrazione (ad es: Comune di Milano) *",null,"Ad es., Comune di Milano"]
[]
[null,"Prodotto principale"]
[null,null,"PC portatile da"]
[null,null,"Quantitativo prodotti (>= 10)",null,null,null,null," - L'Amministrazione deve verificare che la versione del configuratore utilizzato è la stessa pubblicata su Acquistinrete PA."]
[null,null,null,null,null,null,null," - In presenza di versioni differenti deve essere necessariamente utilizzato il configuratore aggiornato pubblicato sul portale."]
[null,"Configurazione prescelta",null,null,null,null,null," - Una volta compilati i campi del foglio Input, aprire lo sheet \"ODA\", stampare e firmare il documento da allegare all'ordine."]
[null,null,"CPU","Media",null,null,null," - In caso di anomalie nella visualizzazione della graduatoria, si invita a contattare Consip tramite il Call Center degli Acquisti in Rete della P.A. al numero verde 800 753 783 oppure attraverso la funzione “Filo diretto con il programma” disponibile nell’area riservata del sito https://www.acquistinretepa.it/ accendibile con il profilo di punto istruttore o di punto ordinante."]
[null,null,"RAM (GB)",8]
[null,null,"SSD (GB)",512]
[null,null,"Sistema Operativo","Distribuzione Linux"]
[]
[null,"Specifiche secondarie"]
[null,null,"CPU con “Neural Processing Unit” / “Ai Engine”","No"]
[null,null,"Lettore biometrico di impronte digitali integrato","No"]
[null,null,"Webcam Integrata FHD IR","No"]
[null,null,"Lettore di micro-SD card integrato","No"]
[null,null,"Numero di porte USB 4 con velocità di trasferimento di almeno 40 Gbps",0]
[null,null,"Camera shutter","No"]
[null,null,"Possesso di certificazione TCO Generation 9 for notebooks","No"]
[]
[null,"Servizi opzionali"]
[null,null,"Estensione servizio di assistenza e manutenzione a 60 mesi","No"]
[null,null,"Integrazione con il servizio di Trouble Ticketing dell’Amministrazione","No"]
[]
[]
[null,"Prodotti opzionali"]
[null,null,"Docking station / port-replicator","No"]
[null,null,"Set tastiera e mouse wireless","No"]
[null,null,"Cuffie stereo e microfono","No"]
[null,null,"Zaino porta computer","No"]
[null,null,"Monitor multimediale da 27''","No"]

{"sheet":"OdA","index":1,"n_rows":25,"n_cols":6,"rows_kept":25,"cut":false,"hidden":true,"merged":[]}
[]
[null,null,"Nome amministrazione:",{"$f":"+Input!D1","v":"Ad es., Comune di Milano"}]
[]
[]
[null,null,"Fornitore aggiudicatario","Nome prodotto","Prezzo unitario","Importo complessivo ordine"]
[1,null,{"$f":"+Offerte_e_Calcoli!AS25","v":""},{"$f":"+Offerte_e_Calcoli!AT25","v":""},{"$f":"+Offerte_e_Calcoli!AR25","v":""},{"$f":"+E6*Input!D5","v":{"$error":"#VALUE!"}}]
[]
[null,null,"Riferimenti fornitore aggiudicatario"]
[null,null,{"$f":"+VLOOKUP($C$6,Contatti_Fornitori!$B:$E,2,FALSE)","v":{"$error":"#N/A"}}]
[null,null,{"$f":"+VLOOKUP($C$6,Contatti_Fornitori!$B:$E,3,FALSE)","v":{"$error":"#N/A"}}]
[]
[]
[]
[null,null,"Altri Fornitori NON aggiudicatari","Nome prodotto","Prezzo unitario"]
[null,null,{"$f":"+Offerte_e_Calcoli!AS26","v":""},{"$f":"+Offerte_e_Calcoli!AT26","v":""},{"$f":"+Offerte_e_Calcoli!AR26","v":""}]
[null,null,{"$f":"+Offerte_e_Calcoli!AS27","v":""},{"$f":"+Offerte_e_Calcoli!AT27","v":""},{"$f":"+Offerte_e_Calcoli!AR27","v":""}]
[null,null,{"$f":"+Offerte_e_Calcoli!AS28","v":""},{"$f":"+Offerte_e_Calcoli!AT28","v":""},{"$f":"+Offerte_e_Calcoli!AR28","v":""}]
[null,null,{"$f":"+Offerte_e_Calcoli!AS29","v":""},{"$f":"+Offerte_e_Calcoli!AT29","v":""},{"$f":"+Offerte_e_Calcoli!AR29","v":""}]
[null,null,{"$f":"+Offerte_e_Calcoli!AS30","v":""},{"$f":"+Offerte_e_Calcoli!AT30","v":""},{"$f":"+Offerte_e_Calcoli!AR30","v":""}]
[null,null,{"$f":"+Offerte_e_Calcoli!AS31","v":""},{"$f":"+Offerte_e_Calcoli!AT31","v":""},{"$f":"+Offerte_e_Calcoli!AR31","v":""}]
[null,null,{"$f":"+Offerte_e_Calcoli!AS32","v":""},{"$f":"+Offerte_e_Calcoli!AT32","v":""},{"$f":"+Offerte_e_Calcoli!AR32","v":""}]
[null,null,{"$f":"+Offerte_e_Calcoli!AS33","v":""},{"$f":"+Offerte_e_Calcoli!AT33","v":""},{"$f":"+Offerte_e_Calcoli!AR33","v":""}]
[null,null,{"$f":"+Offerte_e_Calcoli!AS34","v":""},{"$f":"+Offerte_e_Calcoli!AT34","v":""},{"$f":"+Offerte_e_Calcoli!AR34","v":""}]
[null,null,{"$f":"+Offerte_e_Calcoli!AS35","v":""},{"$f":"+Offerte_e_Calcoli!AT35","v":""},{"$f":"+Offerte_e_Calcoli!AR35","v":""}]
[null,null,{"$f":"+Offerte_e_Calcoli!AS36","v":""},{"$f":"+Offerte_e_Calcoli!AT36","v":""},{"$f":"+Offerte_e_Calcoli!AR36","v":""}]

{"sheet":"Riepilogo_Spec_Tecniche","index":2,"n_rows":23,"n_cols":55,"rows_kept":23,"cut":false,"hidden":true,"merged":[]}
["Operatore Economico","Bellucci S.p.A.","Bsistemi S.p.A.","Converge S.r.l.","Eurome S.r.l.","Hitech Distribuzione Informatica S.r.l.","ITD Solutions S.p.A.","Posdata S.r.l.","RTI Trust Technology Services  S.r.l.","Sistemi Hardware & Software S.p.A.","Team Memores Computer S.p.A.","Wetech’s S.p.A.","Zucchetti Informatica S.p.A.",null,null,null,null,"Operatore Economico",{"$f":"+Offerte_e_Calcoli!E1&Riepilogo_Spec_Tecniche!S4","v":"Bellucci S.p.A.13"},{"$f":"+Offerte_e_Calcoli!F1&Riepilogo_Spec_Tecniche!T4","v":"Bsistemi S.p.A.13"},{"$f":"+Offerte_e_Calcoli!G1&Riepilogo_Spec_Tecniche!U4","v":"Converge S.r.l.13"},{"$f":"+Offerte_e_Calcoli!H1&Riepilogo_Spec_Tecniche!V4","v":"Eurome S.r.l.13"},{"$f":"+Offerte_e_Calcoli!I1&Riepilogo_Spec_Tecniche!W4","v":"Hitech Distribuzione Informatica S.r.l."},{"$f":"+Offerte_e_Calcoli!J1&Riepilogo_Spec_Tecniche!X4","v":"ITD Solutions S.p.A.13"},{"$f":"+Offerte_e_Calcoli!K1&Riepilogo_Spec_Tecniche!Y4","v":"Posdata S.r.l.13"},{"$f":"+Offerte_e_Calcoli!L1&Riepilogo_Spec_Tecniche!Z4","v":"RTI Trust Technology Services  S.r.l.13"},{"$f":"+Offerte_e_Calcoli!M1&Riepilogo_Spec_Tecniche!AA4","v":"Sistemi Hardware & Software S.p.A.13"},{"$f":"+Offerte_e_Calcoli!N1&Riepilogo_Spec_Tecniche!AB4","v":"Team Memores Computer S.p.A.13"},{"$f":"+Offerte_e_Calcoli!O1&Riepilogo_Spec_Tecniche!AC4","v":"Wetech’s S.p.A.13"},{"$f":"+Offerte_e_Calcoli!P1&Riepilogo_Spec_Tecniche!AD4","v":"Zucchetti Informatica S.p.A.13"},{"$f":"+Offerte_e_Calcoli!Q1&Riepilogo_Spec_Tecniche!AE4","v":"Bellucci S.p.A.14"},{"$f":"+Offerte_e_Calcoli!R1&Riepilogo_Spec_Tecniche!AF4","v":"Bsistemi S.p.A.14"},{"$f":"+Offerte_e_Calcoli!S1&Riepilogo_Spec_Tecniche!AG4","v":"Converge S.r.l.14"},{"$f":"+Offerte_e_Calcoli!T1&Riepilogo_Spec_Tecniche!AH4","v":"Eurome S.r.l.14"},{"$f":"+Offerte_e_Calcoli!U1&Riepilogo_Spec_Tecniche!AI4","v":"Hitech Distribuzione Informatica S.r.l.14"},{"$f":"+Offerte_e_Calcoli!V1&Riepilogo_Spec_Tecniche!AJ4","v":"ITD Solutions S.p.A.14"},{"$f":"+Offerte_e_Calcoli!W1&Riepilogo_Spec_Tecniche!AK4","v":"Posdata S.r.l.14"},{"$f":"+Offerte_e_Calcoli!X1&Riepilogo_Spec_Tecniche!AL4","v":"RTI Trust Technology Services  S.r.l.14"},{"$f":"+Offerte_e_Calcoli!Y1&Riepilogo_Spec_Tecniche!AM4","v":"Sistemi Hardware & Software S.p.A.14"},{"$f":"+Offerte_e_Calcoli!Z1&Riepilogo_Spec_Tecniche!AN4","v":"Team Memores Computer S.p.A.14"},{"$f":"+Offerte_e_Calcoli!AA1&Riepilogo_Spec_Tecniche!AO4","v":"Wetech’s S.p.A.14"},{"$f":"+Offerte_e_Calcoli!AB1&Riepilogo_Spec_Tecniche!AP4","v":"Zucchetti Informatica S.p.A.14"},{"$f":"+Offerte_e_Calcoli!AC1&Riepilogo_Spec_Tecniche!AQ4","v":"Bellucci S.p.A.15"},{"$f":"+Offerte_e_Calcoli!AD1&Riepilogo_Spec_Tecniche!AR4","v":"Bsistemi S.p.A.15"},{"$f":"+Offerte_e_Calcoli!AE1&Riepilogo_Spec_Tecniche!AS4","v":"Converge S.r.l.15"},{"$f":"+Offerte_e_Calcoli!AF1&Riepilogo_Spec_Tecniche!AT4","v":"Eurome S.r.l.15"},{"$f":"+Offerte_e_Calcoli!AG1&Riepilogo_Spec_Tecniche!AU4","v":"Hitech Distribuzione Informatica S.r.l."},{"$f":"+Offerte_e_Calcoli!AH1&Riepilogo_Spec_Tecniche!AV4","v":"ITD Solutions S.p.A.15"},{"$f":"+Offerte_e_Calcoli!AI1&Riepilogo_Spec_Tecniche!AW4","v":"Posdata S.r.l.15"},{"$f":"+Offerte_e_Calcoli!AJ1&Riepilogo_Spec_Tecniche!AX4","v":"RTI Trust Technology Services  S.r.l.15"},{"$f":"+Offerte_e_Calcoli!AK1&Riepilogo_Spec_Tecniche!AY4","v":"Sistemi Hardware & Software S.p.A.15"},{"$f":"+Offerte_e_Calcoli!AL1&Riepilogo_Spec_Tecniche!AZ4","v":"Team Memores Computer S.p.A.15"},{"$f":"+Offerte_e_Calcoli!AM1&Riepilogo_Spec_Tecniche!BA4","v":"Wetech’s S.p.A.15"},{"$f":"+Offerte_e_Calcoli!AN1&Riepilogo_Spec_Tecniche!BB4","v":"Zucchetti Informatica S.p.A.15"}]
["Prodotto principale",null,null,null,null,null,null,null,null,null,null,null,null,null,null,null,null,"Prodotto principale"]
["Marca e modello",{"$f":"IFERROR(HLOOKUP(B$1&B$4,$S$1:$BB$23,ROWS(B$1:B3),FALSE),\"\")","v":""},{"$f":"IFERROR(HLOOKUP(C$1&C$4,$S$1:$BB$23,ROWS(C$1:C3),FALSE),\"\")","v":""},{"$f":"IFERROR(HLOOKUP(D$1&D$4,$S$1:$BB$23,ROWS(D$1:D3),FALSE),\"\")","v":""},{"$f":"IFERROR(HLOOKUP(E$1&E$4,$S$1:$BB$23,ROWS(E$1:E3),FALSE),\"\")","v":""},{"$f":"IFERROR(HLOOKUP(F$1&F$4,$S$1:$BB$23,ROWS(F$1:F3),FALSE),\"\")","v":""},{"$f":"IFERROR(HLOOKUP(G$1&G$4,$S$1:$BB$23,ROWS(G$1:G3),FALSE),\"\")","v":""},{"$f":"IFERROR(HLOOKUP(H$1&H$4,$S$1:$BB$23,ROWS(H$1:H3),FALSE),\"\")","v":""},{"$f":"IFERROR(HLOOKUP(I$1&I$4,$S$1:$BB$23,ROWS(I$1:I3),FALSE),\"\")","v":""},{"$f":"IFERROR(HLOOKUP(J$1&J$4,$S$1:$BB$23,ROWS(J$1:J3),FALSE),\"\")","v":""},{"$f":"IFERROR(HLOOKUP(K$1&K$4,$S$1:$BB$23,ROWS(K$1:K3),FALSE),\"\")","v":""},{"$f":"IFERROR(HLOOKUP(L$1&L$4,$S$1:$BB$23,ROWS(L$1:L3),FALSE),\"\")","v":""},{"$f":"IFERROR(HLOOKUP(M$1&M$4,$S$1:$BB$23,ROWS(M$1:M3),FALSE),\"\")","v":""},null,null,null,null,"Marca e modello","HP EliteBook 630 G11","Dell Pro 13 Plus","LENOVO ThinkPad L13 Gen 6","Dell Pro 13 Plus",null,"LENOVO THINKPAD L13 Gen 6","Lenovo ThinkPad L13 Gen 6","HP EliteBook 630 G11","HP Elitebook 630 G11","Lenovo ThinkPad L13 Gen 6","HP EliteBook 630 G11","HP EliteBook 630 G11","HP Probook 440 G11","Dell Pro 14 Plus","LENOVO ThinkBook 14 G7 ARP","Dell Pro 14 Plus","Acer TM P214","LENOVO ThinkBook 14 G8 IAL","Lenovo ThinkPad L14 Gen 6","HP EliteBook 640 G11","HP ELITEBOOK 6 G1a 14","Lenovo ThinkPad L14 Gen 6","HP ProBook 440 G11","HP ProBook 445 G11","HP Probook 465 G11","Dell Pro 16 Plus","LENOVO ThinkBook 16 G8 IAL","Dell Pro 16 Plus",null,"LENOVO ThinkBook 16 G7 ARP","Lenovo ThinkPad L16 Gen 2","HP EliteBook 660 G11"," HP Elitebook 6 G1a 16","Lenovo ThinkPad L16 Gen 2","HP ProBook 460 G11","HP ProBook 460 G11"]
["Schermo",{"$f":"+Offerte_e_Calcoli!$C$5","v":0},{"$f":"+Offerte_e_Calcoli!$C$5","v":0},{"$f":"+Offerte_e_Calcoli!$C$5","v":0},{"$f":"+Offerte_e_Calcoli!$C$5","v":0},{"$f":"+Offerte_e_Calcoli!$C$5","v":0},{"$f":"+Offerte_e_Calcoli!$C$5","v":0},{"$f":"+Offerte_e_Calcoli!$C$5","v":0},{"$f":"+Offerte_e_Calcoli!$C$5","v":0},{"$f":"+Offerte_e_Calcoli!$C$5","v":0},{"$f":"+Offerte_e_Calcoli!$C$5","v":0},{"$f":"+Offerte_e_Calcoli!$C$5","v":0},{"$f":"+Offerte_e_Calcoli!$C$5","v":0},null,null,null,null,"Schermo",13,13,13,13,null,13,13,13,13,13,13,13,14,14,14,14,14,14,14,14,14,14,14,14,15,15,15,15,null,15,15,15,15,15,15,15]
["Specifiche tecniche primarie",null,null,null,null,null,null,null,null,null,null,null,null,null,null,null,null,"Specifiche tecniche primarie"]
["Processore",{"$f":"+Input!$D$8","v":"Media"},{"$f":"+Input!$D$8","v":"Media"},{"$f":"+Input!$D$8","v":"Media"},{"$f":"+Input!$D$8","v":"Media"},{"$f":"+Input!$D$8","v":"Media"},{"$f":"+Input!$D$8","v":"Media"},{"$f":"+Input!$D$8","v":"Media"},{"$f":"+Input!$D$8","v":"Media"},{"$f":"+Input!$D$8","v":"Media"},{"$f":"+Input!$D$8","v":"Media"},{"$f":"+Input!$D$8","v":"Media"},{"$f":"+Input!$D$8","v":"Media"},null,null,null,null,"Processore","Intel® Core™ Ultra 5 125U","Intel Core Ultra 5 225U","Intel Core Ultra 5 225U","Intel Core Ultra 5 225U",null,"Intel Core Ultra 5 Processor 225U","Intel Core Ultra 5 225U","Intel® CoreTM Ultra 5 125U","Intel® Core™ Ultra 5 125U","Intel Core Ultra 5 225U","Intel® Core™ Ultra 5 125U","Intel® Core™ Ultra 5 125U","Intel® Core™ Ultra 5 125U","Intel Core Ultra 5 225U","AMD Ryzen 5 7535HS","Intel Core Ultra 5 225U","Intel Core i5-1334U","Intel Core Ultra 5 Processor 225U","Intel Core Ultra 5 225U","Intel® CoreTM Ultra 5 125U","AMD Ryzen™ 5 220","Intel Core Ultra 5 225U","Intel® Core™ Ultra 5 125U","AMD Ryzen 5 7535U","AMD Ryzen 5 7535U","Intel Core Ultra 5 225U","Intel Core Ultra 5 225U","Intel Core Ultra 5 225U",null,"AMD Ryzen 5 7535HS","Intel Core Ultra 5 225U","Intel® CoreTM Ultra 5 125U","AMD Ryzen™ 5 220","Intel Core Ultra 5 225U","Intel® Core™ Ultra 5 125U","Intel® Core™ Ultra 5 125U"]
["CPU con Neural Processing Unit",{"$f":"IFERROR(HLOOKUP(B$1&B$4,$S$1:$BB$23,ROWS(B$1:B7),FALSE),\"\")","v":""},{"$f":"IFERROR(HLOOKUP(C$1&C$4,$S$1:$BB$23,ROWS(C$1:C7),FALSE),\"\")","v":""},{"$f":"IFERROR(HLOOKUP(D$1&D$4,$S$1:$BB$23,ROWS(D$1:D7),FALSE),\"\")","v":""},{"$f":"IFERROR(HLOOKUP(E$1&E$4,$S$1:$BB$23,ROWS(E$1:E7),FALSE),\"\")","v":""},{"$f":"IFERROR(HLOOKUP(F$1&F$4,$S$1:$BB$23,ROWS(F$1:F7),FALSE),\"\")","v":""},{"$f":"IFERROR(HLOOKUP(G$1&G$4,$S$1:$BB$23,ROWS(G$1:G7),FALSE),\"\")","v":""},{"$f":"IFERROR(HLOOKUP(H$1&H$4,$S$1:$BB$23,ROWS(H$1:H7),FALSE),\"\")","v":""},{"$f":"IFERROR(HLOOKUP(I$1&I$4,$S$1:$BB$23,ROWS(I$1:I7),FALSE),\"\")","v":""},{"$f":"IFERROR(HLOOKUP(J$1&J$4,$S$1:$BB$23,ROWS(J$1:J7),FALSE),\"\")","v":""},{"$f":"IFERROR(HLOOKUP(K$1&K$4,$S$1:$BB$23,ROWS(K$1:K7),FALSE),\"\")","v":""},{"$f":"IFERROR(HLOOKUP(L$1&L$4,$S$1:$BB$23,ROWS(L$1:L7),FALSE),\"\")","v":""},{"$f":"IFERROR(HLOOKUP(M$1&M$4,$S$1:$BB$23,ROWS(M$1:M7),FALSE),\"\")","v":""},null,null,null,null,"CPU con Neural Processing Unit","Sì","Sì","Sì","Sì",null,"Sì","Sì","Sì","Sì","Sì","Sì","Sì","Sì","Sì","No","Sì","No","Sì","Sì","Sì","No","Sì","Sì","No","No","Sì","Sì","Sì",null,"No","Sì","Sì","No","Sì","Sì","Sì"]
["Lettore biometrico integrato",{"$f":"IFERROR(HLOOKUP(B$1&B$4,$S$1:$BB$23,ROWS(B$1:B8),FALSE),\"\")","v":""},{"$f":"IFERROR(HLOOKUP(C$1&C$4,$S$1:$BB$23,ROWS(C$1:C8),FALSE),\"\")","v":""},{"$f":"IFERROR(HLOOKUP(D$1&D$4,$S$1:$BB$23,ROWS(D$1:D8),FALSE),\"\")","v":""},{"$f":"IFERROR(HLOOKUP(E$1&E$4,$S$1:$BB$23,ROWS(E$1:E8),FALSE),\"\")","v":""},{"$f":"IFERROR(HLOOKUP(F$1&F$4,$S$1:$BB$23,ROWS(F$1:F8),FALSE),\"\")","v":""},{"$f":"IFERROR(HLOOKUP(G$1&G$4,$S$1:$BB$23,ROWS(G$1:G8),FALSE),\"\")","v":""},{"$f":"IFERROR(HLOOKUP(H$1&H$4,$S$1:$BB$23,ROWS(H$1:H8),FALSE),\"\")","v":""},{"$f":"IFERROR(HLOOKUP(I$1&I$4,$S$1:$BB$23,ROWS(I$1:I8),FALSE),\"\")","v":""},{"$f":"IFERROR(HLOOKUP(J$1&J$4,$S$1:$BB$23,ROWS(J$1:J8),FALSE),\"\")","v":""},{"$f":"IFERROR(HLOOKUP(K$1&K$4,$S$1:$BB$23,ROWS(K$1:K8),FALSE),\"\")","v":""},{"$f":"IFERROR(HLOOKUP(L$1&L$4,$S$1:$BB$23,ROWS(L$1:L8),FALSE),\"\")","v":""},{"$f":"IFERROR(HLOOKUP(M$1&M$4,$S$1:$BB$23,ROWS(M$1:M8),FALSE),\"\")","v":""},null,null,null,null,"Lettore biometrico integrato","Sì","Sì","Sì","Sì",null,"Sì","Sì","Sì","Sì","Sì","Sì","Sì","Sì","Sì","Sì","Sì","Sì","Sì","Sì","Sì","Sì","Sì","Sì","Sì","Sì","Sì","Sì","Sì",null,"Sì","Sì","Sì","Sì","Sì","Sì","Sì"]
["Webcam integrata FHD IR",{"$f":"IFERROR(HLOOKUP(B$1&B$4,$S$1:$BB$23,ROWS(B$1:B9),FALSE),\"\")","v":""},{"$f":"IFERROR(HLOOKUP(C$1&C$4,$S$1:$BB$23,ROWS(C$1:C9),FALSE),\"\")","v":""},{"$f":"IFERROR(HLOOKUP(D$1&D$4,$S$1:$BB$23,ROWS(D$1:D9),FALSE),\"\")","v":""},{"$f":"IFERROR(HLOOKUP(E$1&E$4,$S$1:$BB$23,ROWS(E$1:E9),FALSE),\"\")","v":""},{"$f":"IFERROR(HLOOKUP(F$1&F$4,$S$1:$BB$23,ROWS(F$1:F9),FALSE),\"\")","v":""},{"$f":"IFERROR(HLOOKUP(G$1&G$4,$S$1:$BB$23,ROWS(G$1:G9),FALSE),\"\")","v":""},{"$f":"IFERROR(HLOOKUP(H$1&H$4,$S$1:$BB$23,ROWS(H$1:H9),FALSE),\"\")","v":""},{"$f":"IFERROR(HLOOKUP(I$1&I$4,$S$1:$BB$23,ROWS(I$1:I9),FALSE),\"\")","v":""},{"$f":"IFERROR(HLOOKUP(J$1&J$4,$S$1:$BB$23,ROWS(J$1:J9),FALSE),\"\")","v":""},{"$f":"IFERROR(HLOOKUP(K$1&K$4,$S$1:$BB$23,ROWS(K$1:K9),FALSE),\"\")","v":""},{"$f":"IFERROR(HLOOKUP(L$1&L$4,$S$1:$BB$23,ROWS(L$1:L9),FALSE),\"\")","v":""},{"$f":"IFERROR(HLOOKUP(M$1&M$4,$S$1:$BB$23,ROWS(M$1:M9),FALSE),\"\")","v":""},null,null,null,null,"Webcam integrata FHD IR","Sì","Sì","Sì","Sì",null,"Sì","Sì","Sì","Sì","Sì","Sì","Sì","Sì","Sì","Sì","Sì","Sì","Sì","Sì","Sì","Sì","Sì","Sì","Sì","Sì","Sì","Sì","Sì",null,"Sì","Sì","Sì","Sì","Sì","Sì","Sì"]
["Lettore di schede (Micro)SD",{"$f":"IFERROR(HLOOKUP(B$1&B$4,$S$1:$BB$23,ROWS(B$1:B10),FALSE),\"\")","v":""},{"$f":"IFERROR(HLOOKUP(C$1&C$4,$S$1:$BB$23,ROWS(C$1:C10),FALSE),\"\")","v":""},{"$f":"IFERROR(HLOOKUP(D$1&D$4,$S$1:$BB$23,ROWS(D$1:D10),FALSE),\"\")","v":""},{"$f":"IFERROR(HLOOKUP(E$1&E$4,$S$1:$BB$23,ROWS(E$1:E10),FALSE),\"\")","v":""},{"$f":"IFERROR(HLOOKUP(F$1&F$4,$S$1:$BB$23,ROWS(F$1:F10),FALSE),\"\")","v":""},{"$f":"IFERROR(HLOOKUP(G$1&G$4,$S$1:$BB$23,ROWS(G$1:G10),FALSE),\"\")","v":""},{"$f":"IFERROR(HLOOKUP(H$1&H$4,$S$1:$BB$23,ROWS(H$1:H10),FALSE),\"\")","v":""},{"$f":"IFERROR(HLOOKUP(I$1&I$4,$S$1:$BB$23,ROWS(I$1:I10),FALSE),\"\")","v":""},{"$f":"IFERROR(HLOOKUP(J$1&J$4,$S$1:$BB$23,ROWS(J$1:J10),FALSE),\"\")","v":""},{"$f":"IFERROR(HLOOKUP(K$1&K$4,$S$1:$BB$23,ROWS(K$1:K10),FALSE),\"\")","v":""},{"$f":"IFERROR(HLOOKUP(L$1&L$4,$S$1:$BB$23,ROWS(L$1:L10),FALSE),\"\")","v":""},{"$f":"IFERROR(HLOOKUP(M$1&M$4,$S$1:$BB$23,ROWS(M$1:M10),FALSE),\"\")","v":""},null,null,null,null,"Lettore di schede (Micro)SD","No","No","No","No",null,"No","No","No","No","No","No","No","No","No","Sì","No","Sì","Sì","No","No","No","No","No","No","No","Sì","Sì","Sì",null,"Sì","No","No","No","No","No","No"]
["Numero totale di porte USB",{"$f":"IFERROR(HLOOKUP(B$1&B$4,$S$1:$BB$23,ROWS(B$1:B11),FALSE),\"\")","v":""},{"$f":"IFERROR(HLOOKUP(C$1&C$4,$S$1:$BB$23,ROWS(C$1:C11),FALSE),\"\")","v":""},{"$f":"IFERROR(HLOOKUP(D$1&D$4,$S$1:$BB$23,ROWS(D$1:D11),FALSE),\"\")","v":""},{"$f":"IFERROR(HLOOKUP(E$1&E$4,$S$1:$BB$23,ROWS(E$1:E11),FALSE),\"\")","v":""},{"$f":"IFERROR(HLOOKUP(F$1&F$4,$S$1:$BB$23,ROWS(F$1:F11),FALSE),\"\")","v":""},{"$f":"IFERROR(HLOOKUP(G$1&G$4,$S$1:$BB$23,ROWS(G$1:G11),FALSE),\"\")","v":""},{"$f":"IFERROR(HLOOKUP(H$1&H$4,$S$1:$BB$23,ROWS(H$1:H11),FALSE),\"\")","v":""},{"$f":"IFERROR(HLOOKUP(I$1&I$4,$S$1:$BB$23,ROWS(I$1:I11),FALSE),\"\")","v":""},{"$f":"IFERROR(HLOOKUP(J$1&J$4,$S$1:$BB$23,ROWS(J$1:J11),FALSE),\"\")","v":""},{"$f":"IFERROR(HLOOKUP(K$1&K$4,$S$1:$BB$23,ROWS(K$1:K11),FALSE),\"\")","v":""},{"$f":"IFERROR(HLOOKUP(L$1&L$4,$S$1:$BB$23,ROWS(L$1:L11),FALSE),\"\")","v":""},{"$f":"IFERROR(HLOOKUP(M$1&M$4,$S$1:$BB$23,ROWS(M$1:M11),FALSE),\"\")","v":""},null,null,null,null,"Numero totale di porte USB",2,2,2,2,null,2,2,2,2,2,2,2,0,2,1,2,2,1,2,2,2,2,0,0,0,2,1,2,null,1,2,2,2,2,0,0]
["Camera shutter",{"$f":"IFERROR(HLOOKUP(B$1&B$4,$S$1:$BB$23,ROWS(B$1:B12),FALSE),\"\")","v":""},{"$f":"IFERROR(HLOOKUP(C$1&C$4,$S$1:$BB$23,ROWS(C$1:C12),FALSE),\"\")","v":""},{"$f":"IFERROR(HLOOKUP(D$1&D$4,$S$1:$BB$23,ROWS(D$1:D12),FALSE),\"\")","v":""},{"$f":"IFERROR(HLOOKUP(E$1&E$4,$S$1:$BB$23,ROWS(E$1:E12),FALSE),\"\")","v":""},{"$f":"IFERROR(HLOOKUP(F$1&F$4,$S$1:$BB$23,ROWS(F$1:F12),FALSE),\"\")","v":""},{"$f":"IFERROR(HLOOKUP(G$1&G$4,$S$1:$BB$23,ROWS(G$1:G12),FALSE),\"\")","v":""},{"$f":"IFERROR(HLOOKUP(H$1&H$4,$S$1:$BB$23,ROWS(H$1:H12),FALSE),\"\")","v":""},{"$f":"IFERROR(HLOOKUP(I$1&I$4,$S$1:$BB$23,ROWS(I$1:I12),FALSE),\"\")","v":""},{"$f":"IFERROR(HLOOKUP(J$1&J$4,$S$1:$BB$23,ROWS(J$1:J12),FALSE),\"\")","v":""},{"$f":"IFERROR(HLOOKUP(K$1&K$4,$S$1:$BB$23,ROWS(K$1:K12),FALSE),\"\")","v":""},{"$f":"IFERROR(HLOOKUP(L$1&L$4,$S$1:$BB$23,ROWS(L$1:L12),FALSE),\"\")","v":""},{"$f":"IFERROR(HLOOKUP(M$1&M$4,$S$1:$BB$23,ROWS(M$1:M12),FALSE),\"\")","v":""},null,null,null,null,"Camera shutter","Sì","Sì","Sì","Sì",null,"Sì","Sì","Sì","Sì","Sì","Sì","Sì","Sì","Sì","Sì","Sì","Sì","Sì","Sì","Sì","Sì","Sì","Sì","Sì","Sì","Sì","Sì","Sì",null,"Sì","Sì","Sì","Sì","Sì","Sì","Sì"]
["Certificazione TCO",{"$f":"IFERROR(HLOOKUP(B$1&B$4,$S$1:$BB$23,ROWS(B$1:B13),FALSE),\"\")","v":""},{"$f":"IFERROR(HLOOKUP(C$1&C$4,$S$1:$BB$23,ROWS(C$1:C13),FALSE),\"\")","v":""},{"$f":"IFERROR(HLOOKUP(D$1&D$4,$S$1:$BB$23,ROWS(D$1:D13),FALSE),\"\")","v":""},{"$f":"IFERROR(HLOOKUP(E$1&E$4,$S$1:$BB$23,ROWS(E$1:E13),FALSE),\"\")","v":""},{"$f":"IFERROR(HLOOKUP(F$1&F$4,$S$1:$BB$23,ROWS(F$1:F13),FALSE),\"\")","v":""},{"$f":"IFERROR(HLOOKUP(G$1&G$4,$S$1:$BB$23,ROWS(G$1:G13),FALSE),\"\")","v":""},{"$f":"IFERROR(HLOOKUP(H$1&H$4,$S$1:$BB$23,ROWS(H$1:H13),FALSE),\"\")","v":""},{"$f":"IFERROR(HLOOKUP(I$1&I$4,$S$1:$BB$23,ROWS(I$1:I13),FALSE),\"\")","v":""},{"$f":"IFERROR(HLOOKUP(J$1&J$4,$S$1:$BB$23,ROWS(J$1:J13),FALSE),\"\")","v":""},{"$f":"IFERROR(HLOOKUP(K$1&K$4,$S$1:$BB$23,ROWS(K$1:K13),FALSE),\"\")","v":""},{"$f":"IFERROR(HLOOKUP(L$1&L$4,$S$1:$BB$23,ROWS(L$1:L13),FALSE),\"\")","v":""},{"$f":"IFERROR(HLOOKUP(M$1&M$4,$S$1:$BB$23,ROWS(M$1:M13),FALSE),\"\")","v":""},null,null,null,null,"Certificazione TCO","Sì","Sì","Sì","Sì",null,"Sì","Sì","Sì","Sì","Sì","Sì","Sì","Sì","Sì","Sì","Sì","Sì","Sì","Sì","Sì","Sì","Sì","Sì","Sì","Sì","Sì","Sì","Sì",null,"Sì","Sì","Sì","Sì","Sì","Sì","Sì"]
["Integrazione con il servizio di Trouble Ticketing",{"$f":"IFERROR(HLOOKUP(B$1&B$4,$S$1:$BB$23,ROWS(B$1:B14),FALSE),\"\")","v":""},{"$f":"IFERROR(HLOOKUP(C$1&C$4,$S$1:$BB$23,ROWS(C$1:C14),FALSE),\"\")","v":""},{"$f":"IFERROR(HLOOKUP(D$1&D$4,$S$1:$BB$23,ROWS(D$1:D14),FALSE),\"\")","v":""},{"$f":"IFERROR(HLOOKUP(E$1&E$4,$S$1:$BB$23,ROWS(E$1:E14),FALSE),\"\")","v":""},{"$f":"IFERROR(HLOOKUP(F$1&F$4,$S$1:$BB$23,ROWS(F$1:F14),FALSE),\"\")","v":""},{"$f":"IFERROR(HLOOKUP(G$1&G$4,$S$1:$BB$23,ROWS(G$1:G14),FALSE),\"\")","v":""},{"$f":"IFERROR(HLOOKUP(H$1&H$4,$S$1:$BB$23,ROWS(H$1:H14),FALSE),\"\")","v":""},{"$f":"IFERROR(HLOOKUP(I$1&I$4,$S$1:$BB$23,ROWS(I$1:I14),FALSE),\"\")","v":""},{"$f":"IFERROR(HLOOKUP(J$1&J$4,$S$1:$BB$23,ROWS(J$1:J14),FALSE),\"\")","v":""},{"$f":"IFERROR(HLOOKUP(K$1&K$4,$S$1:$BB$23,ROWS(K$1:K14),FALSE),\"\")","v":""},{"$f":"IFERROR(HLOOKUP(L$1&L$4,$S$1:$BB$23,ROWS(L$1:L14),FALSE),\"\")","v":""},{"$f":"IFERROR(HLOOKUP(M$1&M$4,$S$1:$BB$23,ROWS(M$1:M14),FALSE),\"\")","v":""},null,null,null,null,"Integrazione con il servizio di Trouble Ticketing","Sì","Sì","Sì","Sì",null,"Sì","Sì","Sì","Sì","Sì","Sì","No","Sì","Sì","Sì","Sì","Sì","Sì","Sì","Sì","Sì","Sì","Sì","No","Sì","Sì","Sì","Sì",null,"Sì","Sì","Sì","Sì","Sì","Sì","No"]
["Opzioni di prodotto standard",null,null,null,null,null,null,null,null,null,null,null,null,null,null,null,null,"Opzioni di prodotto standard"]
["Docking station / Port replicator",{"$f":"IFERROR(HLOOKUP(B$1&B$4,$S$1:$BB$23,ROWS(B$1:B16),FALSE),\"\")","v":""},{"$f":"IFERROR(HLOOKUP(C$1&C$4,$S$1:$BB$23,ROWS(C$1:C16),FALSE),\"\")","v":""},{"$f":"IFERROR(HLOOKUP(D$1&D$4,$S$1:$BB$23,ROWS(D$1:D16),FALSE),\"\")","v":""},{"$f":"IFERROR(HLOOKUP(E$1&E$4,$S$1:$BB$23,ROWS(E$1:E16),FALSE),\"\")","v":""},{"$f":"IFERROR(HLOOKUP(F$1&F$4,$S$1:$BB$23,ROWS(F$1:F16),FALSE),\"\")","v":""},{"$f":"IFERROR(HLOOKUP(G$1&G$4,$S$1:$BB$23,ROWS(G$1:G16),FALSE),\"\")","v":""},{"$f":"IFERROR(HLOOKUP(H$1&H$4,$S$1:$BB$23,ROWS(H$1:H16),FALSE),\"\")","v":""},{"$f":"IFERROR(HLOOKUP(I$1&I$4,$S$1:$BB$23,ROWS(I$1:I16),FALSE),\"\")","v":""},{"$f":"IFERROR(HLOOKUP(J$1&J$4,$S$1:$BB$23,ROWS(J$1:J16),FALSE),\"\")","v":""},{"$f":"IFERROR(HLOOKUP(K$1&K$4,$S$1:$BB$23,ROWS(K$1:K16),FALSE),\"\")","v":""},{"$f":"IFERROR(HLOOKUP(L$1&L$4,$S$1:$BB$23,ROWS(L$1:L16),FALSE),\"\")","v":""},{"$f":"IFERROR(HLOOKUP(M$1&M$4,$S$1:$BB$23,ROWS(M$1:M16),FALSE),\"\")","v":""},null,null,null,null,"Docking station / Port replicator","HP Dock USB-C G5","DELL DA310","LENOVO USB-C Dual Display Travel Dock","DELL DA310",null,"Lenovo USB-C Dual Display Travel Dock","Lenovo USB-C Dual Display Travel Dock","HP USB-C Dock G5","HP USB-C Dock G5","Lenovo USB-C Dual Display Travel Dock","HP USB-C Dock G5","HP USB-C Dock G5","HP Dock USB-C G5","DELL DA310","LENOVO USB-C Dual Display Travel Dock","DELL DA310","ACER 13-in-1 Type-C Minidock","Lenovo USB-C Dual Display Travel Dock","Lenovo USB-C Dual Display Travel Dock","HP USB-C Dock G5","HP USB-C Dock G5","Lenovo USB-C Dual Display Travel Dock","HP USB-C Dock G5","HP USB-C Dock G5","Sanxi Co. CK-00290D","DELL DA310","LENOVO USB-C Dual Display Travel Dock","DELL DA310",null,"Lenovo USB-C Dual Display Travel Dock","Lenovo USB-C Dual Display Travel Dock","HP USB-C Dock G5","HP USB-C Dock G5","Lenovo USB-C Dual Display Travel Dock","HP USB-C Dock G5","HP USB-C Dock G5",{"$f":"+Input!D28","v":"No"}]
["Set mouse e tastiera wireless",{"$f":"IFERROR(HLOOKUP(B$1&B$4,$S$1:$BB$23,ROWS(B$1:B17),FALSE),\"\")","v":""},{"$f":"IFERROR(HLOOKUP(C$1&C$4,$S$1:$BB$23,ROWS(C$1:C17),FALSE),\"\")","v":""},{"$f":"IFERROR(HLOOKUP(D$1&D$4,$S$1:$BB$23,ROWS(D$1:D17),FALSE),\"\")","v":""},{"$f":"IFERROR(HLOOKUP(E$1&E$4,$S$1:$BB$23,ROWS(E$1:E17),FALSE),\"\")","v":""},{"$f":"IFERROR(HLOOKUP(F$1&F$4,$S$1:$BB$23,ROWS(F$1:F17),FALSE),\"\")","v":""},{"$f":"IFERROR(HLOOKUP(G$1&G$4,$S$1:$BB$23,ROWS(G$1:G17),FALSE),\"\")","v":""},{"$f":"IFERROR(HLOOKUP(H$1&H$4,$S$1:$BB$23,ROWS(H$1:H17),FALSE),\"\")","v":""},{"$f":"IFERROR(HLOOKUP(I$1&I$4,$S$1:$BB$23,ROWS(I$1:I17),FALSE),\"\")","v":""},{"$f":"IFERROR(HLOOKUP(J$1&J$4,$S$1:$BB$23,ROWS(J$1:J17),FALSE),\"\")","v":""},{"$f":"IFERROR(HLOOKUP(K$1&K$4,$S$1:$BB$23,ROWS(K$1:K17),FALSE),\"\")","v":""},{"$f":"IFERROR(HLOOKUP(L$1&L$4,$S$1:$BB$23,ROWS(L$1:L17),FALSE),\"\")","v":""},{"$f":"IFERROR(HLOOKUP(M$1&M$4,$S$1:$BB$23,ROWS(M$1:M17),FALSE),\"\")","v":""},null,null,null,null,"Set mouse e tastiera wireless","HP 235 Wireless Mouse and Keyboard","DELL KM5221W","Lenovo Essential Wireless Gen2","DELL KM5221W",null,"LENOVO Essential Wireless Combo","Lenovo Essential Wireless Gen2","HP WIRELESS 235 ","HP 235 Wireless Mouse and Keyboard Combo","Lenovo Essential Wireless Combo Keyboard & Mouse Gen2","HP 235 Wireless Mouse and Keyboard Combo","HP 235 Wireless Mouse and Keyboard Combo","HP 235 Wireless Mouse and Keyboard","DELL KM5221W","Lenovo Essential Wireless Gen2","DELL KM5221W","ACER Combo 100","LENOVO Essential Wireless Combo","Lenovo Essential Wireless Gen2","HP WIRELESS 235 ","HP 235 Wireless Mouse and Keyboard Combo","Lenovo Essential Wireless Gen2","HP 235 Wireless Mouse and Keyboard Combo","HP 235 Wireless Mouse and Keyboard Combo","HP 235 Wireless Mouse and Keyboard","DELL KM5221W","Lenovo Essential Wireless Gen2","DELL KM5221W",null,"LENOVO Essential Wireless Combo","Lenovo Essential Wireless Gen2","HP WIRELESS 235 ","HP 235 Wireless Mouse and Keyboard Combo","Lenovo Essential Wireless Gen2","HP 235 Wireless Mouse and Keyboard Combo","HP 235 Wireless Mouse and Keyboard Combo",{"$f":"+Input!D29","v":"No"}]
["Prodotti opzionali facoltativi",null,null,null,null,null,null,null,null,null,null,null,null,null,null,null,null,"Prodotti opzionali facoltativi"]
["Cuffie stereo e microfono",{"$f":"IFERROR(HLOOKUP(B$1&B$4,$S$1:$BB$23,ROWS(B$1:B19),FALSE),\"\")","v":""},{"$f":"IFERROR(HLOOKUP(C$1&C$4,$S$1:$BB$23,ROWS(C$1:C19),FALSE),\"\")","v":""},{"$f":"IFERROR(HLOOKUP(D$1&D$4,$S$1:$BB$23,ROWS(D$1:D19),FALSE),\"\")","v":""},{"$f":"IFERROR(HLOOKUP(E$1&E$4,$S$1:$BB$23,ROWS(E$1:E19),FALSE),\"\")","v":""},{"$f":"IFERROR(HLOOKUP(F$1&F$4,$S$1:$BB$23,ROWS(F$1:F19),FALSE),\"\")","v":""},{"$f":"IFERROR(HLOOKUP(G$1&G$4,$S$1:$BB$23,ROWS(G$1:G19),FALSE),\"\")","v":""},{"$f":"IFERROR(HLOOKUP(H$1&H$4,$S$1:$BB$23,ROWS(H$1:H19),FALSE),\"\")","v":""},{"$f":"IFERROR(HLOOKUP(I$1&I$4,$S$1:$BB$23,ROWS(I$1:I19),FALSE),\"\")","v":""},{"$f":"IFERROR(HLOOKUP(J$1&J$4,$S$1:$BB$23,ROWS(J$1:J19),FALSE),\"\")","v":""},{"$f":"IFERROR(HLOOKUP(K$1&K$4,$S$1:$BB$23,ROWS(K$1:K19),FALSE),\"\")","v":""},{"$f":"IFERROR(HLOOKUP(L$1&L$4,$S$1:$BB$23,ROWS(L$1:L19),FALSE),\"\")","v":""},{"$f":"IFERROR(HLOOKUP(M$1&M$4,$S$1:$BB$23,ROWS(M$1:M19),FALSE),\"\")","v":""},null,null,null,null,"Cuffie stereo e microfono","HP Poly Blackwire 3320","DELL WH3024","JABRA EVOLVE 20","DELL WH3024",null,"Lenovo Wired VoIP Headset","Lenovo Wired VoIP Headset","HP Poly Blackwire 3320","Cuffia Blackwire Poly 3220 M","Lenovo Wired Voip Headset","Poly Blackwire 3320","HP Poly Blackwire 3320 Stereo","HP Poly Blackwire 3320","DELL WH3024","JABRA EVOLVE 20","DELL WH3024","LOGITECH H570e","Lenovo Wired VoIP Headset","Lenovo Wired VoIP Headset","HP Poly Blackwire 3320","Cuffia Blackwire Poly 3220 M","Lenovo Wired Voip Headset","Poly Blackwire 3320","HP Poly Blackwire 3320 Stereo","HP Poly Blackwire 3320","DELL WH3024","JABRA EVOLVE 20","DELL WH3024",null,"Lenovo Wired VoIP Headset","Lenovo Wired VoIP Headset","HP Poly Blackwire 3320","Cuffia Blackwire Poly 3220 M","Lenovo Wired Voip Headset","Poly Blackwire 3320","HP Poly Blackwire 3320 Stereo",{"$f":"+Input!D30","v":"No"}]
["Zaino porta computer",{"$f":"IFERROR(HLOOKUP(B$1&B$4,$S$1:$BB$23,ROWS(B$1:B20),FALSE),\"\")","v":""},{"$f":"IFERROR(HLOOKUP(C$1&C$4,$S$1:$BB$23,ROWS(C$1:C20),FALSE),\"\")","v":""},{"$f":"IFERROR(HLOOKUP(D$1&D$4,$S$1:$BB$23,ROWS(D$1:D20),FALSE),\"\")","v":""},{"$f":"IFERROR(HLOOKUP(E$1&E$4,$S$1:$BB$23,ROWS(E$1:E20),FALSE),\"\")","v":""},{"$f":"IFERROR(HLOOKUP(F$1&F$4,$S$1:$BB$23,ROWS(F$1:F20),FALSE),\"\")","v":""},{"$f":"IFERROR(HLOOKUP(G$1&G$4,$S$1:$BB$23,ROWS(G$1:G20),FALSE),\"\")","v":""},{"$f":"IFERROR(HLOOKUP(H$1&H$4,$S$1:$BB$23,ROWS(H$1:H20),FALSE),\"\")","v":""},{"$f":"IFERROR(HLOOKUP(I$1&I$4,$S$1:$BB$23,ROWS(I$1:I20),FALSE),\"\")","v":""},{"$f":"IFERROR(HLOOKUP(J$1&J$4,$S$1:$BB$23,ROWS(J$1:J20),FALSE),\"\")","v":""},{"$f":"IFERROR(HLOOKUP(K$1&K$4,$S$1:$BB$23,ROWS(K$1:K20),FALSE),\"\")","v":""},{"$f":"IFERROR(HLOOKUP(L$1&L$4,$S$1:$BB$23,ROWS(L$1:L20),FALSE),\"\")","v":""},{"$f":"IFERROR(HLOOKUP(M$1&M$4,$S$1:$BB$23,ROWS(M$1:M20),FALSE),\"\")","v":""},null,null,null,null,"Zaino porta computer","Mobilis 111226","DELL CP3724","LENOVO Value da 15.6 ","DELL CP3724",null,"Zaino Lenovo Value da 15,6\"","Lenovo 39.6cms (15.6) Value Plus Backpack","MOBILIS BACKPACK 111226","Mobilis Backpack 111227 -15-17\"","Lenovo 15,6 Value Plus Backpack","HP Travel 18 litri Iron Grey","HP Travel 18 litri Iron Grey","Mobilis 111226","DELL CP3724","LENOVO Value da 15.6 ","DELL CP3724","MOBILIS Backpack 111226","Zaino Lenovo Value da 15,6\"","Lenovo 39.6cms (15.6) Value Plus Backpack","MOBILIS BACKPACK 111226","Mobilis Backpack 111227 -15-17\"","Lenovo 15,6 Value Plus Backpack","HP Travel 18 litri Iron Grey","HP Travel 18 litri Iron Grey","Mobilis 111227","DELL CP3724","LENOVO Value da 15.6 ","DELL CP3724",null,"Zaino Lenovo Value da 15,6\"","Lenovo 39.6cms (15.6) Value Plus Backpack","MOBILIS BACKPACK 111227","Mobilis Backpack 111227 -15-17\"","Lenovo 15,6 Value Plus Backpack","HP Renew Business da 17,3”","HP Travel 18 litri Iron Grey",{"$f":"+Input!D31","v":"No"}]
["Monitor multimediale da 27\"",{"$f":"IFERROR(HLOOKUP(B$1&B$4,$S$1:$BB$23,ROWS(B$1:B21),FALSE),\"\")","v":""},{"$f":"IFERROR(HLOOKUP(C$1&C$4,$S$1:$BB$23,ROWS(C$1:C21),FALSE),\"\")","v":""},{"$f":"IFERROR(HLOOKUP(D$1&D$4,$S$1:$BB$23,ROWS(D$1:D21),FALSE),\"\")","v":""},{"$f":"IFERROR(HLOOKUP(E$1&E$4,$S$1:$BB$23,ROWS(E$1:E21),FALSE),\"\")","v":""},{"$f":"IFERROR(HLOOKUP(F$1&F$4,$S$1:$BB$23,ROWS(F$1:F21),FALSE),\"\")","v":""},{"$f":"IFERROR(HLOOKUP(G$1&G$4,$S$1:$BB$23,ROWS(G$1:G21),FALSE),\"\")","v":""},{"$f":"IFERROR(HLOOKUP(H$1&H$4,$S$1:$BB$23,ROWS(H$1:H21),FALSE),\"\")","v":""},{"$f":"IFERROR(HLOOKUP(I$1&I$4,$S$1:$BB$23,ROWS(I$1:I21),FALSE),\"\")","v":""},{"$f":"IFERROR(HLOOKUP(J$1&J$4,$S$1:$BB$23,ROWS(J$1:J21),FALSE),\"\")","v":""},{"$f":"IFERROR(HLOOKUP(K$1&K$4,$S$1:$BB$23,ROWS(K$1:K21),FALSE),\"\")","v":""},{"$f":"IFERROR(HLOOKUP(L$1&L$4,$S$1:$BB$23,ROWS(L$1:L21),FALSE),\"\")","v":""},{"$f":"IFERROR(HLOOKUP(M$1&M$4,$S$1:$BB$23,ROWS(M$1:M21),FALSE),\"\")","v":""},null,null,null,null,"Monitor multimediale da 27\"","Philps 275S1AE","DELL P2725D","LENOVO ThinkVision E27q-40","AOC Q27E3UMF",null,"LENOVO ThinkVision E27q-20","Lenovo ThinkVision E27q-40","PHILIPS 275S1AE/00 ","Monitor AOC_Q27E3UMF","Lenovo ThinkVision E27Q-40","Philips 275S1AE/00","AOC Q27E3UMF","Philps 275S1AE","DELL P2725D","LENOVO ThinkVision E27q-40","AOC Q27E3UMF","ACER CB272U EBMIIPRX ","LENOVO ThinkVision E27q-20","Lenovo ThinkVision E27q-40","PHILIPS 275S1AE/00 ","Monitor AOC_Q27E3UMF","Lenovo ThinkVision E27Q-40","Philips 275S1AE/00","AOC Q27E3UMF","Philps 275S1AE","DELL P2725D","LENOVO ThinkVision E27q-40","AOC Q27E3UMF",null,"LENOVO ThinkVision E27q-20","Lenovo ThinkVision E27q-40","PHILIPS 275S1AE/00 ","Monitor AOC_Q27E3UMF","Lenovo ThinkVision E27Q-40","Philips 275S1AE/00","AOC Q27E3UMF",{"$f":"+Input!D32","v":"No"}]
[]
["Congelamento",{"$f":"IF(B3=\"\",1,VLOOKUP(B1&B4,Tabella2[[#All],[Concatena]:[Congelamento]],2,FALSE))","v":1},{"$f":"IF(C3=\"\",1,VLOOKUP(C1&C4,Tabella2[[#All],[Concatena]:[Congelamento]],2,FALSE))","v":1},{"$f":"IF(D3=\"\",1,VLOOKUP(D1&D4,Tabella2[[#All],[Concatena]:[Congelamento]],2,FALSE))","v":1},{"$f":"IF(E3=\"\",1,VLOOKUP(E1&E4,Tabella2[[#All],[Concatena]:[Congelamento]],2,FALSE))","v":1},{"$f":"IF(F3=\"\",1,VLOOKUP(F1&F4,Tabella2[[#All],[Concatena]:[Congelamento]],2,FALSE))","v":1},{"$f":"IF(G3=\"\",1,VLOOKUP(G1&G4,Tabella2[[#All],[Concatena]:[Congelamento]],2,FALSE))","v":1},{"$f":"IF(H3=\"\",1,VLOOKUP(H1&H4,Tabella2[[#All],[Concatena]:[Congelamento]],2,FALSE))","v":1},{"$f":"IF(I3=\"\",1,VLOOKUP(I1&I4,Tabella2[[#All],[Concatena]:[Congelamento]],2,FALSE))","v":1},{"$f":"IF(J3=\"\",1,VLOOKUP(J1&J4,Tabella2[[#All],[Concatena]:[Congelamento]],2,FALSE))","v":1},{"$f":"IF(K3=\"\",1,VLOOKUP(K1&K4,Tabella2[[#All],[Concatena]:[Congelamento]],2,FALSE))","v":1},{"$f":"IF(L3=\"\",1,VLOOKUP(L1&L4,Tabella2[[#All],[Concatena]:[Congelamento]],2,FALSE))","v":1},{"$f":"IF(M3=\"\",1,VLOOKUP(M1&M4,Tabella2[[#All],[Concatena]:[Congelamento]],2,FALSE))","v":1},null,null,null,null,"Congelamento",{"$f":"+VLOOKUP(S1,Tabella2[[#All],[Concatena]:[Congelamento]],2,FALSE)","v":0},{"$f":"+VLOOKUP(T1,Tabella2[[#All],[Concatena]:[Congelamento]],2,FALSE)","v":0},{"$f":"+VLOOKUP(U1,Tabella2[[#All],[Concatena]:[Congelamento]],2,FALSE)","v":0},{"$f":"+VLOOKUP(V1,Tabella2[[#All],[Concatena]:[Congelamento]],2,FALSE)","v":0},null,{"$f":"+VLOOKUP(X1,Tabella2[[#All],[Concatena]:[Congelamento]],2,FALSE)","v":0},{"$f":"+VLOOKUP(Y1,Tabella2[[#All],[Concatena]:[Congelamento]],2,FALSE)","v":0},{"$f":"+VLOOKUP(Z1,Tabella2[[#All],[Concatena]:[Congelamento]],2,FALSE)","v":0},{"$f":"+VLOOKUP(AA1,Tabella2[[#All],[Concatena]:[Congelamento]],2,FALSE)","v":0},{"$f":"+VLOOKUP(AB1,Tabella2[[#All],[Concatena]:[Congelamento]],2,FALSE)","v":0},{"$f":"+VLOOKUP(AC1,Tabella2[[#All],[Concatena]:[Congelamento]],2,FALSE)","v":0},{"$f":"+VLOOKUP(AD1,Tabella2[[#All],[Concatena]:[Congelamento]],2,FALSE)","v":0},{"$f":"+VLOOKUP(AE1,Tabella2[[#All],[Concatena]:[Congelamento]],2,FALSE)","v":0},{"$f":"+VLOOKUP(AF1,Tabella2[[#All],[Concatena]:[Congelamento]],2,FALSE)","v":0},{"$f":"+VLOOKUP(AG1,Tabella2[[#All],[Concatena]:[Congelamento]],2,FALSE)","v":0},{"$f":"+VLOOKUP(AH1,Tabella2[[#All],[Concatena]:[Congelamento]],2,FALSE)","v":0},{"$f":"+VLOOKUP(AI1,Tabella2[[#All],[Concatena]:[Congelamento]],2,FALSE)","v":0},{"$f":"+VLOOKUP(AJ1,Tabella2[[#All],[Concatena]:[Congelamento]],2,FALSE)","v":0},{"$f":"+VLOOKUP(AK1,Tabella2[[#All],[Concatena]:[Congelamento]],2,FALSE)","v":0},{"$f":"+VLOOKUP(AL1,Tabella2[[#All],[Concatena]:[Congelamento]],2,FALSE)","v":0},{"$f":"+VLOOKUP(AM1,Tabella2[[#All],[Concatena]:[Congelamento]],2,FALSE)","v":0},{"$f":"+VLOOKUP(AN1,Tabella2[[#All],[Concatena]:[Congelamento]],2,FALSE)","v":0},{"$f":"+VLOOKUP(AO1,Tabella2[[#All],[Concatena]:[Congelamento]],2,FALSE)","v":0},{"$f":"+VLOOKUP(AP1,Tabella2[[#All],[Concatena]:[Congelamento]],2,FALSE)","v":0},{"$f":"+VLOOKUP(AQ1,Tabella2[[#All],[Concatena]:[Congelamento]],2,FALSE)","v":1},{"$f":"+VLOOKUP(AR1,Tabella2[[#All],[Concatena]:[Congelamento]],2,FALSE)","v":0},{"$f":"+VLOOKUP(AS1,Tabella2[[#All],[Concatena]:[Congelamento]],2,FALSE)","v":0},{"$f":"+VLOOKUP(AT1,Tabella2[[#All],[Concatena]:[Congelamento]],2,FALSE)","v":0},null,{"$f":"+VLOOKUP(AV1,Tabella2[[#All],[Concatena]:[Congelamento]],2,FALSE)","v":0},{"$f":"+VLOOKUP(AW1,Tabella2[[#All],[Concatena]:[Congelamento]],2,FALSE)","v":0},{"$f":"+VLOOKUP(AX1,Tabella2[[#All],[Concatena]:[Congelamento]],2,FALSE)","v":0},{"$f":"+VLOOKUP(AY1,Tabella2[[#All],[Concatena]:[Congelamento]],2,FALSE)","v":0},{"$f":"+VLOOKUP(AZ1,Tabella2[[#All],[Concatena]:[Congelamento]],2,FALSE)","v":0},{"$f":"+VLOOKUP(BA1,Tabella2[[#All],[Concatena]:[Congelamento]],2,FALSE)","v":0},{"$f":"+VLOOKUP(BB1,Tabella2[[#All],[Concatena]:[Congelamento]],2,FALSE)","v":0}]

{"sheet":"ReadMe","index":3,"n_rows":18,"n_cols":3,"rows_kept":18,"cut":false,"hidden":true,"merged":[]}
[]
[null,"Congelamento prodotto"]
[null,null,"Nel foglio Congelam_PC\n- Selezionare il prodotto da congelare\n- Inserire un 1 nella colonna E della riga selezionata"]
[]
[null,"Modifica specifiche tecniche prodotto esistente"]
[null,null,"Nel foglio Offerte_e_Calcoli\n- Selezionare la colonna corrispondente al prodotto da modificare (da E ad AN)\n- Modificare il valore corrispondente alla riga riguardante la/le specifica/che da modificare (dalla riga 5 alla riga 33)\n\nNel foglio Riepilogo_Spec_Tecniche\n- Selezionare la colonna corrispondente al prodotto da modificare (da R a BB, NON TOCCARE da B ad M)\n- Modificare il valore corrispondente alla riga riguardante la/le specifica/che da modificare (dalla riga 3 alla riga 21)"]
[]
[null,"Modifica configurazioni disponibili"]
[null,null,"Nel foglio Config_Dispo\n- Selezionare la riga corrispondente alla configurazione da modificare (da riga 4 a 867)\n- Modificare il valore corrispondente alla colonna della caratteristica da modificare (colonne dalla D alla I)"]
[]
[null,"Eliminazione prodotto esistente"]
[null,null,"Nel foglio Offerte_e_Calcoli\n- Selezionare la colonna corrispondente al prodotto da modificare (da E ad AN)\n- Eliminare i valori di quella colonna (solo i valori, non tutta la colonna)"]
[]
[null,"Sostituzione prodotto esistente"]
[null,null,"Come Modifica specifiche tecniche prodotto esistente"]
[]
[null,"Aggiunta nuovo prodotto"]
[null,null,"Nel foglio Offerte_e_Calcoli\n- Selezionare la colonna corrispondente al prodotto da aggiungere (da E ad AN) \n- Inserire i valori relativi al nuovo prodotto\n\nNel foglio Config_Dispo\n- Selezionare la riga corrispondente alla configurazione da aggiungere (da riga 4 a 867) \n- Inserire i valori relativi alla nuova configurazione\n\nNel foglio Riepilogo_Spec_Tecniche\n- Selezionare la colonna corrispondente al prodotto da aggiungere (da R a BB, NON TOCCARE da B ad M)\n- Inserire i valori relativi al nuovo prodotto\n"]

{"sheet":"Offerte_e_Calcoli","index":4,"n_rows":39,"n_cols":78,"rows_kept":39,"cut":false,"hidden":true,"merged":[]}
[null,null,null,"OE","Bellucci S.p.A.","Bsistemi S.p.A.","Converge S.r.l.","Eurome S.r.l.","Hitech Distribuzione Informatica S.r.l.","ITD Solutions S.p.A.","Posdata S.r.l.","RTI Trust Technology Services  S.r.l.","Sistemi Hardware & Software S.p.A.","Team Memores Computer S.p.A.","Wetech’s S.p.A.","Zucchetti Informatica S.p.A.","Bellucci S.p.A.","Bsistemi S.p.A.","Converge S.r.l.","Eurome S.r.l.","Hitech Distribuzione Informatica S.r.l.","ITD Solutions S.p.A.","Posdata S.r.l.","RTI Trust Technology Services  S.r.l.","Sistemi Hardware & Software S.p.A.","Team Memores Computer S.p.A.","Wetech’s S.p.A.","Zucchetti Informatica S.p.A.","Bellucci S.p.A.","Bsistemi S.p.A.","Converge S.r.l.","Eurome S.r.l.","Hitech Distribuzione Informatica S.r.l.","ITD Solutions S.p.A.","Posdata S.r.l.","RTI Trust Technology Services  S.r.l.","Sistemi Hardware & Software S.p.A.","Team Memores Computer S.p.A.","Wetech’s S.p.A.","Zucchetti Informatica S.p.A.",null,null,{"$f":"+E1","v":"Bellucci S.p.A."},{"$f":"+F1","v":"Bsistemi S.p.A."},"Converge S.r.l.","Eurome S.r.l.","Hitech Distribuzione Informatica S.r.l.","ITD Solutions S.p.A.","Posdata S.r.l.","RTI Trust Technology Services  S.r.l.","Sistemi Hardware & Software S.p.A.","Team Memores Computer S.p.A.","Wetech’s S.p.A.","Zucchetti Informatica S.p.A.","Bellucci S.p.A.","Bsistemi S.p.A.","Converge S.r.l.","Eurome S.r.l.","Hitech Distribuzione Informatica S.r.l.","ITD Solutions S.p.A.","Posdata S.r.l.","RTI Trust Technology Services  S.r.l.","Sistemi Hardware & Software S.p.A.","Team Memores Computer S.p.A.","Wetech’s S.p.A.","Zucchetti Informatica S.p.A.","Bellucci S.p.A.","Bsistemi S.p.A.","Converge S.r.l.","Eurome S.r.l.","Hitech Distribuzione Informatica S.r.l.","ITD Solutions S.p.A.","Posdata S.r.l.","RTI Trust Technology Services  S.r.l.","Sistemi Hardware & Software S.p.A.",{"$f":"+AL1","v":"Team Memores Computer S.p.A."},{"$f":"+AM1","v":"Wetech’s S.p.A."},{"$f":"+AN1","v":"Zucchetti Informatica S.p.A."}]
[null,null,null,null,null,null,null,null,null,null,null,null,null,null,null,null,null,null,null,null,null,null,null,null,null,null,null,null,null,null,null,null,null,null,null,null,null,null,null,null,null,null,{"$f":"+E5","v":13},{"$f":"+F5","v":13},13,13,0,13,13,13,13,13,13,13,14,14,14,14,14,14,14,14,14,14,14,14,15,15,15,15,0,15,15,15,15,15,15,15]
["Da Input",null,null,null,"Dati tecnici da cataloghi",null,null,null,null,null,null,null,null,null,null,null,null,null,null,null,null,null,null,null,null,null,null,null,null,null,null,null,null,null,null,null,null,null,null,null,null,null,"Check specifiche disponibili"]
[]
[{"$f":"+Input!C4","v":"PC portatile da"},{"$f":"+Input!D4","v":0},{"$f":"+LEFT(B5,2)*1","v":0},null,13,13,13,13,null,13,13,13,13,13,13,13,14,14,14,14,14,14,14,14,14,14,14,14,15,15,15,15,null,15,15,15,15,15,15,15,null,null,{"$f":"IF($C5=E5,1,0)","v":0},{"$f":"IF($C5=F5,1,0)","v":0},0,0,1,0,0,0,0,0,0,0,0,0,0,0,0,0,0,0,0,0,0,0,0,0,0,0,1,0,0,0,0,0,0,0]
[{"$f":"+Input!C14","v":"CPU con “Neural Processing Unit” / “Ai Engine”"},{"$f":"+Input!D14","v":"No"},{"$f":"+LEFT(B6,2)","v":"No"},null,"Sì","Sì","Sì","Sì",null,"Sì","Sì","Sì","Sì","Sì","Sì","Sì","Sì","Sì","NO","Sì","NO","Sì","Sì","Sì","NO","Sì","Sì","NO","NO","Sì","Sì","Sì",null,"NO","Sì","Sì","NO","Sì","Sì","Sì",null,null,{"$f":"IF($C6=\"no\",1,IF($C6=E6,1,0))","v":1},{"$f":"IF($C6=\"no\",1,IF($C6=F6,1,0))","v":1},1,1,1,1,1,1,1,1,1,1,1,1,1,1,1,1,1,1,1,1,1,1,1,1,1,1,1,1,1,1,1,1,1,1]
[{"$f":"+Input!C15","v":"Lettore biometrico di impronte digitali integrato"},{"$f":"+Input!D15","v":"No"},"No",null,"Sì","Sì","Sì","Sì",null,"Sì","Sì","Sì","Sì","Sì","Sì","Sì","Sì","Sì","Sì","Sì","Sì","Sì","Sì","Sì","Sì","Sì","Sì","Sì","Sì","Sì","Sì","Sì",null,"Sì","Sì","Sì","Sì","Sì","Sì","Sì",null,null,{"$f":"IF($C7=\"no\",1,IF($C7=E7,1,0))","v":1},1,1,1,1,1,1,1,1,1,1,1,1,1,1,1,1,1,1,1,1,1,1,1,1,1,1,1,1,1,1,1,1,1,1,1]
[{"$f":"+Input!C16","v":"Webcam Integrata FHD IR"},{"$f":"+Input!D16","v":"No"},"No",null,"Sì","Sì","Sì","Sì",null,"Sì","Sì","Sì","Sì","Sì","Sì","Sì","Sì","Sì","Sì","Sì","Sì","Sì","Sì","Sì","Sì","Sì","Sì","Sì","Sì","Sì","Sì","Sì",null,"Sì","Sì","Sì","Sì","Sì","Sì","Sì",null,null,1,1,1,1,1,1,1,1,1,1,1,1,1,1,1,1,1,1,1,1,1,1,1,1,1,1,1,1,1,1,1,1,1,1,1,1]
[{"$f":"+Input!C17","v":"Lettore di micro-SD card integrato"},{"$f":"+Input!D17","v":"No"},"No",null,"NO","NO","NO","NO",null,"NO","NO","NO","NO","NO","NO","NO","NO","NO","Sì","NO","Sì","Sì","NO","NO","NO","No","NO","NO","NO","Sì","Sì","Sì",null,"Sì","NO","NO","NO","No","NO","NO",null,null,1,1,1,1,1,1,1,1,1,1,1,1,1,1,1,1,1,1,1,1,1,1,1,1,1,1,1,1,1,1,1,1,1,1,1,1]
[{"$f":"+Input!C18","v":"Numero di porte USB 4 con velocità di trasferimento di almeno 40 Gbps"},{"$f":"+Input!D18","v":0},{"$f":"+B10","v":0},null,2,2,2,2,null,2,2,2,2,2,2,2,0,2,1,2,2,1,2,2,2,2,0,0,0,2,1,2,null,1,2,2,2,2,0,0,null,null,{"$f":"+IF($C$10<=E10,1,0)","v":1},{"$f":"+IF($C$10<=F10,1,0)","v":1},1,1,1,1,1,1,1,1,1,1,1,1,1,1,1,1,1,1,1,1,1,1,1,1,1,1,1,1,1,1,1,1,1,1]
[{"$f":"+Input!C19","v":"Camera shutter"},{"$f":"+Input!D19","v":"No"},"No",null,"Sì","Sì","Sì","Sì",null,"Sì","Sì","Sì","Sì","Sì","Sì","Sì","Sì","Sì","Sì","Sì","Sì","Sì","Sì","Sì","Sì","Sì","Sì","Sì","Sì","Sì","Sì","Sì",null,"Sì","Sì","Sì","Sì","Sì","Sì","Sì",null,null,{"$f":"IF($C11=\"no\",1,IF($C11=E11,1,0))","v":1},{"$f":"IF($C11=\"no\",1,IF($C11=F11,1,0))","v":1},{"$f":"IF($C11=\"no\",1,IF($C11=G11,1,0))","v":1},{"$f":"IF($C11=\"no\",1,IF($C11=H11,1,0))","v":1},{"$f":"IF($C11=\"no\",1,IF($C11=I11,1,0))","v":1},{"$f":"IF($C11=\"no\",1,IF($C11=J11,1,0))","v":1},{"$f":"IF($C11=\"no\",1,IF($C11=K11,1,0))","v":1},{"$f":"IF($C11=\"no\",1,IF($C11=L11,1,0))","v":1},{"$f":"IF($C11=\"no\",1,IF($C11=M11,1,0))","v":1},{"$f":"IF($C11=\"no\",1,IF($C11=N11,1,0))","v":1},{"$f":"IF($C11=\"no\",1,IF($C11=O11,1,0))","v":1},{"$f":"IF($C11=\"no\",1,IF($C11=P11,1,0))","v":1},{"$f":"IF($C11=\"no\",1,IF($C11=Q11,1,0))","v":1},{"$f":"IF($C11=\"no\",1,IF($C11=R11,1,0))","v":1},{"$f":"IF($C11=\"no\",1,IF($C11=S11,1,0))","v":1},{"$f":"IF($C11=\"no\",1,IF($C11=T11,1,0))","v":1},{"$f":"IF($C11=\"no\",1,IF($C11=U11,1,0))","v":1},{"$f":"IF($C11=\"no\",1,IF($C11=V11,1,0))","v":1},{"$f":"IF($C11=\"no\",1,IF($C11=W11,1,0))","v":1},{"$f":"IF($C11=\"no\",1,IF($C11=X11,1,0))","v":1},{"$f":"IF($C11=\"no\",1,IF($C11=Y11,1,0))","v":1},{"$f":"IF($C11=\"no\",1,IF($C11=Z11,1,0))","v":1},{"$f":"IF($C11=\"no\",1,IF($C11=AA11,1,0))","v":1},{"$f":"IF($C11=\"no\",1,IF($C11=AB11,1,0))","v":1},{"$f":"IF($C11=\"no\",1,IF($C11=AC11,1,0))","v":1},{"$f":"IF($C11=\"no\",1,IF($C11=AD11,1,0))","v":1},{"$f":"IF($C11=\"no\",1,IF($C11=AE11,1,0))","v":1},{"$f":"IF($C11=\"no\",1,IF($C11=AF11,1,0))","v":1},{"$f":"IF($C11=\"no\",1,IF($C11=AG11,1,0))","v":1},{"$f":"IF($C11=\"no\",1,IF($C11=AH11,1,0))","v":1},{"$f":"IF($C11=\"no\",1,IF($C11=AI11,1,0))","v":1},{"$f":"IF($C11=\"no\",1,IF($C11=AJ11,1,0))","v":1},{"$f":"IF($C11=\"no\",1,IF($C11=AK11,1,0))","v":1},{"$f":"IF($C11=\"no\",1,IF($C11=AL11,1,0))","v":1},{"$f":"IF($C11=\"no\",1,IF($C11=AM11,1,0))","v":1},{"$f":"IF($C11=\"no\",1,IF($C11=AN11,1,0))","v":1}]
[{"$f":"+Input!C20","v":"Possesso di certificazione TCO Generation 9 for notebooks"},{"$f":"+Input!D20","v":"No"},"No",null,"Sì","Sì","Sì","Sì",null,"Sì","Sì","Sì","Sì","Sì","Sì","Sì","Sì","Sì","Sì","Sì","Sì","Sì","Sì","Sì","Sì","Sì","Sì","Sì","Sì","Sì","Sì","Sì",null,"Sì","Sì","Sì","Sì","Sì","Sì","Sì",null,null,1,1,1,1,1,1,1,1,1,1,1,1,1,1,1,1,1,1,1,1,1,1,1,1,1,1,1,1,1,1,1,1,1,1,1,1]
[{"$f":"+Input!C24","v":"Integrazione con il servizio di Trouble Ticketing dell’Amministrazione"},{"$f":"+Input!D24","v":"No"},{"$f":"+LEFT(B13,2)","v":"No"},null,"Sì","Sì","Sì","Sì",null,"Sì","Sì","Sì","Sì","Sì","Sì","NO","Sì","Sì","Sì","Sì","Sì","Sì","Sì","Sì","Sì","Sì","Sì","NO","Sì","Sì","Sì","Sì",null,"Sì","Sì","Sì","Sì","Sì","Sì","NO",null,null,1,1,1,1,1,1,1,1,1,1,1,1,1,1,1,1,1,1,1,1,1,1,1,1,1,1,1,1,1,1,1,1,1,1,1,1]
[{"$f":"+Input!C28","v":"Docking station / port-replicator"},{"$f":"+Input!D28","v":"No"},{"$f":"+LEFT(B14,5)","v":"No"},null,"Sì","Sì","Sì","Sì",null,"Sì","Sì","Sì","Sì","Sì","Sì","Sì","Sì","Sì","Sì","Sì","Sì","Sì","Sì","Sì","Sì","Sì","Sì","Sì","NO","Sì","Sì","Sì",null,"Sì","Sì","Sì","Sì","Sì","Sì","Sì",null,null,{"$f":"IF($C14<>\"Sì, d\",1,IF(E14=\"Sì\",1,0))","v":1},{"$f":"IF($C14<>\"Sì, d\",1,IF(F14=\"Sì\",1,0))","v":1},1,1,1,1,1,1,1,1,1,1,1,1,1,1,1,1,1,1,1,1,1,1,1,1,1,1,1,1,1,1,1,1,1,1]
[{"$f":"+Input!C29","v":"Set tastiera e mouse wireless"},{"$f":"+Input!D29","v":"No"},{"$f":"+LEFT(B15,5)","v":"No"},null,"Sì","Sì","Sì","Sì",null,"Sì","Sì","Sì","Sì","Sì","Sì","Sì","Sì","Sì","Sì","Sì","Sì","Sì","Sì","Sì","Sì","Sì","Sì","Sì","Sì","Sì","Sì","Sì",null,"Sì","Sì","Sì","Sì","Sì","Sì","Sì",null,null,{"$f":"IF($C15<>\"Sì, d\",1,IF(E15=\"Sì\",1,0))","v":1},1,1,1,1,1,1,1,1,1,1,1,1,1,1,1,1,1,1,1,1,1,1,1,1,1,1,1,1,1,1,1,1,1,1,1]
[{"$f":"+Input!C32","v":"Monitor multimediale da 27''"},{"$f":"+Input!D32","v":"No"},{"$f":"+LEFT(B16,5)","v":"No"},null,"NO","Sì","Sì","NO",null,"Sì","Sì","NO","NO","Sì","NO","NO","NO","Sì","Sì","NO","Sì","Sì","Sì","NO","NO","Sì","NO","NO","NO","Sì","Sì","NO",null,"Sì","Sì","NO","NO","Sì","NO","NO",null,null,1,1,1,1,1,1,1,1,1,1,1,1,1,1,1,1,1,1,1,1,1,1,1,1,1,1,1,1,1,1,1,1,1,1,1,1]
[]
[null,null,null,null,null,null,null,null,null,null,null,null,null,null,null,null,null,null,null,null,null,null,null,null,null,null,null,null,null,null,null,null,null,null,null,null,null,null,null,null,null,"CHK Specifiche disponibili",{"$f":"IF(COUNTIF(AQ5:AQ16,0)=0,1,0)","v":0},{"$f":"IF(COUNTIF(AR5:AR16,0)=0,1,0)","v":0},0,0,1,0,0,0,0,0,0,0,0,0,0,0,0,0,0,0,0,0,0,0,0,0,0,0,1,0,0,0,0,0,0,0]
["Da Input",null,null,null,"Offerte economiche da cataloghi",null,null,null,null,null,null,null,null,null,null,null,null,null,null,null,null,null,null,null,null,null,null,null,null,null,null,null,null,null,null,null,null,null,null,null,null,"CHK Configuraz disponibili",{"$f":"IFERROR(VLOOKUP(AQ1&Config_Dispo!$B$1,Config_Dispo!$B:$J,9,FALSE),0)","v":0},{"$f":"IFERROR(VLOOKUP(AR1&Config_Dispo!$B$1,Config_Dispo!$B:$J,9,FALSE),0)","v":0},{"$f":"IFERROR(VLOOKUP(AS1&Config_Dispo!$B$1,Config_Dispo!$B:$J,9,FALSE),0)","v":0},{"$f":"IFERROR(VLOOKUP(AT1&Config_Dispo!$B$1,Config_Dispo!$B:$J,9,FALSE),0)","v":0},{"$f":"IFERROR(VLOOKUP(AU1&Config_Dispo!$B$1,Config_Dispo!$B:$J,9,FALSE),0)","v":0},{"$f":"IFERROR(VLOOKUP(AV1&Config_Dispo!$B$1,Config_Dispo!$B:$J,9,FALSE),0)","v":0},{"$f":"IFERROR(VLOOKUP(AW1&Config_Dispo!$B$1,Config_Dispo!$B:$J,9,FALSE),0)","v":0},{"$f":"IFERROR(VLOOKUP(AX1&Config_Dispo!$B$1,Config_Dispo!$B:$J,9,FALSE),0)","v":0},{"$f":"IFERROR(VLOOKUP(AY1&Config_Dispo!$B$1,Config_Dispo!$B:$J,9,FALSE),0)","v":0},{"$f":"IFERROR(VLOOKUP(AZ1&Config_Dispo!$B$1,Config_Dispo!$B:$J,9,FALSE),0)","v":0},{"$f":"IFERROR(VLOOKUP(BA1&Config_Dispo!$B$1,Config_Dispo!$B:$J,9,FALSE),0)","v":0},{"$f":"IFERROR(VLOOKUP(BB1&Config_Dispo!$B$1,Config_Dispo!$B:$J,9,FALSE),0)","v":0},{"$f":"IFERROR(VLOOKUP(BC1&Config_Dispo!$B$1,Config_Dispo!$B:$J,9,FALSE),0)","v":0},{"$f":"IFERROR(VLOOKUP(BD1&Config_Dispo!$B$1,Config_Dispo!$B:$J,9,FALSE),0)","v":0},{"$f":"IFERROR(VLOOKUP(BE1&Config_Dispo!$B$1,Config_Dispo!$B:$J,9,FALSE),0)","v":0},{"$f":"IFERROR(VLOOKUP(BF1&Config_Dispo!$B$1,Config_Dispo!$B:$J,9,FALSE),0)","v":0},{"$f":"IFERROR(VLOOKUP(BG1&Config_Dispo!$B$1,Config_Dispo!$B:$J,9,FALSE),0)","v":0},{"$f":"IFERROR(VLOOKUP(BH1&Config_Dispo!$B$1,Config_Dispo!$B:$J,9,FALSE),0)","v":0},{"$f":"IFERROR(VLOOKUP(BI1&Config_Dispo!$B$1,Config_Dispo!$B:$J,9,FALSE),0)","v":0},{"$f":"IFERROR(VLOOKUP(BJ1&Config_Dispo!$B$1,Config_Dispo!$B:$J,9,FALSE),0)","v":0},{"$f":"IFERROR(VLOOKUP(BK1&Config_Dispo!$B$1,Config_Dispo!$B:$J,9,FALSE),0)","v":0},{"$f":"IFERROR(VLOOKUP(BL1&Config_Dispo!$B$1,Config_Dispo!$B:$J,9,FALSE),0)","v":0},{"$f":"IFERROR(VLOOKUP(BM1&Config_Dispo!$B$1,Config_Dispo!$B:$J,9,FALSE),0)","v":0},{"$f":"IFERROR(VLOOKUP(BN1&Config_Dispo!$B$1,Config_Dispo!$B:$J,9,FALSE),0)","v":0},{"$f":"IFERROR(VLOOKUP(BO1&Config_Dispo!$B$1,Config_Dispo!$B:$J,9,FALSE),0)","v":0},{"$f":"IFERROR(VLOOKUP(BP1&Config_Dispo!$B$1,Config_Dispo!$B:$J,9,FALSE),0)","v":0},{"$f":"IFERROR(VLOOKUP(BQ1&Config_Dispo!$B$1,Config_Dispo!$B:$J,9,FALSE),0)","v":0},{"$f":"IFERROR(VLOOKUP(BR1&Config_Dispo!$B$1,Config_Dispo!$B:$J,9,FALSE),0)","v":0},{"$f":"IFERROR(VLOOKUP(BS1&Config_Dispo!$B$1,Config_Dispo!$B:$J,9,FALSE),0)","v":0},{"$f":"IFERROR(VLOOKUP(BT1&Config_Dispo!$B$1,Config_Dispo!$B:$J,9,FALSE),0)","v":0},{"$f":"IFERROR(VLOOKUP(BU1&Config_Dispo!$B$1,Config_Dispo!$B:$J,9,FALSE),0)","v":0},{"$f":"IFERROR(VLOOKUP(BV1&Config_Dispo!$B$1,Config_Dispo!$B:$J,9,FALSE),0)","v":0},{"$f":"IFERROR(VLOOKUP(BW1&Config_Dispo!$B$1,Config_Dispo!$B:$J,9,FALSE),0)","v":0},{"$f":"IFERROR(VLOOKUP(BX1&Config_Dispo!$B$1,Config_Dispo!$B:$J,9,FALSE),0)","v":0},{"$f":"IFERROR(VLOOKUP(BY1&Config_Dispo!$B$1,Config_Dispo!$B:$J,9,FALSE),0)","v":0},{"$f":"IFERROR(VLOOKUP(BZ1&Config_Dispo!$B$1,Config_Dispo!$B:$J,9,FALSE),0)","v":0}]
[null,null,null,null,null,null,null,null,null,null,null,null,null,null,null,null,null,null,null,null,null,null,null,null,null,null,null,null,null,null,null,null,null,null,null,null,null,null,null,null,null,"CHK congelamento",{"$f":"IF(IFERROR(VLOOKUP(AQ1&$C$5,Tabella2[[Concatena]:[Congelamento]],2,FALSE),0)=1,0,1)","v":1},{"$f":"IF(IFERROR(VLOOKUP(AR1&$C$5,Tabella2[[Concatena]:[Congelamento]],2,FALSE),0)=1,0,1)","v":1},{"$f":"IF(IFERROR(VLOOKUP(AS1&$C$5,Tabella2[[Concatena]:[Congelamento]],2,FALSE),0)=1,0,1)","v":1},{"$f":"IF(IFERROR(VLOOKUP(AT1&$C$5,Tabella2[[Concatena]:[Congelamento]],2,FALSE),0)=1,0,1)","v":1},{"$f":"IF(IFERROR(VLOOKUP(AU1&$C$5,Tabella2[[Concatena]:[Congelamento]],2,FALSE),0)=1,0,1)","v":1},{"$f":"IF(IFERROR(VLOOKUP(AV1&$C$5,Tabella2[[Concatena]:[Congelamento]],2,FALSE),0)=1,0,1)","v":1},{"$f":"IF(IFERROR(VLOOKUP(AW1&$C$5,Tabella2[[Concatena]:[Congelamento]],2,FALSE),0)=1,0,1)","v":1},{"$f":"IF(IFERROR(VLOOKUP(AX1&$C$5,Tabella2[[Concatena]:[Congelamento]],2,FALSE),0)=1,0,1)","v":1},{"$f":"IF(IFERROR(VLOOKUP(AY1&$C$5,Tabella2[[Concatena]:[Congelamento]],2,FALSE),0)=1,0,1)","v":1},{"$f":"IF(IFERROR(VLOOKUP(AZ1&$C$5,Tabella2[[Concatena]:[Congelamento]],2,FALSE),0)=1,0,1)","v":1},{"$f":"IF(IFERROR(VLOOKUP(BA1&$C$5,Tabella2[[Concatena]:[Congelamento]],2,FALSE),0)=1,0,1)","v":1},{"$f":"IF(IFERROR(VLOOKUP(BB1&$C$5,Tabella2[[Concatena]:[Congelamento]],2,FALSE),0)=1,0,1)","v":1},{"$f":"IF(IFERROR(VLOOKUP(BC1&$C$5,Tabella2[[Concatena]:[Congelamento]],2,FALSE),0)=1,0,1)","v":1},{"$f":"IF(IFERROR(VLOOKUP(BD1&$C$5,Tabella2[[Concatena]:[Congelamento]],2,FALSE),0)=1,0,1)","v":1},{"$f":"IF(IFERROR(VLOOKUP(BE1&$C$5,Tabella2[[Concatena]:[Congelamento]],2,FALSE),0)=1,0,1)","v":1},{"$f":"IF(IFERROR(VLOOKUP(BF1&$C$5,Tabella2[[Concatena]:[Congelamento]],2,FALSE),0)=1,0,1)","v":1},{"$f":"IF(IFERROR(VLOOKUP(BG1&$C$5,Tabella2[[Concatena]:[Congelamento]],2,FALSE),0)=1,0,1)","v":1},{"$f":"IF(IFERROR(VLOOKUP(BH1&$C$5,Tabella2[[Concatena]:[Congelamento]],2,FALSE),0)=1,0,1)","v":1},{"$f":"IF(IFERROR(VLOOKUP(BI1&$C$5,Tabella2[[Concatena]:[Congelamento]],2,FALSE),0)=1,0,1)","v":1},{"$f":"IF(IFERROR(VLOOKUP(BJ1&$C$5,Tabella2[[Concatena]:[Congelamento]],2,FALSE),0)=1,0,1)","v":1},{"$f":"IF(IFERROR(VLOOKUP(BK1&$C$5,Tabella2[[Concatena]:[Congelamento]],2,FALSE),0)=1,0,1)","v":1},{"$f":"IF(IFERROR(VLOOKUP(BL1&$C$5,Tabella2[[Concatena]:[Congelamento]],2,FALSE),0)=1,0,1)","v":1},{"$f":"IF(IFERROR(VLOOKUP(BM1&$C$5,Tabella2[[Concatena]:[Congelamento]],2,FALSE),0)=1,0,1)","v":1},{"$f":"IF(IFERROR(VLOOKUP(BN1&$C$5,Tabella2[[Concatena]:[Congelamento]],2,FALSE),0)=1,0,1)","v":1},{"$f":"IF(IFERROR(VLOOKUP(BO1&$C$5,Tabella2[[Concatena]:[Congelamento]],2,FALSE),0)=1,0,1)","v":1},{"$f":"IF(IFERROR(VLOOKUP(BP1&$C$5,Tabella2[[Concatena]:[Congelamento]],2,FALSE),0)=1,0,1)","v":1},{"$f":"IF(IFERROR(VLOOKUP(BQ1&$C$5,Tabella2[[Concatena]:[Congelamento]],2,FALSE),0)=1,0,1)","v":1},{"$f":"IF(IFERROR(VLOOKUP(BR1&$C$5,Tabella2[[Concatena]:[Congelamento]],2,FALSE),0)=1,0,1)","v":1},{"$f":"IF(IFERROR(VLOOKUP(BS1&$C$5,Tabella2[[Concatena]:[Congelamento]],2,FALSE),0)=1,0,1)","v":1},{"$f":"IF(IFERROR(VLOOKUP(BT1&$C$5,Tabella2[[Concatena]:[Congelamento]],2,FALSE),0)=1,0,1)","v":1},{"$f":"IF(IFERROR(VLOOKUP(BU1&$C$5,Tabella2[[Concatena]:[Congelamento]],2,FALSE),0)=1,0,1)","v":1},{"$f":"IF(IFERROR(VLOOKUP(BV1&$C$5,Tabella2[[Concatena]:[Congelamento]],2,FALSE),0)=1,0,1)","v":1},{"$f":"IF(IFERROR(VLOOKUP(BW1&$C$5,Tabella2[[Concatena]:[Congelamento]],2,FALSE),0)=1,0,1)","v":1},{"$f":"IF(IFERROR(VLOOKUP(BX1&$C$5,Tabella2[[Concatena]:[Congelamento]],2,FALSE),0)=1,0,1)","v":1},{"$f":"IF(IFERROR(VLOOKUP(BY1&$C$5,Tabella2[[Concatena]:[Congelamento]],2,FALSE),0)=1,0,1)","v":1},{"$f":"IF(IFERROR(VLOOKUP(BZ1&$C$5,Tabella2[[Concatena]:[Congelamento]],2,FALSE),0)=1,0,1)","v":1}]
[null,null,null,null,13,13,13,13,null,13,13,13,13,13,13,13,14,14,14,14,14,14,14,14,14,14,14,14,15,15,15,15,null,15,15,15,15,15,15,15,null,"CHK Totale",{"$f":"+IF(AND(AQ18=1,AQ19=1,AQ20=1),1,0)","v":0},{"$f":"+IF(AND(AR18=1,AR19=1,AR20=1),1,0)","v":0},0,0,0,0,0,0,0,0,0,0,0,0,0,0,0,0,0,0,0,0,0,0,0,0,0,0,0,0,0,0,0,0,0,0]
["PC portatile",{"$f":"+Input!D4","v":0},1,null,645,718,609.71,719,null,651.57000000000005,603.33000000000004,599.26,670,639.67999999999995,699,665,590,658,447.09,659,433.2,586.28,616.66999999999996,568.57000000000005,630,583,631,606,575,618.79999999999995,505.75,619,null,488.93,612.33000000000004,538.94000000000005,570,582.42999999999995,556,579,null,"Prezzo",{"$f":"IF(AQ21=0,\"\",SUMPRODUCT($C$22:$C$33,E22:E33))","v":""},{"$f":"IF(AR21=0,\"\",SUMPRODUCT($C$22:$C$33,F22:F33))","v":""},"","","","","","","","","","","","","","","","","","","","","","","","","","","","","","","","","",""]
["Upgrade a CPU di fascia superiore ",{"$f":"+Input!D8","v":"Media"},{"$f":"+IF(B23=\"Superiore *\",1,0)","v":0},null,180,198.8,129.51,160,null,129.74,115,159.79,184,129.51,180,170,180,198.8,55.5,160,80,97.6,92,160.85,194,98.29,180,171,180,198.8,98.29,160,null,58.21,92.71,160.85,160,100.25,180,171]
["Upgrade RAM installata a 16 GB",{"$f":"+Input!D9","v":8},{"$f":"+IF(B24=\"16 *\",1,0)","v":0},null,81,0,0,60,null,0,0,34.92,83,0,74,71,81,88.8,30.06,60,39,29.86,29,34.92,88,30.06,85,84,81,88.8,30.06,60,null,30.27,29,34.92,80,30.67,85,84,null,null,"Graduatoria","Prezzo","Fornitore aggiudicatario","Nome prodotto"]
["Upgrade spazio disco (storage interno) a 1TB",{"$f":"+Input!D10","v":512},{"$f":"+IF(B25=\"1000 *\",1,0)","v":0},null,90,78.8,46.25,50,null,46.34,43,79,83,46.25,89,88.5,90,78.8,46.25,50,90,45.92,44,79,88,46.25,89,88.5,90,78.8,46.25,50,null,46.56,44,79,85,47.12,89,88.5,null,null,1,{"$f":"IFERROR(SMALL($AQ$22:$BZ$22,AQ25),\"\")","v":""},{"$f":"IF(AR25=\"\",\"\",INDEX(_xlfn._xlws.FILTER($AQ$1:$BZ$1,$AQ$22:$BZ$22=AR25),COUNTIF($AR$25:AR25, AR25)))","v":""},{"$f":"IF(AR25=\"\",\"\",HLOOKUP(AS25&$C$5,$E$37:$AN$39,3,FALSE))","v":""}]
["Windows 11 Pro Education *",{"$f":"+Input!D11","v":"Distribuzione Linux"},{"$f":"+IF(B26=A26,1,0)","v":0},null,80,78.8,55.5,55,null,78.94,51.9,62.43,75,55.5,79,79,80,78.8,55.5,55,80,78.94,51.9,62.43,75,55.5,79,79,80,78.8,55.5,55,null,75.67,51.9,62.43,75,56.61,79,79,null,null,2,{"$f":"IFERROR(SMALL($AQ$22:$BZ$22,AQ26),\"\")","v":""},{"$f":"IF(AR26=\"\",\"\",INDEX(_xlfn._xlws.FILTER($AQ$1:$BZ$1,$AQ$22:$BZ$22=AR26),COUNTIF($AR$25:AR26, AR26)))","v":""},""]
["Windows 11 Pro *",{"$f":"+Input!D11","v":"Distribuzione Linux"},{"$f":"+IF(B27=A27,1,0)","v":0},null,150,148.80000000000001,120.63,149,null,92.59,108,126.98,145,126.41,149,148,150,148.80000000000001,120.63,149,90,92.59,108,126.98,145,126.41,149,148,150,148.80000000000001,120.63,149,null,93.02,108,126.98,145,129.62,149,148,null,null,3,"",{"$f":"IF(AR27=\"\",\"\",INDEX(_xlfn._xlws.FILTER($AQ$1:$BZ$1,$AQ$22:$BZ$22=AR27),COUNTIF($AR$25:AR27, AR27)))","v":""},""]
["Estensione servizio di assistenza relativa alle apparecchiaturea 60 mesi per il Prodotto Principale",{"$f":"+Input!D23","v":"No"},{"$f":"+IF(LEFT(B28,2)=\"Sì\",1,0)","v":0},null,72,68.8,41,45,null,41.01,27,32.94,80,40,35,20,72,68.8,41,45,46.5,24.6,27,32.94,80,40,30,20,72,68.8,41,45,null,24.6,27,32.94,80,40,30,20,null,null,4,{"$f":"IFERROR(SMALL($AQ$22:$BZ$22,AQ28),\"\")","v":""},{"$f":"IF(AR28=\"\",\"\",INDEX(_xlfn._xlws.FILTER($AQ$1:$BZ$1,$AQ$22:$BZ$22=AR28),COUNTIF($AR$25:AR28, AR28)))","v":""},""]
["Docking station / port-replicator",{"$f":"+Input!D28","v":"No"},{"$f":"+IF(LEFT(B29,2)=\"Sì\",1,0)","v":0},null,100,94,70.5,80,null,69.430000000000007,65,91.53,92,70.5,98,97.5,100,94,70.5,80,100,69.83,65,91.53,92,70.5,98,97.5,90,94,70.5,80,null,70.45,65,91.53,92,71.89,98,97.5,null,null,5,"",{"$f":"IF(AR29=\"\",\"\",INDEX(_xlfn._xlws.FILTER($AQ$1:$BZ$1,$AQ$22:$BZ$22=AR29),COUNTIF($AR$25:AR29, AR29)))","v":""},""]
["Set tastiera e mouse wireless",{"$f":"+Input!D29","v":"No"},{"$f":"+IF(LEFT(B30,2)=\"Sì\",1,0)","v":0},null,54,36,27.75,30,null,28.13,26,33.119999999999997,42,27.75,36,36,54,36,27.75,30,60,28.29,26,33.119999999999997,42,27.75,36,36,54,36,27.75,30,null,28.54,26,33.119999999999997,42,28.31,36,36,null,null,6,"",{"$f":"IF(AR30=\"\",\"\",INDEX(_xlfn._xlws.FILTER($AQ$1:$BZ$1,$AQ$22:$BZ$22=AR30),COUNTIF($AR$25:AR30, AR30)))","v":""},""]
["Cuffie stereo e microfono (se offerti, indicare direttamente marca e modello, se non offerti scrivere \"non offerto\")",{"$f":"+Input!D30","v":"No"},0,null,25,42,18.29,45,null,38.46,35,19.23,28,38.159999999999997,21,21,25,42,18.29,45,50,38.67,35,19.23,28,38.159999999999997,21,21,25,42,18.29,45,null,39.020000000000003,35,19.23,28,38.92,21,21,null,null,7,"",{"$f":"IF(AR31=\"\",\"\",INDEX(_xlfn._xlws.FILTER($AQ$1:$BZ$1,$AQ$22:$BZ$22=AR31),COUNTIF($AR$25:AR31, AR31)))","v":""},""]
["Zaino porta computer (se offerto, indicare direttamente marca e modello, se non offerto scrivere \"non offerto\")",{"$f":"+Input!D31","v":"No"},0,null,18,20,20.81,25,null,22.7,20,11.54,25,20.81,18,18,18,20,20.81,25,23.5,22.5,20,11.54,25,20.81,18,18,18,20,20.81,25,null,21.09,20,12.58,25,21.23,35,18,null,null,8,"",{"$f":"IF(AR32=\"\",\"\",INDEX(_xlfn._xlws.FILTER($AQ$1:$BZ$1,$AQ$22:$BZ$22=AR32),COUNTIF($AR$25:AR32, AR32)))","v":""},""]
["Monitor multimediale da 27” (se offerto, indicare direttamente marca e modello, se non offerto scrivere \"non offerto\")",{"$f":"+Input!D32","v":"No"},0,null,240,279,200.73,220,null,217.94,180,148.35,180,212.29,280,180,240,279,200.73,220,290,206.85,180,148.35,180,212.29,280,180,240,279,200.73,220,null,193.92,180,148.35,180,217.85,280,180,null,null,9,"",{"$f":"IF(AR33=\"\",\"\",INDEX(_xlfn._xlws.FILTER($AQ$1:$BZ$1,$AQ$22:$BZ$22=AR33),COUNTIF($AR$25:AR33, AR33)))","v":""},""]
[null,null,null,null,null,null,null,null,null,null,null,null,null,null,null,null,null,null,null,null,null,null,null,null,null,null,null,null,null,null,null,null,null,null,null,null,null,null,null,null,null,null,10,"",{"$f":"IF(AR34=\"\",\"\",INDEX(_xlfn._xlws.FILTER($AQ$1:$BZ$1,$AQ$22:$BZ$22=AR34),COUNTIF($AR$25:AR34, AR34)))","v":""},""]
[null,null,null,null,null,null,null,null,null,null,null,null,null,null,null,null,null,null,null,null,null,null,null,null,null,null,null,null,null,null,null,null,null,null,null,null,null,null,null,null,null,null,11,"",{"$f":"IF(AR35=\"\",\"\",INDEX(_xlfn._xlws.FILTER($AQ$1:$BZ$1,$AQ$22:$BZ$22=AR35),COUNTIF($AR$25:AR35, AR35)))","v":""},""]
[null,null,null,null,null,null,null,null,null,null,null,null,null,null,null,null,null,null,null,null,null,null,null,null,null,null,null,null,null,null,null,null,null,null,null,null,null,null,null,null,null,null,12,"",{"$f":"IF(AR36=\"\",\"\",INDEX(_xlfn._xlws.FILTER($AQ$1:$BZ$1,$AQ$22:$BZ$22=AR36),COUNTIF($AR$25:AR36, AR36)))","v":""},""]
[null,null,null,null,{"$f":"+E1&E38","v":"Bellucci S.p.A.13"},{"$f":"+F1&F38","v":"Bsistemi S.p.A.13"},"Converge S.r.l.13","Eurome S.r.l.13",null,"ITD Solutions S.p.A.13","Posdata S.r.l.13","RTI Trust Technology Services  S.r.l.13","Sistemi Hardware & Software S.p.A.13","Team Memores Computer S.p.A.13","Wetech’s S.p.A.13","Zucchetti Informatica S.p.A.13","Bellucci S.p.A.14","Bsistemi S.p.A.14","Converge S.r.l.14","Eurome S.r.l.14","Hitech Distribuzione Informatica S.r.l.14","ITD Solutions S.p.A.14","Posdata S.r.l.14","RTI Trust Technology Services  S.r.l.14","Sistemi Hardware & Software S.p.A.14","Team Memores Computer S.p.A.14","Wetech’s S.p.A.14","Zucchetti Informatica S.p.A.14","Bellucci S.p.A.15","Bsistemi S.p.A.15","Converge S.r.l.15","Eurome S.r.l.15",null,"ITD Solutions S.p.A.15","Posdata S.r.l.15","RTI Trust Technology Services  S.r.l.15","Sistemi Hardware & Software S.p.A.15","Team Memores Computer S.p.A.15","Wetech’s S.p.A.15","Zucchetti Informatica S.p.A.15"]
[null,null,null,null,13,13,13,13,null,13,13,13,13,13,13,13,14,14,14,14,14,14,14,14,14,14,14,14,15,15,15,15,null,15,15,15,15,15,15,15]
["Prodotto principale configurazione base","PC portatile da 15''",null,null,"HP EliteBook 630 G11","Dell Pro 13 Plus","LENOVO ThinkPad L13 Gen 6","Dell Pro 13 Plus",null,"LENOVO THINKPAD L13 Gen 6","Lenovo ThinkPad L13 Gen 6","HP EliteBook 630 G11","HP Elitebook 630 G11","Lenovo ThinkPad L13 Gen 6 ","HP EliteBook 630 G11","HP EliteBook 630 G11","HP Probook 440 G11","Dell Pro 14 Plus","LENOVO ThinkBook 14 G7 ARP","Dell Pro 14 Plus","Acer TM P214","LENOVO ThinkBook 14 G8 IAL","Lenovo ThinkPad L14 Gen 6","HP EliteBook 640 G11","HP ELITEBOOK 6 G1a 14","Lenovo ThinkPad L14 Gen 6","HP ProBook 440 G11","HP ProBook 445 G11","HP Probook 465 G11","Dell Pro 16 Plus","LENOVO ThinkBook 16 G8 IAL","Dell Pro 16 Plus",null,"LENOVO ThinkBook 16 G7 ARP","Lenovo ThinkPad L16 Gen 2","HP EliteBook 660 G11","HP Elitebook 6 G1a 16","Lenovo ThinkPad L16 Gen 2","HP ProBook 460 G11","HP ProBook 460 G11"]

{"sheet":"Congelam_PC","index":5,"n_rows":38,"n_cols":7,"rows_kept":38,"cut":false,"hidden":true,"merged":[]}
[]
[null,"OE","PC","Concatena","Congelamento",null,"Selezionare 1 SOLO per i prodotti momentanemaente congelati."]
[null,"Bellucci S.p.A.",13,{"$f":"+Tabella2[[#This Row],[OE]]&Tabella2[[#This Row],[PC]]","v":"Bellucci S.p.A.13"}]
[null,"Bsistemi S.p.A.",13,{"$f":"+Tabella2[[#This Row],[OE]]&Tabella2[[#This Row],[PC]]","v":"Bsistemi S.p.A.13"}]
[null,"Converge S.r.l.",13,{"$f":"+Tabella2[[#This Row],[OE]]&Tabella2[[#This Row],[PC]]","v":"Converge S.r.l.13"}]
[null,"Eurome S.r.l.",13,{"$f":"+Tabella2[[#This Row],[OE]]&Tabella2[[#This Row],[PC]]","v":"Eurome S.r.l.13"}]
[null,"Hitech Distribuzione Informatica S.r.l.",13,{"$f":"+Tabella2[[#This Row],[OE]]&Tabella2[[#This Row],[PC]]","v":"Hitech Distribuzione Informatica S.r.l.13"}]
[null,"ITD Solutions S.p.A.",13,{"$f":"+Tabella2[[#This Row],[OE]]&Tabella2[[#This Row],[PC]]","v":"ITD Solutions S.p.A.13"}]
[null,"Posdata S.r.l.",13,{"$f":"+Tabella2[[#This Row],[OE]]&Tabella2[[#This Row],[PC]]","v":"Posdata S.r.l.13"}]
[null,"RTI Trust Technology Services  S.r.l.",13,{"$f":"+Tabella2[[#This Row],[OE]]&Tabella2[[#This Row],[PC]]","v":"RTI Trust Technology Services  S.r.l.13"}]
[null,"Sistemi Hardware & Software S.p.A.",13,{"$f":"+Tabella2[[#This Row],[OE]]&Tabella2[[#This Row],[PC]]","v":"Sistemi Hardware & Software S.p.A.13"}]
[null,"Team Memores Computer S.p.A.",13,{"$f":"+Tabella2[[#This Row],[OE]]&Tabella2[[#This Row],[PC]]","v":"Team Memores Computer S.p.A.13"}]
[null,"Wetech’s S.p.A.",13,{"$f":"+Tabella2[[#This Row],[OE]]&Tabella2[[#This Row],[PC]]","v":"Wetech’s S.p.A.13"}]
[null,"Zucchetti Informatica S.p.A.",13,{"$f":"+Tabella2[[#This Row],[OE]]&Tabella2[[#This Row],[PC]]","v":"Zucchetti Informatica S.p.A.13"}]
[null,"Bellucci S.p.A.",14,{"$f":"+Tabella2[[#This Row],[OE]]&Tabella2[[#This Row],[PC]]","v":"Bellucci S.p.A.14"}]
[null,"Bsistemi S.p.A.",14,{"$f":"+Tabella2[[#This Row],[OE]]&Tabella2[[#This Row],[PC]]","v":"Bsistemi S.p.A.14"}]
[null,"Converge S.r.l.",14,{"$f":"+Tabella2[[#This Row],[OE]]&Tabella2[[#This Row],[PC]]","v":"Converge S.r.l.14"}]
[null,"Eurome S.r.l.",14,{"$f":"+Tabella2[[#This Row],[OE]]&Tabella2[[#This Row],[PC]]","v":"Eurome S.r.l.14"}]
[null,"Hitech Distribuzione Informatica S.r.l.",14,{"$f":"+Tabella2[[#This Row],[OE]]&Tabella2[[#This Row],[PC]]","v":"Hitech Distribuzione Informatica S.r.l.14"}]
[null,"ITD Solutions S.p.A.",14,{"$f":"+Tabella2[[#This Row],[OE]]&Tabella2[[#This Row],[PC]]","v":"ITD Solutions S.p.A.14"}]
[null,"Posdata S.r.l.",14,{"$f":"+Tabella2[[#This Row],[OE]]&Tabella2[[#This Row],[PC]]","v":"Posdata S.r.l.14"}]
[null,"RTI Trust Technology Services  S.r.l.",14,{"$f":"+Tabella2[[#This Row],[OE]]&Tabella2[[#This Row],[PC]]","v":"RTI Trust Technology Services  S.r.l.14"}]
[null,"Sistemi Hardware & Software S.p.A.",14,{"$f":"+Tabella2[[#This Row],[OE]]&Tabella2[[#This Row],[PC]]","v":"Sistemi Hardware & Software S.p.A.14"}]
[null,"Team Memores Computer S.p.A.",14,{"$f":"+Tabella2[[#This Row],[OE]]&Tabella2[[#This Row],[PC]]","v":"Team Memores Computer S.p.A.14"}]
[null,"Wetech’s S.p.A.",14,{"$f":"+Tabella2[[#This Row],[OE]]&Tabella2[[#This Row],[PC]]","v":"Wetech’s S.p.A.14"}]
[null,"Zucchetti Informatica S.p.A.",14,{"$f":"+Tabella2[[#This Row],[OE]]&Tabella2[[#This Row],[PC]]","v":"Zucchetti Informatica S.p.A.14"}]
[null,"Bellucci S.p.A.",15,{"$f":"+Tabella2[[#This Row],[OE]]&Tabella2[[#This Row],[PC]]","v":"Bellucci S.p.A.15"},1]
[null,"Bsistemi S.p.A.",15,{"$f":"+Tabella2[[#This Row],[OE]]&Tabella2[[#This Row],[PC]]","v":"Bsistemi S.p.A.15"}]
[null,"Converge S.r.l.",15,{"$f":"+Tabella2[[#This Row],[OE]]&Tabella2[[#This Row],[PC]]","v":"Converge S.r.l.15"}]
[null,"Eurome S.r.l.",15,{"$f":"+Tabella2[[#This Row],[OE]]&Tabella2[[#This Row],[PC]]","v":"Eurome S.r.l.15"}]
[null,"Hitech Distribuzione Informatica S.r.l.",15,{"$f":"+Tabella2[[#This Row],[OE]]&Tabella2[[#This Row],[PC]]","v":"Hitech Distribuzione Informatica S.r.l.15"}]
[null,"ITD Solutions S.p.A.",15,{"$f":"+Tabella2[[#This Row],[OE]]&Tabella2[[#This Row],[PC]]","v":"ITD Solutions S.p.A.15"}]
[null,"Posdata S.r.l.",15,{"$f":"+Tabella2[[#This Row],[OE]]&Tabella2[[#This Row],[PC]]","v":"Posdata S.r.l.15"}]
[null,"RTI Trust Technology Services  S.r.l.",15,{"$f":"+Tabella2[[#This Row],[OE]]&Tabella2[[#This Row],[PC]]","v":"RTI Trust Technology Services  S.r.l.15"}]
[null,"Sistemi Hardware & Software S.p.A.",15,{"$f":"+Tabella2[[#This Row],[OE]]&Tabella2[[#This Row],[PC]]","v":"Sistemi Hardware & Software S.p.A.15"}]
[null,"Team Memores Computer S.p.A.",15,{"$f":"+Tabella2[[#This Row],[OE]]&Tabella2[[#This Row],[PC]]","v":"Team Memores Computer S.p.A.15"}]
[null,"Wetech’s S.p.A.",15,{"$f":"+Tabella2[[#This Row],[OE]]&Tabella2[[#This Row],[PC]]","v":"Wetech’s S.p.A.15"}]
[null,"Zucchetti Informatica S.p.A.",15,{"$f":"+Tabella2[[#This Row],[OE]]&Tabella2[[#This Row],[PC]]","v":"Zucchetti Informatica S.p.A.15"}]

{"sheet":"Config_Dispo","index":6,"n_rows":867,"n_cols":10,"rows_kept":867,"cut":false,"hidden":true,"merged":[]}
[null,{"$f":"D1&E1&F1&G1&I1","v":"Media8512Distribuzione Linux0"},null,{"$f":"+Input!D8","v":"Media"},{"$f":"VLOOKUP(Input!D9,Ana!D2:E4,2,FALSE)","v":8},{"$f":"VLOOKUP(Input!D10,Ana!F2:G4,2,FALSE)","v":512},{"$f":"VLOOKUP(Input!D11,Ana!H2:I4,2,FALSE)","v":"Distribuzione Linux"},null,{"$f":"+Input!D4","v":0}]
[]
[null,"Concatena","OE","CPU","RAM (GB)","SSD (GB)","Sistema Operativo","Si/No","PC","Config dispo"]
[null,{"$f":"C4&D4&E4&F4&G4&I4","v":"Bellucci S.p.A.Media8512Distribuzione Linux15\""},"Bellucci S.p.A.","Media",8,512,"Distribuzione Linux","SI","15\"",{"$f":"+IF(H4=\"NO\",0,1)","v":1}]
[null,{"$f":"C5&D5&E5&F5&G5&I5","v":"Bellucci S.p.A.Media8512Windows 11 Pro Education15\""},"Bellucci S.p.A.","Media",8,512,"Windows 11 Pro Education","SI","15\"",1]
[null,"Bellucci S.p.A.Media8512Windows 11 Pro15\"","Bellucci S.p.A.","Media",8,512,"Windows 11 Pro","SI","15\"",1]
[null,"Bellucci S.p.A.Media16512Distribuzione Linux15\"","Bellucci S.p.A.","Media",16,512,"Distribuzione Linux","SI","15\"",1]
[null,"Bellucci S.p.A.Media16512Windows 11 Pro Education15\"","Bellucci S.p.A.","Media",16,512,"Windows 11 Pro Education","SI","15\"",1]
[null,"Bellucci S.p.A.Media16512Windows 11 Pro15\"","Bellucci S.p.A.","Media",16,512,"Windows 11 Pro","SI","15\"",1]
[null,"Bellucci S.p.A.Media81000Distribuzione Linux15\"","Bellucci S.p.A.","Media",8,1000,"Distribuzione Linux","SI","15\"",1]
[null,"Bellucci S.p.A.Media81000Windows 11 Pro Education15\"","Bellucci S.p.A.","Media",8,1000,"Windows 11 Pro Education","SI","15\"",1]
[null,"Bellucci S.p.A.Media81000Windows 11 Pro15\"","Bellucci S.p.A.","Media",8,1000,"Windows 11 Pro","SI","15\"",1]
[null,"Bellucci S.p.A.Media161000Distribuzione Linux15\"","Bellucci S.p.A.","Media",16,1000,"Distribuzione Linux","SI","15\"",1]
[null,"Bellucci S.p.A.Media161000Windows 11 Pro Education15\"","Bellucci S.p.A.","Media",16,1000,"Windows 11 Pro Education","SI","15\"",1]
[null,"Bellucci S.p.A.Media161000Windows 11 Pro15\"","Bellucci S.p.A.","Media",16,1000,"Windows 11 Pro","SI","15\"",1]
[null,"Bellucci S.p.A.Superiore *8512Distribuzione Linux15\"","Bellucci S.p.A.","Superiore *",8,512,"Distribuzione Linux","SI","15\"",{"$f":"+IF(H16=\"NO\",0,1)","v":1}]
[null,"Bellucci S.p.A.Superiore *8512Windows 11 Pro Education15\"","Bellucci S.p.A.","Superiore *",8,512,"Windows 11 Pro Education","SI","15\"",1]
[null,"Bellucci S.p.A.Superiore *8512Windows 11 Pro15\"","Bellucci S.p.A.","Superiore *",8,512,"Windows 11 Pro","SI","15\"",1]
[null,"Bellucci S.p.A.Superiore *16512Distribuzione Linux15\"","Bellucci S.p.A.","Superiore *",16,512,"Distribuzione Linux","SI","15\"",1]
[null,"Bellucci S.p.A.Superiore *16512Windows 11 Pro Education15\"","Bellucci S.p.A.","Superiore *",16,512,"Windows 11 Pro Education","SI","15\"",1]
[null,"Bellucci S.p.A.Superiore *16512Windows 11 Pro15\"","Bellucci S.p.A.","Superiore *",16,512,"Windows 11 Pro","SI","15\"",1]
[null,"Bellucci S.p.A.Superiore *81000Distribuzione Linux15\"","Bellucci S.p.A.","Superiore *",8,1000,"Distribuzione Linux","SI","15\"",1]
[null,"Bellucci S.p.A.Superiore *81000Windows 11 Pro Education15\"","Bellucci S.p.A.","Superiore *",8,1000,"Windows 11 Pro Education","SI","15\"",1]
[null,"Bellucci S.p.A.Superiore *81000Windows 11 Pro15\"","Bellucci S.p.A.","Superiore *",8,1000,"Windows 11 Pro","SI","15\"",1]
[null,"Bellucci S.p.A.Superiore *161000Distribuzione Linux15\"","Bellucci S.p.A.","Superiore *",16,1000,"Distribuzione Linux","SI","15\"",1]
[null,"Bellucci S.p.A.Superiore *161000Windows 11 Pro Education15\"","Bellucci S.p.A.","Superiore *",16,1000,"Windows 11 Pro Education","SI","15\"",1]
[null,"Bellucci S.p.A.Superiore *161000Windows 11 Pro15\"","Bellucci S.p.A.","Superiore *",16,1000,"Windows 11 Pro","SI","15\"",1]
[null,"Bellucci S.p.A.Media8512Distribuzione Linux14\"","Bellucci S.p.A.","Media",8,512,"Distribuzione Linux","SI","14\"",1]
[null,"Bellucci S.p.A.Media8512Windows 11 Pro Education14\"","Bellucci S.p.A.","Media",8,512,"Windows 11 Pro Education","SI","14\"",1]
[null,"Bellucci S.p.A.Media8512Windows 11 Pro14\"","Bellucci S.p.A.","Media",8,512,"Windows 11 Pro","SI","14\"",1]
[null,"Bellucci S.p.A.Media16512Distribuzione Linux14\"","Bellucci S.p.A.","Media",16,512,"Distribuzione Linux","SI","14\"",1]
[null,"Bellucci S.p.A.Media16512Windows 11 Pro Education14\"","Bellucci S.p.A.","Media",16,512,"Windows 11 Pro Education","SI","14\"",1]
[null,"Bellucci S.p.A.Media16512Windows 11 Pro14\"","Bellucci S.p.A.","Media",16,512,"Windows 11 Pro","SI","14\"",1]
[null,"Bellucci S.p.A.Media81000Distribuzione Linux14\"","Bellucci S.p.A.","Media",8,1000,"Distribuzione Linux","SI","14\"",1]
[null,"Bellucci S.p.A.Media81000Windows 11 Pro Education14\"","Bellucci S.p.A.","Media",8,1000,"Windows 11 Pro Education","SI","14\"",1]
[null,"Bellucci S.p.A.Media81000Windows 11 Pro14\"","Bellucci S.p.A.","Media",8,1000,"Windows 11 Pro","SI","14\"",1]
[null,"Bellucci S.p.A.Media161000Distribuzione Linux14\"","Bellucci S.p.A.","Media",16,1000,"Distribuzione Linux","SI","14\"",1]
[null,"Bellucci S.p.A.Media161000Windows 11 Pro Education14\"","Bellucci S.p.A.","Media",16,1000,"Windows 11 Pro Education","SI","14\"",1]
[null,"Bellucci S.p.A.Media161000Windows 11 Pro14\"","Bellucci S.p.A.","Media",16,1000,"Windows 11 Pro","SI","14\"",1]
[null,"Bellucci S.p.A.Superiore *8512Distribuzione Linux14\"","Bellucci S.p.A.","Superiore *",8,512,"Distribuzione Linux","SI","14\"",1]
[null,"Bellucci S.p.A.Superiore *8512Windows 11 Pro Education14\"","Bellucci S.p.A.","Superiore *",8,512,"Windows 11 Pro Education","SI","14\"",1]
[null,"Bellucci S.p.A.Superiore *8512Windows 11 Pro14\"","Bellucci S.p.A.","Superiore *",8,512,"Windows 11 Pro","SI","14\"",1]
[null,"Bellucci S.p.A.Superiore *16512Distribuzione Linux14\"","Bellucci S.p.A.","Superiore *",16,512,"Distribuzione Linux","SI","14\"",1]
[null,"Bellucci S.p.A.Superiore *16512Windows 11 Pro Education14\"","Bellucci S.p.A.","Superiore *",16,512,"Windows 11 Pro Education","SI","14\"",1]
[null,"Bellucci S.p.A.Superiore *16512Windows 11 Pro14\"","Bellucci S.p.A.","Superiore *",16,512,"Windows 11 Pro","SI","14\"",1]
[null,"Bellucci S.p.A.Superiore *81000Distribuzione Linux14\"","Bellucci S.p.A.","Superiore *",8,1000,"Distribuzione Linux","SI","14\"",1]
[null,"Bellucci S.p.A.Superiore *81000Windows 11 Pro Education14\"","Bellucci S.p.A.","Superiore *",8,1000,"Windows 11 Pro Education","SI","14\"",1]
[null,"Bellucci S.p.A.Superiore *81000Windows 11 Pro14\"","Bellucci S.p.A.","Superiore *",8,1000,"Windows 11 Pro","SI","14\"",1]
[null,"Bellucci S.p.A.Superiore *161000Distribuzione Linux14\"","Bellucci S.p.A.","Superiore *",16,1000,"Distribuzione Linux","SI","14\"",1]
[null,"Bellucci S.p.A.Superiore *161000Windows 11 Pro Education14\"","Bellucci S.p.A.","Superiore *",16,1000,"Windows 11 Pro Education","SI","14\"",1]
[null,"Bellucci S.p.A.Superiore *161000Windows 11 Pro14\"","Bellucci S.p.A.","Superiore *",16,1000,"Windows 11 Pro","SI","14\"",1]
[null,"Bellucci S.p.A.Media8512Distribuzione Linux13\"","Bellucci S.p.A.","Media",8,512,"Distribuzione Linux","SI","13\"",1]
[null,"Bellucci S.p.A.Media8512Windows 11 Pro Education13\"","Bellucci S.p.A.","Media",8,512,"Windows 11 Pro Education","SI","13\"",1]
[null,"Bellucci S.p.A.Media8512Windows 11 Pro13\"","Bellucci S.p.A.","Media",8,512,"Windows 11 Pro","SI","13\"",1]
[null,"Bellucci S.p.A.Media16512Distribuzione Linux13\"","Bellucci S.p.A.","Media",16,512,"Distribuzione Linux","SI","13\"",1]
[null,"Bellucci S.p.A.Media16512Windows 11 Pro Education13\"","Bellucci S.p.A.","Media",16,512,"Windows 11 Pro Education","SI","13\"",1]
[null,"Bellucci S.p.A.Media16512Windows 11 Pro13\"","Bellucci S.p.A.","Media",16,512,"Windows 11 Pro","SI","13\"",1]
[null,"Bellucci S.p.A.Media81000Distribuzione Linux13\"","Bellucci S.p.A.","Media",8,1000,"Distribuzione Linux","SI","13\"",1]
[null,"Bellucci S.p.A.Media81000Windows 11 Pro Education13\"","Bellucci S.p.A.","Media",8,1000,"Windows 11 Pro Education","SI","13\"",1]
[null,"Bellucci S.p.A.Media81000Windows 11 Pro13\"","Bellucci S.p.A.","Media",8,1000,"Windows 11 Pro","SI","13\"",1]
[null,"Bellucci S.p.A.Media161000Distribuzione Linux13\"","Bellucci S.p.A.","Media",16,1000,"Distribuzione Linux","SI","13\"",1]
[null,"Bellucci S.p.A.Media161000Windows 11 Pro Education13\"","Bellucci S.p.A.","Media",16,1000,"Windows 11 Pro Education","SI","13\"",1]
[null,"Bellucci S.p.A.Media161000Windows 11 Pro13\"","Bellucci S.p.A.","Media",16,1000,"Windows 11 Pro","SI","13\"",1]
[null,"Bellucci S.p.A.Superiore *8512Distribuzione Linux13\"","Bellucci S.p.A.","Superiore *",8,512,"Distribuzione Linux","SI","13\"",1]
[null,"Bellucci S.p.A.Superiore *8512Windows 11 Pro Education13\"","Bellucci S.p.A.","Superiore *",8,512,"Windows 11 Pro Education","SI","13\"",1]
[null,"Bellucci S.p.A.Superiore *8512Windows 11 Pro13\"","Bellucci S.p.A.","Superiore *",8,512,"Windows 11 Pro","SI","13\"",1]
[null,"Bellucci S.p.A.Superiore *16512Distribuzione Linux13\"","Bellucci S.p.A.","Superiore *",16,512,"Distribuzione Linux","SI","13\"",1]
[null,"Bellucci S.p.A.Superiore *16512Windows 11 Pro Education13\"","Bellucci S.p.A.","Superiore *",16,512,"Windows 11 Pro Education","SI","13\"",1]
[null,{"$f":"C69&D69&E69&F69&G69&I69","v":"Bellucci S.p.A.Superiore *16512Windows 11 Pro13\""},"Bellucci S.p.A.","Superiore *",16,512,"Windows 11 Pro","SI","13\"",{"$f":"+IF(H69=\"NO\",0,1)","v":1}]
[null,"Bellucci S.p.A.Superiore *81000Distribuzione Linux13\"","Bellucci S.p.A.","Superiore *",8,1000,"Distribuzione Linux","SI","13\"",1]
[null,"Bellucci S.p.A.Superiore *81000Windows 11 Pro Education13\"","Bellucci S.p.A.","Superiore *",8,1000,"Windows 11 Pro Education","SI","13\"",1]
[null,"Bellucci S.p.A.Superiore *81000Windows 11 Pro13\"","Bellucci S.p.A.","Superiore *",8,1000,"Windows 11 Pro","SI","13\"",1]
[null,"Bellucci S.p.A.Superiore *161000Distribuzione Linux13\"","Bellucci S.p.A.","Superiore *",16,1000,"Distribuzione Linux","SI","13\"",1]
[null,"Bellucci S.p.A.Superiore *161000Windows 11 Pro Education13\"","Bellucci S.p.A.","Superiore *",16,1000,"Windows 11 Pro Education","SI","13\"",1]
[null,"Bellucci S.p.A.Superiore *161000Windows 11 Pro13\"","Bellucci S.p.A.","Superiore *",16,1000,"Windows 11 Pro","SI","13\"",1]
[null,"Bsistemi S.p.A.Media8512Distribuzione Linux15\"","Bsistemi S.p.A.","Media",8,512,"Distribuzione Linux","SI","15\"",1]
[null,"Bsistemi S.p.A.Media8512Windows 11 Pro Education15\"","Bsistemi S.p.A.","Media",8,512,"Windows 11 Pro Education","SI","15\"",1]
[null,"Bsistemi S.p.A.Media8512Windows 11 Pro15\"","Bsistemi S.p.A.","Media",8,512,"Windows 11 Pro","SI","15\"",1]
[null,"Bsistemi S.p.A.Media16512Distribuzione Linux15\"","Bsistemi S.p.A.","Media",16,512,"Distribuzione Linux","SI","15\"",1]
[null,"Bsistemi S.p.A.Media16512Windows 11 Pro Education15\"","Bsistemi S.p.A.","Media",16,512,"Windows 11 Pro Education","SI","15\"",1]
[null,"Bsistemi S.p.A.Media16512Windows 11 Pro15\"","Bsistemi S.p.A.","Media",16,512,"Windows 11 Pro","SI","15\"",1]
[null,"Bsistemi S.p.A.Media81000Distribuzione Linux15\"","Bsistemi S.p.A.","Media",8,1000,"Distribuzione Linux","SI","15\"",1]
[null,"Bsistemi S.p.A.Media81000Windows 11 Pro Education15\"","Bsistemi S.p.A.","Media",8,1000,"Windows 11 Pro Education","SI","15\"",1]
[null,"Bsistemi S.p.A.Media81000Windows 11 Pro15\"","Bsistemi S.p.A.","Media",8,1000,"Windows 11 Pro","SI","15\"",1]
[null,"Bsistemi S.p.A.Media161000Distribuzione Linux15\"","Bsistemi S.p.A.","Media",16,1000,"Distribuzione Linux","SI","15\"",1]
[null,"Bsistemi S.p.A.Media161000Windows 11 Pro Education15\"","Bsistemi S.p.A.","Media",16,1000,"Windows 11 Pro Education","SI","15\"",1]
[null,"Bsistemi S.p.A.Media161000Windows 11 Pro15\"","Bsistemi S.p.A.","Media",16,1000,"Windows 11 Pro","SI","15\"",1]
[null,"Bsistemi S.p.A.Superiore *8512Distribuzione Linux15\"","Bsistemi S.p.A.","Superiore *",8,512,"Distribuzione Linux","SI","15\"",1]
[null,"Bsistemi S.p.A.Superiore *8512Windows 11 Pro Education15\"","Bsistemi S.p.A.","Superiore *",8,512,"Windows 11 Pro Education","NO","15\"",0]
[null,"Bsistemi S.p.A.Superiore *8512Windows 11 Pro15\"","Bsistemi S.p.A.","Superiore *",8,512,"Windows 11 Pro","SI","15\"",1]
[null,"Bsistemi S.p.A.Superiore *16512Distribuzione Linux15\"","Bsistemi S.p.A.","Superiore *",16,512,"Distribuzione Linux","SI","15\"",1]
[null,"Bsistemi S.p.A.Superiore *16512Windows 11 Pro Education15\"","Bsistemi S.p.A.","Superiore *",16,512,"Windows 11 Pro Education","NO","15\"",0]
[null,"Bsistemi S.p.A.Superiore *16512Windows 11 Pro15\"","Bsistemi S.p.A.","Superiore *",16,512,"Windows 11 Pro","SI","15\"",1]
[null,"Bsistemi S.p.A.Superiore *81000Distribuzione Linux15\"","Bsistemi S.p.A.","Superiore *",8,1000,"Distribuzione Linux","SI","15\"",1]
[null,"Bsistemi S.p.A.Superiore *81000Windows 11 Pro Education15\"","Bsistemi S.p.A.","Superiore *",8,1000,"Windows 11 Pro Education","NO","15\"",0]
[null,"Bsistemi S.p.A.Superiore *81000Windows 11 Pro15\"","Bsistemi S.p.A.","Superiore *",8,1000,"Windows 11 Pro","SI","15\"",1]
[null,"Bsistemi S.p.A.Superiore *161000Distribuzione Linux15\"","Bsistemi S.p.A.","Superiore *",16,1000,"Distribuzione Linux","SI","15\"",1]
[null,"Bsistemi S.p.A.Superiore *161000Windows 11 Pro Education15\"","Bsistemi S.p.A.","Superiore *",16,1000,"Windows 11 Pro Education","NO","15\"",0]
[null,"Bsistemi S.p.A.Superiore *161000Windows 11 Pro15\"","Bsistemi S.p.A.","Superiore *",16,1000,"Windows 11 Pro","SI","15\"",1]
[null,"Bsistemi S.p.A.Media8512Distribuzione Linux14\"","Bsistemi S.p.A.","Media",8,512,"Distribuzione Linux","SI","14\"",1]
[null,"Bsistemi S.p.A.Media8512Windows 11 Pro Education14\"","Bsistemi S.p.A.","Media",8,512,"Windows 11 Pro Education","SI","14\"",1]
[null,"Bsistemi S.p.A.Media8512Windows 11 Pro14\"","Bsistemi S.p.A.","Media",8,512,"Windows 11 Pro","SI","14\"",1]
[null,"Bsistemi S.p.A.Media16512Distribuzione Linux14\"","Bsistemi S.p.A.","Media",16,512,"Distribuzione Linux","SI","14\"",1]
[null,"Bsistemi S.p.A.Media16512Windows 11 Pro Education14\"","Bsistemi S.p.A.","Media",16,512,"Windows 11 Pro Education","SI","14\"",1]
[null,"Bsistemi S.p.A.Media16512Windows 11 Pro14\"","Bsistemi S.p.A.","Media",16,512,"Windows 11 Pro","SI","14\"",1]
[null,"Bsistemi S.p.A.Media81000Distribuzione Linux14\"","Bsistemi S.p.A.","Media",8,1000,"Distribuzione Linux","SI","14\"",1]
[null,"Bsistemi S.p.A.Media81000Windows 11 Pro Education14\"","Bsistemi S.p.A.","Media",8,1000,"Windows 11 Pro Education","SI","14\"",1]
[null,"Bsistemi S.p.A.Media81000Windows 11 Pro14\"","Bsistemi S.p.A.","Media",8,1000,"Windows 11 Pro","SI","14\"",1]
[null,"Bsistemi S.p.A.Media161000Distribuzione Linux14\"","Bsistemi S.p.A.","Media",16,1000,"Distribuzione Linux","SI","14\"",1]
[null,"Bsistemi S.p.A.Media161000Windows 11 Pro Education14\"","Bsistemi S.p.A.","Media",16,1000,"Windows 11 Pro Education","SI","14\"",1]
[null,"Bsistemi S.p.A.Media161000Windows 11 Pro14\"","Bsistemi S.p.A.","Media",16,1000,"Windows 11 Pro","SI","14\"",1]
[null,"Bsistemi S.p.A.Superiore *8512Distribuzione Linux14\"","Bsistemi S.p.A.","Superiore *",8,512,"Distribuzione Linux","SI","14\"",1]
[null,"Bsistemi S.p.A.Superiore *8512Windows 11 Pro Education14\"","Bsistemi S.p.A.","Superiore *",8,512,"Windows 11 Pro Education","NO","14\"",0]
[null,"Bsistemi S.p.A.Superiore *8512Windows 11 Pro14\"","Bsistemi S.p.A.","Superiore *",8,512,"Windows 11 Pro","SI","14\"",1]
[null,"Bsistemi S.p.A.Superiore *16512Distribuzione Linux14\"","Bsistemi S.p.A.","Superiore *",16,512,"Distribuzione Linux","SI","14\"",1]
[null,"Bsistemi S.p.A.Superiore *16512Windows 11 Pro Education14\"","Bsistemi S.p.A.","Superiore *",16,512,"Windows 11 Pro Education","NO","14\"",0]
[null,"Bsistemi S.p.A.Superiore *16512Windows 11 Pro14\"","Bsistemi S.p.A.","Superiore *",16,512,"Windows 11 Pro","SI","14\"",1]
[null,"Bsistemi S.p.A.Superiore *81000Distribuzione Linux14\"","Bsistemi S.p.A.","Superiore *",8,1000,"Distribuzione Linux","SI","14\"",1]
[null,"Bsistemi S.p.A.Superiore *81000Windows 11 Pro Education14\"","Bsistemi S.p.A.","Superiore *",8,1000,"Windows 11 Pro Education","NO","14\"",0]
[null,"Bsistemi S.p.A.Superiore *81000Windows 11 Pro14\"","Bsistemi S.p.A.","Superiore *",8,1000,"Windows 11 Pro","SI","14\"",1]
[null,"Bsistemi S.p.A.Superiore *161000Distribuzione Linux14\"","Bsistemi S.p.A.","Superiore *",16,1000,"Distribuzione Linux","SI","14\"",1]
[null,"Bsistemi S.p.A.Superiore *161000Windows 11 Pro Education14\"","Bsistemi S.p.A.","Superiore *",16,1000,"Windows 11 Pro Education","NO","14\"",0]
[null,"Bsistemi S.p.A.Superiore *161000Windows 11 Pro14\"","Bsistemi S.p.A.","Superiore *",16,1000,"Windows 11 Pro","SI","14\"",1]
[null,"Bsistemi S.p.A.Media8512Distribuzione Linux13\"","Bsistemi S.p.A.","Media",8,512,"Distribuzione Linux","SI","13\"",1]
[null,"Bsistemi S.p.A.Media8512Windows 11 Pro Education13\"","Bsistemi S.p.A.","Media",8,512,"Windows 11 Pro Education","SI","13\"",1]
[null,"Bsistemi S.p.A.Media8512Windows 11 Pro13\"","Bsistemi S.p.A.","Media",8,512,"Windows 11 Pro","SI","13\"",1]
[null,"Bsistemi S.p.A.Media16512Distribuzione Linux13\"","Bsistemi S.p.A.","Media",16,512,"Distribuzione Linux","SI","13\"",1]
[null,"Bsistemi S.p.A.Media16512Windows 11 Pro Education13\"","Bsistemi S.p.A.","Media",16,512,"Windows 11 Pro Education","SI","13\"",1]
[null,"Bsistemi S.p.A.Media16512Windows 11 Pro13\"","Bsistemi S.p.A.","Media",16,512,"Windows 11 Pro","SI","13\"",1]
[null,"Bsistemi S.p.A.Media81000Distribuzione Linux13\"","Bsistemi S.p.A.","Media",8,1000,"Distribuzione Linux","SI","13\"",1]
[null,"Bsistemi S.p.A.Media81000Windows 11 Pro Education13\"","Bsistemi S.p.A.","Media",8,1000,"Windows 11 Pro Education","SI","13\"",1]
[null,"Bsistemi S.p.A.Media81000Windows 11 Pro13\"","Bsistemi S.p.A.","Media",8,1000,"Windows 11 Pro","SI","13\"",1]
[null,{"$f":"C133&D133&E133&F133&G133&I133","v":"Bsistemi S.p.A.Media161000Distribuzione Linux13\""},"Bsistemi S.p.A.","Media",16,1000,"Distribuzione Linux","SI","13\"",{"$f":"+IF(H133=\"NO\",0,1)","v":1}]
[null,"Bsistemi S.p.A.Media161000Windows 11 Pro Education13\"","Bsistemi S.p.A.","Media",16,1000,"Windows 11 Pro Education","SI","13\"",1]
[null,"Bsistemi S.p.A.Media161000Windows 11 Pro13\"","Bsistemi S.p.A.","Media",16,1000,"Windows 11 Pro","SI","13\"",1]
[null,"Bsistemi S.p.A.Superiore *8512Distribuzione Linux13\"","Bsistemi S.p.A.","Superiore *",8,512,"Distribuzione Linux","SI","13\"",1]
[null,"Bsistemi S.p.A.Superiore *8512Windows 11 Pro Education13\"","Bsistemi S.p.A.","Superiore *",8,512,"Windows 11 Pro Education","NO","13\"",0]
[null,"Bsistemi S.p.A.Superiore *8512Windows 11 Pro13\"","Bsistemi S.p.A.","Superiore *",8,512,"Windows 11 Pro","SI","13\"",1]
[null,"Bsistemi S.p.A.Superiore *16512Distribuzione Linux13\"","Bsistemi S.p.A.","Superiore *",16,512,"Distribuzione Linux","SI","13\"",1]
[null,"Bsistemi S.p.A.Superiore *16512Windows 11 Pro Education13\"","Bsistemi S.p.A.","Superiore *",16,512,"Windows 11 Pro Education","NO","13\"",0]
[null,"Bsistemi S.p.A.Superiore *16512Windows 11 Pro13\"","Bsistemi S.p.A.","Superiore *",16,512,"Windows 11 Pro","SI","13\"",1]
[null,"Bsistemi S.p.A.Superiore *81000Distribuzione Linux13\"","Bsistemi S.p.A.","Superiore *",8,1000,"Distribuzione Linux","SI","13\"",1]
[null,"Bsistemi S.p.A.Superiore *81000Windows 11 Pro Education13\"","Bsistemi S.p.A.","Superiore *",8,1000,"Windows 11 Pro Education","NO","13\"",0]
[null,"Bsistemi S.p.A.Superiore *81000Windows 11 Pro13\"","Bsistemi S.p.A.","Superiore *",8,1000,"Windows 11 Pro","SI","13\"",1]
[null,"Bsistemi S.p.A.Superiore *161000Distribuzione Linux13\"","Bsistemi S.p.A.","Superiore *",16,1000,"Distribuzione Linux","SI","13\"",1]
[null,"Bsistemi S.p.A.Superiore *161000Windows 11 Pro Education13\"","Bsistemi S.p.A.","Superiore *",16,1000,"Windows 11 Pro Education","NO","13\"",0]
[null,"Bsistemi S.p.A.Superiore *161000Windows 11 Pro13\"","Bsistemi S.p.A.","Superiore *",16,1000,"Windows 11 Pro","SI","13\"",1]
[null,"Converge S.r.l.Media8512Distribuzione Linux15\"","Converge S.r.l.","Media",8,512,"Distribuzione Linux","SI","15\"",1]
[null,"Converge S.r.l.Media8512Windows 11 Pro Education15\"","Converge S.r.l.","Media",8,512,"Windows 11 Pro Education","SI","15\"",1]
[null,"Converge S.r.l.Media8512Windows 11 Pro15\"","Converge S.r.l.","Media",8,512,"Windows 11 Pro","SI","15\"",1]
[null,"Converge S.r.l.Media16512Distribuzione Linux15\"","Converge S.r.l.","Media",16,512,"Distribuzione Linux","SI","15\"",1]
[null,"Converge S.r.l.Media16512Windows 11 Pro Education15\"","Converge S.r.l.","Media",16,512,"Windows 11 Pro Education","SI","15\"",1]
[null,"Converge S.r.l.Media16512Windows 11 Pro15\"","Converge S.r.l.","Media",16,512,"Windows 11 Pro","SI","15\"",1]
[null,"Converge S.r.l.Media81000Distribuzione Linux15\"","Converge S.r.l.","Media",8,1000,"Distribuzione Linux","SI","15\"",1]
[null,"Converge S.r.l.Media81000Windows 11 Pro Education15\"","Converge S.r.l.","Media",8,1000,"Windows 11 Pro Education","SI","15\"",1]
[null,"Converge S.r.l.Media81000Windows 11 Pro15\"","Converge S.r.l.","Media",8,1000,"Windows 11 Pro","SI","15\"",1]
[null,"Converge S.r.l.Media161000Distribuzione Linux15\"","Converge S.r.l.","Media",16,1000,"Distribuzione Linux","SI","15\"",1]
[null,"Converge S.r.l.Media161000Windows 11 Pro Education15\"","Converge S.r.l.","Media",16,1000,"Windows 11 Pro Education","SI","15\"",1]
[null,"Converge S.r.l.Media161000Windows 11 Pro15\"","Converge S.r.l.","Media",16,1000,"Windows 11 Pro","SI","15\"",1]
[null,"Converge S.r.l.Superiore *8512Distribuzione Linux15\"","Converge S.r.l.","Superiore *",8,512,"Distribuzione Linux","SI","15\"",1]
[null,"Converge S.r.l.Superiore *8512Windows 11 Pro Education15\"","Converge S.r.l.","Superiore *",8,512,"Windows 11 Pro Education","NO","15\"",0]
[null,"Converge S.r.l.Superiore *8512Windows 11 Pro15\"","Converge S.r.l.","Superiore *",8,512,"Windows 11 Pro","SI","15\"",1]
[null,"Converge S.r.l.Superiore *16512Distribuzione Linux15\"","Converge S.r.l.","Superiore *",16,512,"Distribuzione Linux","SI","15\"",1]
[null,"Converge S.r.l.Superiore *16512Windows 11 Pro Education15\"","Converge S.r.l.","Superiore *",16,512,"Windows 11 Pro Education","NO","15\"",0]
[null,"Converge S.r.l.Superiore *16512Windows 11 Pro15\"","Converge S.r.l.","Superiore *",16,512,"Windows 11 Pro","SI","15\"",1]
[null,"Converge S.r.l.Superiore *81000Distribuzione Linux15\"","Converge S.r.l.","Superiore *",8,1000,"Distribuzione Linux","SI","15\"",1]
[null,"Converge S.r.l.Superiore *81000Windows 11 Pro Education15\"","Converge S.r.l.","Superiore *",8,1000,"Windows 11 Pro Education","NO","15\"",0]
[null,"Converge S.r.l.Superiore *81000Windows 11 Pro15\"","Converge S.r.l.","Superiore *",8,1000,"Windows 11 Pro","SI","15\"",1]
[null,"Converge S.r.l.Superiore *161000Distribuzione Linux15\"","Converge S.r.l.","Superiore *",16,1000,"Distribuzione Linux","SI","15\"",1]
[null,"Converge S.r.l.Superiore *161000Windows 11 Pro Education15\"","Converge S.r.l.","Superiore *",16,1000,"Windows 11 Pro Education","NO","15\"",0]
[null,"Converge S.r.l.Superiore *161000Windows 11 Pro15\"","Converge S.r.l.","Superiore *",16,1000,"Windows 11 Pro","SI","15\"",1]
[null,"Converge S.r.l.Media8512Distribuzione Linux14\"","Converge S.r.l.","Media",8,512,"Distribuzione Linux","SI","14\"",1]
[null,"Converge S.r.l.Media8512Windows 11 Pro Education14\"","Converge S.r.l.","Media",8,512,"Windows 11 Pro Education","SI","14\"",1]
[null,"Converge S.r.l.Media8512Windows 11 Pro14\"","Converge S.r.l.","Media",8,512,"Windows 11 Pro","SI","14\"",1]
[null,"Converge S.r.l.Media16512Distribuzione Linux14\"","Converge S.r.l.","Media",16,512,"Distribuzione Linux","SI","14\"",1]
[null,"Converge S.r.l.Media16512Windows 11 Pro Education14\"","Converge S.r.l.","Media",16,512,"Windows 11 Pro Education","SI","14\"",1]
[null,"Converge S.r.l.Media16512Windows 11 Pro14\"","Converge S.r.l.","Media",16,512,"Windows 11 Pro","SI","14\"",1]
[null,"Converge S.r.l.Media81000Distribuzione Linux14\"","Converge S.r.l.","Media",8,1000,"Distribuzione Linux","SI","14\"",1]
[null,"Converge S.r.l.Media81000Windows 11 Pro Education14\"","Converge S.r.l.","Media",8,1000,"Windows 11 Pro Education","SI","14\"",1]
[null,"Converge S.r.l.Media81000Windows 11 Pro14\"","Converge S.r.l.","Media",8,1000,"Windows 11 Pro","SI","14\"",1]
[null,"Converge S.r.l.Media161000Distribuzione Linux14\"","Converge S.r.l.","Media",16,1000,"Distribuzione Linux","SI","14\"",1]
[null,"Converge S.r.l.Media161000Windows 11 Pro Education14\"","Converge S.r.l.","Media",16,1000,"Windows 11 Pro Education","SI","14\"",1]
[null,"Converge S.r.l.Media161000Windows 11 Pro14\"","Converge S.r.l.","Media",16,1000,"Windows 11 Pro","SI","14\"",1]
[null,"Converge S.r.l.Superiore *8512Distribuzione Linux14\"","Converge S.r.l.","Superiore *",8,512,"Distribuzione Linux","SI","14\"",1]
[null,"Converge S.r.l.Superiore *8512Windows 11 Pro Education14\"","Converge S.r.l.","Superiore *",8,512,"Windows 11 Pro Education","NO","14\"",0]
[null,"Converge S.r.l.Superiore *8512Windows 11 Pro14\"","Converge S.r.l.","Superiore *",8,512,"Windows 11 Pro","SI","14\"",1]
[null,"Converge S.r.l.Superiore *16512Distribuzione Linux14\"","Converge S.r.l.","Superiore *",16,512,"Distribuzione Linux","SI","14\"",1]
[null,"Converge S.r.l.Superiore *16512Windows 11 Pro Education14\"","Converge S.r.l.","Superiore *",16,512,"Windows 11 Pro Education","NO","14\"",0]
[null,"Converge S.r.l.Superiore *16512Windows 11 Pro14\"","Converge S.r.l.","Superiore *",16,512,"Windows 11 Pro","SI","14\"",1]
[null,"Converge S.r.l.Superiore *81000Distribuzione Linux14\"","Converge S.r.l.","Superiore *",8,1000,"Distribuzione Linux","SI","14\"",1]
[null,"Converge S.r.l.Superiore *81000Windows 11 Pro Education14\"","Converge S.r.l.","Superiore *",8,1000,"Windows 11 Pro Education","NO","14\"",0]
[null,"Converge S.r.l.Superiore *81000Windows 11 Pro14\"","Converge S.r.l.","Superiore *",8,1000,"Windows 11 Pro","SI","14\"",1]
[null,"Converge S.r.l.Superiore *161000Distribuzione Linux14\"","Converge S.r.l.","Superiore *",16,1000,"Distribuzione Linux","SI","14\"",1]
[null,"Converge S.r.l.Superiore *161000Windows 11 Pro Education14\"","Converge S.r.l.","Superiore *",16,1000,"Windows 11 Pro Education","NO","14\"",0]
[null,"Converge S.r.l.Superiore *161000Windows 11 Pro14\"","Converge S.r.l.","Superiore *",16,1000,"Windows 11 Pro","SI","14\"",1]
[null,"Converge S.r.l.Media8512Distribuzione Linux13\"","Converge S.r.l.","Media",8,512,"Distribuzione Linux","SI","13\"",1]
[null,{"$f":"C197&D197&E197&F197&G197&I197","v":"Converge S.r.l.Media8512Windows 11 Pro Education13\""},"Converge S.r.l.","Media",8,512,"Windows 11 Pro Education","SI","13\"",{"$f":"+IF(H197=\"NO\",0,1)","v":1}]
[null,"Converge S.r.l.Media8512Windows 11 Pro13\"","Converge S.r.l.","Media",8,512,"Windows 11 Pro","SI","13\"",1]
[null,"Converge S.r.l.Media16512Distribuzione Linux13\"","Converge S.r.l.","Media",16,512,"Distribuzione Linux","SI","13\"",1]
[null,"Converge S.r.l.Media16512Windows 11 Pro Education13\"","Converge S.r.l.","Media",16,512,"Windows 11 Pro Education","SI","13\"",1]
[null,"Converge S.r.l.Media16512Windows 11 Pro13\"","Converge S.r.l.","Media",16,512,"Windows 11 Pro","SI","13\"",1]
[null,"Converge S.r.l.Media81000Distribuzione Linux13\"","Converge S.r.l.","Media",8,1000,"Distribuzione Linux","SI","13\"",1]
[null,"Converge S.r.l.Media81000Windows 11 Pro Education13\"","Converge S.r.l.","Media",8,1000,"Windows 11 Pro Education","SI","13\"",1]
[null,"Converge S.r.l.Media81000Windows 11 Pro13\"","Converge S.r.l.","Media",8,1000,"Windows 11 Pro","SI","13\"",1]
[null,"Converge S.r.l.Media161000Distribuzione Linux13\"","Converge S.r.l.","Media",16,1000,"Distribuzione Linux","SI","13\"",1]
[null,"Converge S.r.l.Media161000Windows 11 Pro Education13\"","Converge S.r.l.","Media",16,1000,"Windows 11 Pro Education","SI","13\"",1]
[null,"Converge S.r.l.Media161000Windows 11 Pro13\"","Converge S.r.l.","Media",16,1000,"Windows 11 Pro","SI","13\"",1]
[null,"Converge S.r.l.Superiore *8512Distribuzione Linux13\"","Converge S.r.l.","Superiore *",8,512,"Distribuzione Linux","SI","13\"",1]
[null,"Converge S.r.l.Superiore *8512Windows 11 Pro Education13\"","Converge S.r.l.","Superiore *",8,512,"Windows 11 Pro Education","NO","13\"",0]
[null,"Converge S.r.l.Superiore *8512Windows 11 Pro13\"","Converge S.r.l.","Superiore *",8,512,"Windows 11 Pro","SI","13\"",1]
[null,"Converge S.r.l.Superiore *16512Distribuzione Linux13\"","Converge S.r.l.","Superiore *",16,512,"Distribuzione Linux","SI","13\"",1]
[null,"Converge S.r.l.Superiore *16512Windows 11 Pro Education13\"","Converge S.r.l.","Superiore *",16,512,"Windows 11 Pro Education","NO","13\"",0]
[null,"Converge S.r.l.Superiore *16512Windows 11 Pro13\"","Converge S.r.l.","Superiore *",16,512,"Windows 11 Pro","SI","13\"",1]
[null,"Converge S.r.l.Superiore *81000Distribuzione Linux13\"","Converge S.r.l.","Superiore *",8,1000,"Distribuzione Linux","SI","13\"",1]
[null,"Converge S.r.l.Superiore *81000Windows 11 Pro Education13\"","Converge S.r.l.","Superiore *",8,1000,"Windows 11 Pro Education","NO","13\"",0]
[null,"Converge S.r.l.Superiore *81000Windows 11 Pro13\"","Converge S.r.l.","Superiore *",8,1000,"Windows 11 Pro","SI","13\"",1]
[null,"Converge S.r.l.Superiore *161000Distribuzione Linux13\"","Converge S.r.l.","Superiore *",16,1000,"Distribuzione Linux","SI","13\"",1]
[null,"Converge S.r.l.Superiore *161000Windows 11 Pro Education13\"","Converge S.r.l.","Superiore *",16,1000,"Windows 11 Pro Education","NO","13\"",0]
[null,"Converge S.r.l.Superiore *161000Windows 11 Pro13\"","Converge S.r.l.","Superiore *",16,1000,"Windows 11 Pro","SI","13\"",1]
[null,"Eurome S.r.l.Media8512Distribuzione Linux15\"","Eurome S.r.l.","Media",8,512,"Distribuzione Linux","SI","15\"",1]
[null,"Eurome S.r.l.Media8512Windows 11 Pro Education15\"","Eurome S.r.l.","Media",8,512,"Windows 11 Pro Education","SI","15\"",1]
[null,"Eurome S.r.l.Media8512Windows 11 Pro15\"","Eurome S.r.l.","Media",8,512,"Windows 11 Pro","SI","15\"",1]
[null,"Eurome S.r.l.Media16512Distribuzione Linux15\"","Eurome S.r.l.","Media",16,512,"Distribuzione Linux","SI","15\"",1]
[null,"Eurome S.r.l.Media16512Windows 11 Pro Education15\"","Eurome S.r.l.","Media",16,512,"Windows 11 Pro Education","SI","15\"",1]
[null,"Eurome S.r.l.Media16512Windows 11 Pro15\"","Eurome S.r.l.","Media",16,512,"Windows 11 Pro","SI","15\"",1]
[null,"Eurome S.r.l.Media81000Distribuzione Linux15\"","Eurome S.r.l.","Media",8,1000,"Distribuzione Linux","SI","15\"",1]
[null,"Eurome S.r.l.Media81000Windows 11 Pro Education15\"","Eurome S.r.l.","Media",8,1000,"Windows 11 Pro Education","SI","15\"",1]
[null,"Eurome S.r.l.Media81000Windows 11 Pro15\"","Eurome S.r.l.","Media",8,1000,"Windows 11 Pro","SI","15\"",1]
[null,"Eurome S.r.l.Media161000Distribuzione Linux15\"","Eurome S.r.l.","Media",16,1000,"Distribuzione Linux","SI","15\"",1]
[null,"Eurome S.r.l.Media161000Windows 11 Pro Education15\"","Eurome S.r.l.","Media",16,1000,"Windows 11 Pro Education","SI","15\"",1]
[null,"Eurome S.r.l.Media161000Windows 11 Pro15\"","Eurome S.r.l.","Media",16,1000,"Windows 11 Pro","SI","15\"",1]
[null,"Eurome S.r.l.Superiore *8512Distribuzione Linux15\"","Eurome S.r.l.","Superiore *",8,512,"Distribuzione Linux","SI","15\"",1]
[null,"Eurome S.r.l.Superiore *8512Windows 11 Pro Education15\"","Eurome S.r.l.","Superiore *",8,512,"Windows 11 Pro Education","NO","15\"",0]
[null,"Eurome S.r.l.Superiore *8512Windows 11 Pro15\"","Eurome S.r.l.","Superiore *",8,512,"Windows 11 Pro","SI","15\"",1]
[null,"Eurome S.r.l.Superiore *16512Distribuzione Linux15\"","Eurome S.r.l.","Superiore *",16,512,"Distribuzione Linux","SI","15\"",1]
[null,"Eurome S.r.l.Superiore *16512Windows 11 Pro Education15\"","Eurome S.r.l.","Superiore *",16,512,"Windows 11 Pro Education","NO","15\"",0]
[null,"Eurome S.r.l.Superiore *16512Windows 11 Pro15\"","Eurome S.r.l.","Superiore *",16,512,"Windows 11 Pro","SI","15\"",1]
[null,"Eurome S.r.l.Superiore *81000Distribuzione Linux15\"","Eurome S.r.l.","Superiore *",8,1000,"Distribuzione Linux","SI","15\"",1]
[null,"Eurome S.r.l.Superiore *81000Windows 11 Pro Education15\"","Eurome S.r.l.","Superiore *",8,1000,"Windows 11 Pro Education","NO","15\"",0]
[null,"Eurome S.r.l.Superiore *81000Windows 11 Pro15\"","Eurome S.r.l.","Superiore *",8,1000,"Windows 11 Pro","SI","15\"",1]
[null,"Eurome S.r.l.Superiore *161000Distribuzione Linux15\"","Eurome S.r.l.","Superiore *",16,1000,"Distribuzione Linux","SI","15\"",1]
[null,"Eurome S.r.l.Superiore *161000Windows 11 Pro Education15\"","Eurome S.r.l.","Superiore *",16,1000,"Windows 11 Pro Education","NO","15\"",0]
[null,"Eurome S.r.l.Superiore *161000Windows 11 Pro15\"","Eurome S.r.l.","Superiore *",16,1000,"Windows 11 Pro","SI","15\"",1]
[null,"Eurome S.r.l.Media8512Distribuzione Linux14\"","Eurome S.r.l.","Media",8,512,"Distribuzione Linux","SI","14\"",1]
[null,"Eurome S.r.l.Media8512Windows 11 Pro Education14\"","Eurome S.r.l.","Media",8,512,"Windows 11 Pro Education","SI","14\"",1]
[null,"Eurome S.r.l.Media8512Windows 11 Pro14\"","Eurome S.r.l.","Media",8,512,"Windows 11 Pro","SI","14\"",1]
[null,"Eurome S.r.l.Media16512Distribuzione Linux14\"","Eurome S.r.l.","Media",16,512,"Distribuzione Linux","SI","14\"",1]
[null,"Eurome S.r.l.Media16512Windows 11 Pro Education14\"","Eurome S.r.l.","Media",16,512,"Windows 11 Pro Education","SI","14\"",1]
[null,"Eurome S.r.l.Media16512Windows 11 Pro14\"","Eurome S.r.l.","Media",16,512,"Windows 11 Pro","SI","14\"",1]
[null,"Eurome S.r.l.Media81000Distribuzione Linux14\"","Eurome S.r.l.","Media",8,1000,"Distribuzione Linux","SI","14\"",1]
[null,"Eurome S.r.l.Media81000Windows 11 Pro Education14\"","Eurome S.r.l.","Media",8,1000,"Windows 11 Pro Education","SI","14\"",1]
[null,"Eurome S.r.l.Media81000Windows 11 Pro14\"","Eurome S.r.l.","Media",8,1000,"Windows 11 Pro","SI","14\"",1]
[null,"Eurome S.r.l.Media161000Distribuzione Linux14\"","Eurome S.r.l.","Media",16,1000,"Distribuzione Linux","SI","14\"",1]
[null,"Eurome S.r.l.Media161000Windows 11 Pro Education14\"","Eurome S.r.l.","Media",16,1000,"Windows 11 Pro Education","SI","14\"",1]
[null,"Eurome S.r.l.Media161000Windows 11 Pro14\"","Eurome S.r.l.","Media",16,1000,"Windows 11 Pro","SI","14\"",1]
[null,"Eurome S.r.l.Superiore *8512Distribuzione Linux14\"","Eurome S.r.l.","Superiore *",8,512,"Distribuzione Linux","SI","14\"",1]
[null,"Eurome S.r.l.Superiore *8512Windows 11 Pro Education14\"","Eurome S.r.l.","Superiore *",8,512,"Windows 11 Pro Education","NO","14\"",0]
[null,"Eurome S.r.l.Superiore *8512Windows 11 Pro14\"","Eurome S.r.l.","Superiore *",8,512,"Windows 11 Pro","SI","14\"",1]
[null,"Eurome S.r.l.Superiore *16512Distribuzione Linux14\"","Eurome S.r.l.","Superiore *",16,512,"Distribuzione Linux","SI","14\"",1]
[null,"Eurome S.r.l.Superiore *16512Windows 11 Pro Education14\"","Eurome S.r.l.","Superiore *",16,512,"Windows 11 Pro Education","NO","14\"",0]
[null,{"$f":"C261&D261&E261&F261&G261&I261","v":"Eurome S.r.l.Superiore *16512Windows 11 Pro14\""},"Eurome S.r.l.","Superiore *",16,512,"Windows 11 Pro","SI","14\"",{"$f":"+IF(H261=\"NO\",0,1)","v":1}]
[null,"Eurome S.r.l.Superiore *81000Distribuzione Linux14\"","Eurome S.r.l.","Superiore *",8,1000,"Distribuzione Linux","SI","14\"",1]
[null,"Eurome S.r.l.Superiore *81000Windows 11 Pro Education14\"","Eurome S.r.l.","Superiore *",8,1000,"Windows 11 Pro Education","NO","14\"",0]
[null,"Eurome S.r.l.Superiore *81000Windows 11 Pro14\"","Eurome S.r.l.","Superiore *",8,1000,"Windows 11 Pro","SI","14\"",1]
[null,"Eurome S.r.l.Superiore *161000Distribuzione Linux14\"","Eurome S.r.l.","Superiore *",16,1000,"Distribuzione Linux","SI","14\"",1]
[null,"Eurome S.r.l.Superiore *161000Windows 11 Pro Education14\"","Eurome S.r.l.","Superiore *",16,1000,"Windows 11 Pro Education","NO","14\"",0]
[null,"Eurome S.r.l.Superiore *161000Windows 11 Pro14\"","Eurome S.r.l.","Superiore *",16,1000,"Windows 11 Pro","SI","14\"",1]
[null,"Eurome S.r.l.Media8512Distribuzione Linux13\"","Eurome S.r.l.","Media",8,512,"Distribuzione Linux","SI","13\"",1]
[null,"Eurome S.r.l.Media8512Windows 11 Pro Education13\"","Eurome S.r.l.","Media",8,512,"Windows 11 Pro Education","SI","13\"",1]
[null,"Eurome S.r.l.Media8512Windows 11 Pro13\"","Eurome S.r.l.","Media",8,512,"Windows 11 Pro","SI","13\"",1]
[null,"Eurome S.r.l.Media16512Distribuzione Linux13\"","Eurome S.r.l.","Media",16,512,"Distribuzione Linux","SI","13\"",1]
[null,"Eurome S.r.l.Media16512Windows 11 Pro Education13\"","Eurome S.r.l.","Media",16,512,"Windows 11 Pro Education","SI","13\"",1]
[null,"Eurome S.r.l.Media16512Windows 11 Pro13\"","Eurome S.r.l.","Media",16,512,"Windows 11 Pro","SI","13\"",1]
[null,"Eurome S.r.l.Media81000Distribuzione Linux13\"","Eurome S.r.l.","Media",8,1000,"Distribuzione Linux","SI","13\"",1]
[null,"Eurome S.r.l.Media81000Windows 11 Pro Education13\"","Eurome S.r.l.","Media",8,1000,"Windows 11 Pro Education","SI","13\"",1]
[null,"Eurome S.r.l.Media81000Windows 11 Pro13\"","Eurome S.r.l.","Media",8,1000,"Windows 11 Pro","SI","13\"",1]
[null,"Eurome S.r.l.Media161000Distribuzione Linux13\"","Eurome S.r.l.","Media",16,1000,"Distribuzione Linux","SI","13\"",1]
[null,"Eurome S.r.l.Media161000Windows 11 Pro Education13\"","Eurome S.r.l.","Media",16,1000,"Windows 11 Pro Education","SI","13\"",1]
[null,"Eurome S.r.l.Media161000Windows 11 Pro13\"","Eurome S.r.l.","Media",16,1000,"Windows 11 Pro","SI","13\"",1]
[null,"Eurome S.r.l.Superiore *8512Distribuzione Linux13\"","Eurome S.r.l.","Superiore *",8,512,"Distribuzione Linux","SI","13\"",1]
[null,"Eurome S.r.l.Superiore *8512Windows 11 Pro Education13\"","Eurome S.r.l.","Superiore *",8,512,"Windows 11 Pro Education","NO","13\"",0]
[null,"Eurome S.r.l.Superiore *8512Windows 11 Pro13\"","Eurome S.r.l.","Superiore *",8,512,"Windows 11 Pro","SI","13\"",1]
[null,"Eurome S.r.l.Superiore *16512Distribuzione Linux13\"","Eurome S.r.l.","Superiore *",16,512,"Distribuzione Linux","SI","13\"",1]
[null,"Eurome S.r.l.Superiore *16512Windows 11 Pro Education13\"","Eurome S.r.l.","Superiore *",16,512,"Windows 11 Pro Education","NO","13\"",0]
[null,"Eurome S.r.l.Superiore *16512Windows 11 Pro13\"","Eurome S.r.l.","Superiore *",16,512,"Windows 11 Pro","SI","13\"",1]
[null,"Eurome S.r.l.Superiore *81000Distribuzione Linux13\"","Eurome S.r.l.","Superiore *",8,1000,"Distribuzione Linux","SI","13\"",1]
[null,"Eurome S.r.l.Superiore *81000Windows 11 Pro Education13\"","Eurome S.r.l.","Superiore *",8,1000,"Windows 11 Pro Education","NO","13\"",0]
[null,"Eurome S.r.l.Superiore *81000Windows 11 Pro13\"","Eurome S.r.l.","Superiore *",8,1000,"Windows 11 Pro","SI","13\"",1]
[null,"Eurome S.r.l.Superiore *161000Distribuzione Linux13\"","Eurome S.r.l.","Superiore *",16,1000,"Distribuzione Linux","SI","13\"",1]
[null,"Eurome S.r.l.Superiore *161000Windows 11 Pro Education13\"","Eurome S.r.l.","Superiore *",16,1000,"Windows 11 Pro Education","NO","13\"",0]
[null,"Eurome S.r.l.Superiore *161000Windows 11 Pro13\"","Eurome S.r.l.","Superiore *",16,1000,"Windows 11 Pro","SI","13\"",1]
[null,"Hitech Distribuzione Informatica S.r.l.Media8512Distribuzione Linux15\"","Hitech Distribuzione Informatica S.r.l.","Media",8,512,"Distribuzione Linux","NO","15\"",0]
[null,"Hitech Distribuzione Informatica S.r.l.Media8512Windows 11 Pro Education15\"","Hitech Distribuzione Informatica S.r.l.","Media",8,512,"Windows 11 Pro Education","NO","15\"",0]
[null,"Hitech Distribuzione Informatica S.r.l.Media8512Windows 11 Pro15\"","Hitech Distribuzione Informatica S.r.l.","Media",8,512,"Windows 11 Pro","NO","15\"",0]
[null,"Hitech Distribuzione Informatica S.r.l.Media16512Distribuzione Linux15\"","Hitech Distribuzione Informatica S.r.l.","Media",16,512,"Distribuzione Linux","NO","15\"",0]
[null,"Hitech Distribuzione Informatica S.r.l.Media16512Windows 11 Pro Education15\"","Hitech Distribuzione Informatica S.r.l.","Media",16,512,"Windows 11 Pro Education","NO","15\"",0]
[null,"Hitech Distribuzione Informatica S.r.l.Media16512Windows 11 Pro15\"","Hitech Distribuzione Informatica S.r.l.","Media",16,512,"Windows 11 Pro","NO","15\"",0]
[null,"Hitech Distribuzione Informatica S.r.l.Media81000Distribuzione Linux15\"","Hitech Distribuzione Informatica S.r.l.","Media",8,1000,"Distribuzione Linux","NO","15\"",0]
[null,"Hitech Distribuzione Informatica S.r.l.Media81000Windows 11 Pro Education15\"","Hitech Distribuzione Informatica S.r.l.","Media",8,1000,"Windows 11 Pro Education","NO","15\"",0]
[null,"Hitech Distribuzione Informatica S.r.l.Media81000Windows 11 Pro15\"","Hitech Distribuzione Informatica S.r.l.","Media",8,1000,"Windows 11 Pro","NO","15\"",0]
[null,"Hitech Distribuzione Informatica S.r.l.Media161000Distribuzione Linux15\"","Hitech Distribuzione Informatica S.r.l.","Media",16,1000,"Distribuzione Linux","NO","15\"",0]
[null,"Hitech Distribuzione Informatica S.r.l.Media161000Windows 11 Pro Education15\"","Hitech Distribuzione Informatica S.r.l.","Media",16,1000,"Windows 11 Pro Education","NO","15\"",0]
[null,"Hitech Distribuzione Informatica S.r.l.Media161000Windows 11 Pro15\"","Hitech Distribuzione Informatica S.r.l.","Media",16,1000,"Windows 11 Pro","NO","15\"",0]
[null,"Hitech Distribuzione Informatica S.r.l.Superiore *8512Distribuzione Linux15\"","Hitech Distribuzione Informatica S.r.l.","Superiore *",8,512,"Distribuzione Linux","NO","15\"",0]
[null,"Hitech Distribuzione Informatica S.r.l.Superiore *8512Windows 11 Pro Education15\"","Hitech Distribuzione Informatica S.r.l.","Superiore *",8,512,"Windows 11 Pro Education","SI","15\"",1]
[null,"Hitech Distribuzione Informatica S.r.l.Superiore *8512Windows 11 Pro15\"","Hitech Distribuzione Informatica S.r.l.","Superiore *",8,512,"Windows 11 Pro","NO","15\"",0]
[null,"Hitech Distribuzione Informatica S.r.l.Superiore *16512Distribuzione Linux15\"","Hitech Distribuzione Informatica S.r.l.","Superiore *",16,512,"Distribuzione Linux","NO","15\"",0]
[null,"Hitech Distribuzione Informatica S.r.l.Superiore *16512Windows 11 Pro Education15\"","Hitech Distribuzione Informatica S.r.l.","Superiore *",16,512,"Windows 11 Pro Education","SI","15\"",1]
[null,"Hitech Distribuzione Informatica S.r.l.Superiore *16512Windows 11 Pro15\"","Hitech Distribuzione Informatica S.r.l.","Superiore *",16,512,"Windows 11 Pro","NO","15\"",0]
[null,"Hitech Distribuzione Informatica S.r.l.Superiore *81000Distribuzione Linux15\"","Hitech Distribuzione Informatica S.r.l.","Superiore *",8,1000,"Distribuzione Linux","NO","15\"",0]
[null,"Hitech Distribuzione Informatica S.r.l.Superiore *81000Windows 11 Pro Education15\"","Hitech Distribuzione Informatica S.r.l.","Superiore *",8,1000,"Windows 11 Pro Education","SI","15\"",1]
[null,"Hitech Distribuzione Informatica S.r.l.Superiore *81000Windows 11 Pro15\"","Hitech Distribuzione Informatica S.r.l.","Superiore *",8,1000,"Windows 11 Pro","NO","15\"",0]
[null,"Hitech Distribuzione Informatica S.r.l.Superiore *161000Distribuzione Linux15\"","Hitech Distribuzione Informatica S.r.l.","Superiore *",16,1000,"Distribuzione Linux","NO","15\"",0]
[null,"Hitech Distribuzione Informatica S.r.l.Superiore *161000Windows 11 Pro Education15\"","Hitech Distribuzione Informatica S.r.l.","Superiore *",16,1000,"Windows 11 Pro Education","SI","15\"",1]
[null,"Hitech Distribuzione Informatica S.r.l.Superiore *161000Windows 11 Pro15\"","Hitech Distribuzione Informatica S.r.l.","Superiore *",16,1000,"Windows 11 Pro","NO","15\"",0]
[null,"Hitech Distribuzione Informatica S.r.l.Media8512Distribuzione Linux14\"","Hitech Distribuzione Informatica S.r.l.","Media",8,512,"Distribuzione Linux","SI","14\"",1]
[null,"Hitech Distribuzione Informatica S.r.l.Media8512Windows 11 Pro Education14\"","Hitech Distribuzione Informatica S.r.l.","Media",8,512,"Windows 11 Pro Education","SI","14\"",1]
[null,"Hitech Distribuzione Informatica S.r.l.Media8512Windows 11 Pro14\"","Hitech Distribuzione Informatica S.r.l.","Media",8,512,"Windows 11 Pro","SI","14\"",1]
[null,"Hitech Distribuzione Informatica S.r.l.Media16512Distribuzione Linux14\"","Hitech Distribuzione Informatica S.r.l.","Media",16,512,"Distribuzione Linux","SI","14\"",1]
[null,"Hitech Distribuzione Informatica S.r.l.Media16512Windows 11 Pro Education14\"","Hitech Distribuzione Informatica S.r.l.","Media",16,512,"Windows 11 Pro Education","SI","14\"",1]
[null,"Hitech Distribuzione Informatica S.r.l.Media16512Windows 11 Pro14\"","Hitech Distribuzione Informatica S.r.l.","Media",16,512,"Windows 11 Pro","SI","14\"",1]
[null,"Hitech Distribuzione Informatica S.r.l.Media81000Distribuzione Linux14\"","Hitech Distribuzione Informatica S.r.l.","Media",8,1000,"Distribuzione Linux","SI","14\"",1]
[null,"Hitech Distribuzione Informatica S.r.l.Media81000Windows 11 Pro Education14\"","Hitech Distribuzione Informatica S.r.l.","Media",8,1000,"Windows 11 Pro Education","SI","14\"",1]
[null,"Hitech Distribuzione Informatica S.r.l.Media81000Windows 11 Pro14\"","Hitech Distribuzione Informatica S.r.l.","Media",8,1000,"Windows 11 Pro","SI","14\"",1]
[null,{"$f":"C325&D325&E325&F325&G325&I325","v":"Hitech Distribuzione Informatica S.r.l.Media161000Distribuzione Linux14\""},"Hitech Distribuzione Informatica S.r.l.","Media",16,1000,"Distribuzione Linux","SI","14\"",{"$f":"+IF(H325=\"NO\",0,1)","v":1}]
[null,"Hitech Distribuzione Informatica S.r.l.Media161000Windows 11 Pro Education14\"","Hitech Distribuzione Informatica S.r.l.","Media",16,1000,"Windows 11 Pro Education","SI","14\"",1]
[null,"Hitech Distribuzione Informatica S.r.l.Media161000Windows 11 Pro14\"","Hitech Distribuzione Informatica S.r.l.","Media",16,1000,"Windows 11 Pro","SI","14\"",1]
[null,"Hitech Distribuzione Informatica S.r.l.Superiore *8512Distribuzione Linux14\"","Hitech Distribuzione Informatica S.r.l.","Superiore *",8,512,"Distribuzione Linux","SI","14\"",1]
[null,"Hitech Distribuzione Informatica S.r.l.Superiore *8512Windows 11 Pro Education14\"","Hitech Distribuzione Informatica S.r.l.","Superiore *",8,512,"Windows 11 Pro Education","SI","14\"",1]
[null,"Hitech Distribuzione Informatica S.r.l.Superiore *8512Windows 11 Pro14\"","Hitech Distribuzione Informatica S.r.l.","Superiore *",8,512,"Windows 11 Pro","SI","14\"",1]
[null,"Hitech Distribuzione Informatica S.r.l.Superiore *16512Distribuzione Linux14\"","Hitech Distribuzione Informatica S.r.l.","Superiore *",16,512,"Distribuzione Linux","SI","14\"",1]
[null,"Hitech Distribuzione Informatica S.r.l.Superiore *16512Windows 11 Pro Education14\"","Hitech Distribuzione Informatica S.r.l.","Superiore *",16,512,"Windows 11 Pro Education","SI","14\"",1]
[null,"Hitech Distribuzione Informatica S.r.l.Superiore *16512Windows 11 Pro14\"","Hitech Distribuzione Informatica S.r.l.","Superiore *",16,512,"Windows 11 Pro","SI","14\"",1]
[null,"Hitech Distribuzione Informatica S.r.l.Superiore *81000Distribuzione Linux14\"","Hitech Distribuzione Informatica S.r.l.","Superiore *",8,1000,"Distribuzione Linux","SI","14\"",1]
[null,"Hitech Distribuzione Informatica S.r.l.Superiore *81000Windows 11 Pro Education14\"","Hitech Distribuzione Informatica S.r.l.","Superiore *",8,1000,"Windows 11 Pro Education","SI","14\"",1]
[null,"Hitech Distribuzione Informatica S.r.l.Superiore *81000Windows 11 Pro14\"","Hitech Distribuzione Informatica S.r.l.","Superiore *",8,1000,"Windows 11 Pro","SI","14\"",1]
[null,"Hitech Distribuzione Informatica S.r.l.Superiore *161000Distribuzione Linux14\"","Hitech Distribuzione Informatica S.r.l.","Superiore *",16,1000,"Distribuzione Linux","SI","14\"",1]
[null,"Hitech Distribuzione Informatica S.r.l.Superiore *161000Windows 11 Pro Education14\"","Hitech Distribuzione Informatica S.r.l.","Superiore *",16,1000,"Windows 11 Pro Education","SI","14\"",1]
[null,"Hitech Distribuzione Informatica S.r.l.Superiore *161000Windows 11 Pro14\"","Hitech Distribuzione Informatica S.r.l.","Superiore *",16,1000,"Windows 11 Pro","SI","14\"",1]
[null,"Hitech Distribuzione Informatica S.r.l.Media8512Distribuzione Linux13\"","Hitech Distribuzione Informatica S.r.l.","Media",8,512,"Distribuzione Linux","NO","13\"",0]
[null,"Hitech Distribuzione Informatica S.r.l.Media8512Windows 11 Pro Education13\"","Hitech Distribuzione Informatica S.r.l.","Media",8,512,"Windows 11 Pro Education","NO","13\"",0]
[null,"Hitech Distribuzione Informatica S.r.l.Media8512Windows 11 Pro13\"","Hitech Distribuzione Informatica S.r.l.","Media",8,512,"Windows 11 Pro","NO","13\"",0]
[null,"Hitech Distribuzione Informatica S.r.l.Media16512Distribuzione Linux13\"","Hitech Distribuzione Informatica S.r.l.","Media",16,512,"Distribuzione Linux","NO","13\"",0]
[null,"Hitech Distribuzione Informatica S.r.l.Media16512Windows 11 Pro Education13\"","Hitech Distribuzione Informatica S.r.l.","Media",16,512,"Windows 11 Pro Education","NO","13\"",0]
[null,"Hitech Distribuzione Informatica S.r.l.Media16512Windows 11 Pro13\"","Hitech Distribuzione Informatica S.r.l.","Media",16,512,"Windows 11 Pro","NO","13\"",0]
[null,"Hitech Distribuzione Informatica S.r.l.Media81000Distribuzione Linux13\"","Hitech Distribuzione Informatica S.r.l.","Media",8,1000,"Distribuzione Linux","NO","13\"",0]
[null,"Hitech Distribuzione Informatica S.r.l.Media81000Windows 11 Pro Education13\"","Hitech Distribuzione Informatica S.r.l.","Media",8,1000,"Windows 11 Pro Education","NO","13\"",0]
[null,"Hitech Distribuzione Informatica S.r.l.Media81000Windows 11 Pro13\"","Hitech Distribuzione Informatica S.r.l.","Media",8,1000,"Windows 11 Pro","NO","13\"",0]
[null,"Hitech Distribuzione Informatica S.r.l.Media161000Distribuzione Linux13\"","Hitech Distribuzione Informatica S.r.l.","Media",16,1000,"Distribuzione Linux","NO","13\"",0]
[null,"Hitech Distribuzione Informatica S.r.l.Media161000Windows 11 Pro Education13\"","Hitech Distribuzione Informatica S.r.l.","Media",16,1000,"Windows 11 Pro Education","NO","13\"",0]
[null,"Hitech Distribuzione Informatica S.r.l.Media161000Windows 11 Pro13\"","Hitech Distribuzione Informatica S.r.l.","Media",16,1000,"Windows 11 Pro","NO","13\"",0]
[null,"Hitech Distribuzione Informatica S.r.l.Superiore *8512Distribuzione Linux13\"","Hitech Distribuzione Informatica S.r.l.","Superiore *",8,512,"Distribuzione Linux","NO","13\"",0]
[null,"Hitech Distribuzione Informatica S.r.l.Superiore *8512Windows 11 Pro Education13\"","Hitech Distribuzione Informatica S.r.l.","Superiore *",8,512,"Windows 11 Pro Education","NO","13\"",0]
[null,"Hitech Distribuzione Informatica S.r.l.Superiore *8512Windows 11 Pro13\"","Hitech Distribuzione Informatica S.r.l.","Superiore *",8,512,"Windows 11 Pro","NO","13\"",0]
[null,"Hitech Distribuzione Informatica S.r.l.Superiore *16512Distribuzione Linux13\"","Hitech Distribuzione Informatica S.r.l.","Superiore *",16,512,"Distribuzione Linux","NO","13\"",0]
[null,"Hitech Distribuzione Informatica S.r.l.Superiore *16512Windows 11 Pro Education13\"","Hitech Distribuzione Informatica S.r.l.","Superiore *",16,512,"Windows 11 Pro Education","NO","13\"",0]
[null,"Hitech Distribuzione Informatica S.r.l.Superiore *16512Windows 11 Pro13\"","Hitech Distribuzione Informatica S.r.l.","Superiore *",16,512,"Windows 11 Pro","NO","13\"",0]
[null,"Hitech Distribuzione Informatica S.r.l.Superiore *81000Distribuzione Linux13\"","Hitech Distribuzione Informatica S.r.l.","Superiore *",8,1000,"Distribuzione Linux","NO","13\"",0]
[null,"Hitech Distribuzione Informatica S.r.l.Superiore *81000Windows 11 Pro Education13\"","Hitech Distribuzione Informatica S.r.l.","Superiore *",8,1000,"Windows 11 Pro Education","NO","13\"",0]
[null,"Hitech Distribuzione Informatica S.r.l.Superiore *81000Windows 11 Pro13\"","Hitech Distribuzione Informatica S.r.l.","Superiore *",8,1000,"Windows 11 Pro","NO","13\"",0]
[null,"Hitech Distribuzione Informatica S.r.l.Superiore *161000Distribuzione Linux13\"","Hitech Distribuzione Informatica S.r.l.","Superiore *",16,1000,"Distribuzione Linux","NO","13\"",0]
[null,"Hitech Distribuzione Informatica S.r.l.Superiore *161000Windows 11 Pro Education13\"","Hitech Distribuzione Informatica S.r.l.","Superiore *",16,1000,"Windows 11 Pro Education","NO","13\"",0]
[null,"Hitech Distribuzione Informatica S.r.l.Superiore *161000Windows 11 Pro13\"","Hitech Distribuzione Informatica S.r.l.","Superiore *",16,1000,"Windows 11 Pro","NO","13\"",0]
[null,"ITD Solutions S.p.A.Media8512Distribuzione Linux15\"","ITD Solutions S.p.A.","Media",8,512,"Distribuzione Linux","SI","15\"",1]
[null,"ITD Solutions S.p.A.Media8512Windows 11 Pro Education15\"","ITD Solutions S.p.A.","Media",8,512,"Windows 11 Pro Education","SI","15\"",1]
[null,"ITD Solutions S.p.A.Media8512Windows 11 Pro15\"","ITD Solutions S.p.A.","Media",8,512,"Windows 11 Pro","SI","15\"",1]
[null,"ITD Solutions S.p.A.Media16512Distribuzione Linux15\"","ITD Solutions S.p.A.","Media",16,512,"Distribuzione Linux","SI","15\"",1]
[null,"ITD Solutions S.p.A.Media16512Windows 11 Pro Education15\"","ITD Solutions S.p.A.","Media",16,512,"Windows 11 Pro Education","SI","15\"",1]
[null,"ITD Solutions S.p.A.Media16512Windows 11 Pro15\"","ITD Solutions S.p.A.","Media",16,512,"Windows 11 Pro","SI","15\"",1]
[null,"ITD Solutions S.p.A.Media81000Distribuzione Linux15\"","ITD Solutions S.p.A.","Media",8,1000,"Distribuzione Linux","SI","15\"",1]
[null,"ITD Solutions S.p.A.Media81000Windows 11 Pro Education15\"","ITD Solutions S.p.A.","Media",8,1000,"Windows 11 Pro Education","SI","15\"",1]
[null,"ITD Solutions S.p.A.Media81000Windows 11 Pro15\"","ITD Solutions S.p.A.","Media",8,1000,"Windows 11 Pro","SI","15\"",1]
[null,"ITD Solutions S.p.A.Media161000Distribuzione Linux15\"","ITD Solutions S.p.A.","Media",16,1000,"Distribuzione Linux","SI","15\"",1]
[null,"ITD Solutions S.p.A.Media161000Windows 11 Pro Education15\"","ITD Solutions S.p.A.","Media",16,1000,"Windows 11 Pro Education","SI","15\"",1]
[null,"ITD Solutions S.p.A.Media161000Windows 11 Pro15\"","ITD Solutions S.p.A.","Media",16,1000,"Windows 11 Pro","SI","15\"",1]
[null,"ITD Solutions S.p.A.Superiore *8512Distribuzione Linux15\"","ITD Solutions S.p.A.","Superiore *",8,512,"Distribuzione Linux","SI","15\"",1]
[null,"ITD Solutions S.p.A.Superiore *8512Windows 11 Pro Education15\"","ITD Solutions S.p.A.","Superiore *",8,512,"Windows 11 Pro Education","NO","15\"",0]
[null,"ITD Solutions S.p.A.Superiore *8512Windows 11 Pro15\"","ITD Solutions S.p.A.","Superiore *",8,512,"Windows 11 Pro","SI","15\"",1]
[null,"ITD Solutions S.p.A.Superiore *16512Distribuzione Linux15\"","ITD Solutions S.p.A.","Superiore *",16,512,"Distribuzione Linux","SI","15\"",1]
[null,"ITD Solutions S.p.A.Superiore *16512Windows 11 Pro Education15\"","ITD Solutions S.p.A.","Superiore *",16,512,"Windows 11 Pro Education","NO","15\"",0]
[null,"ITD Solutions S.p.A.Superiore *16512Windows 11 Pro15\"","ITD Solutions S.p.A.","Superiore *",16,512,"Windows 11 Pro","SI","15\"",1]
[null,"ITD Solutions S.p.A.Superiore *81000Distribuzione Linux15\"","ITD Solutions S.p.A.","Superiore *",8,1000,"Distribuzione Linux","SI","15\"",1]
[null,"ITD Solutions S.p.A.Superiore *81000Windows 11 Pro Education15\"","ITD Solutions S.p.A.","Superiore *",8,1000,"Windows 11 Pro Education","NO","15\"",0]
[null,"ITD Solutions S.p.A.Superiore *81000Windows 11 Pro15\"","ITD Solutions S.p.A.","Superiore *",8,1000,"Windows 11 Pro","SI","15\"",1]
[null,"ITD Solutions S.p.A.Superiore *161000Distribuzione Linux15\"","ITD Solutions S.p.A.","Superiore *",16,1000,"Distribuzione Linux","SI","15\"",1]
[null,"ITD Solutions S.p.A.Superiore *161000Windows 11 Pro Education15\"","ITD Solutions S.p.A.","Superiore *",16,1000,"Windows 11 Pro Education","NO","15\"",0]
[null,"ITD Solutions S.p.A.Superiore *161000Windows 11 Pro15\"","ITD Solutions S.p.A.","Superiore *",16,1000,"Windows 11 Pro","SI","15\"",1]
[null,"ITD Solutions S.p.A.Media8512Distribuzione Linux14\"","ITD Solutions S.p.A.","Media",8,512,"Distribuzione Linux","SI","14\"",1]
[null,{"$f":"C389&D389&E389&F389&G389&I389","v":"ITD Solutions S.p.A.Media8512Windows 11 Pro Education14\""},"ITD Solutions S.p.A.","Media",8,512,"Windows 11 Pro Education","SI","14\"",{"$f":"+IF(H389=\"NO\",0,1)","v":1}]
[null,"ITD Solutions S.p.A.Media8512Windows 11 Pro14\"","ITD Solutions S.p.A.","Media",8,512,"Windows 11 Pro","SI","14\"",1]
[null,"ITD Solutions S.p.A.Media16512Distribuzione Linux14\"","ITD Solutions S.p.A.","Media",16,512,"Distribuzione Linux","SI","14\"",1]
[null,"ITD Solutions S.p.A.Media16512Windows 11 Pro Education14\"","ITD Solutions S.p.A.","Media",16,512,"Windows 11 Pro Education","SI","14\"",1]
[null,"ITD Solutions S.p.A.Media16512Windows 11 Pro14\"","ITD Solutions S.p.A.","Media",16,512,"Windows 11 Pro","SI","14\"",1]
[null,"ITD Solutions S.p.A.Media81000Distribuzione Linux14\"","ITD Solutions S.p.A.","Media",8,1000,"Distribuzione Linux","SI","14\"",1]
[null,"ITD Solutions S.p.A.Media81000Windows 11 Pro Education14\"","ITD Solutions S.p.A.","Media",8,1000,"Windows 11 Pro Education","SI","14\"",1]
[null,"ITD Solutions S.p.A.Media81000Windows 11 Pro14\"","ITD Solutions S.p.A.","Media",8,1000,"Windows 11 Pro","SI","14\"",1]
[null,"ITD Solutions S.p.A.Media161000Distribuzione Linux14\"","ITD Solutions S.p.A.","Media",16,1000,"Distribuzione Linux","SI","14\"",1]
[null,"ITD Solutions S.p.A.Media161000Windows 11 Pro Education14\"","ITD Solutions S.p.A.","Media",16,1000,"Windows 11 Pro Education","SI","14\"",1]
[null,"ITD Solutions S.p.A.Media161000Windows 11 Pro14\"","ITD Solutions S.p.A.","Media",16,1000,"Windows 11 Pro","SI","14\"",1]
[null,"ITD Solutions S.p.A.Superiore *8512Distribuzione Linux14\"","ITD Solutions S.p.A.","Superiore *",8,512,"Distribuzione Linux","SI","14\"",1]
[null,"ITD Solutions S.p.A.Superiore *8512Windows 11 Pro Education14\"","ITD Solutions S.p.A.","Superiore *",8,512,"Windows 11 Pro Education","NO","14\"",0]
[null,"ITD Solutions S.p.A.Superiore *8512Windows 11 Pro14\"","ITD Solutions S.p.A.","Superiore *",8,512,"Windows 11 Pro","SI","14\"",1]
[null,"ITD Solutions S.p.A.Superiore *16512Distribuzione Linux14\"","ITD Solutions S.p.A.","Superiore *",16,512,"Distribuzione Linux","SI","14\"",1]
[null,"ITD Solutions S.p.A.Superiore *16512Windows 11 Pro Education14\"","ITD Solutions S.p.A.","Superiore *",16,512,"Windows 11 Pro Education","NO","14\"",0]
[null,"ITD Solutions S.p.A.Superiore *16512Windows 11 Pro14\"","ITD Solutions S.p.A.","Superiore *",16,512,"Windows 11 Pro","SI","14\"",1]
[null,"ITD Solutions S.p.A.Superiore *81000Distribuzione Linux14\"","ITD Solutions S.p.A.","Superiore *",8,1000,"Distribuzione Linux","SI","14\"",1]
[null,"ITD Solutions S.p.A.Superiore *81000Windows 11 Pro Education14\"","ITD Solutions S.p.A.","Superiore *",8,1000,"Windows 11 Pro Education","NO","14\"",0]
[null,"ITD Solutions S.p.A.Superiore *81000Windows 11 Pro14\"","ITD Solutions S.p.A.","Superiore *",8,1000,"Windows 11 Pro","SI","14\"",1]
[null,"ITD Solutions S.p.A.Superiore *161000Distribuzione Linux14\"","ITD Solutions S.p.A.","Superiore *",16,1000,"Distribuzione Linux","SI","14\"",1]
[null,"ITD Solutions S.p.A.Superiore *161000Windows 11 Pro Education14\"","ITD Solutions S.p.A.","Superiore *",16,1000,"Windows 11 Pro Education","NO","14\"",0]
[null,"ITD Solutions S.p.A.Superiore *161000Windows 11 Pro14\"","ITD Solutions S.p.A.","Superiore *",16,1000,"Windows 11 Pro","SI","14\"",1]
[null,"ITD Solutions S.p.A.Media8512Distribuzione Linux13\"","ITD Solutions S.p.A.","Media",8,512,"Distribuzione Linux","SI","13\"",1]
[null,"ITD Solutions S.p.A.Media8512Windows 11 Pro Education13\"","ITD Solutions S.p.A.","Media",8,512,"Windows 11 Pro Education","SI","13\"",1]
[null,"ITD Solutions S.p.A.Media8512Windows 11 Pro13\"","ITD Solutions S.p.A.","Media",8,512,"Windows 11 Pro","SI","13\"",1]
[null,"ITD Solutions S.p.A.Media16512Distribuzione Linux13\"","ITD Solutions S.p.A.","Media",16,512,"Distribuzione Linux","SI","13\"",1]
[null,"ITD Solutions S.p.A.Media16512Windows 11 Pro Education13\"","ITD Solutions S.p.A.","Media",16,512,"Windows 11 Pro Education","SI","13\"",1]
[null,"ITD Solutions S.p.A.Media16512Windows 11 Pro13\"","ITD Solutions S.p.A.","Media",16,512,"Windows 11 Pro","SI","13\"",1]
[null,"ITD Solutions S.p.A.Media81000Distribuzione Linux13\"","ITD Solutions S.p.A.","Media",8,1000,"Distribuzione Linux","SI","13\"",1]
[null,"ITD Solutions S.p.A.Media81000Windows 11 Pro Education13\"","ITD Solutions S.p.A.","Media",8,1000,"Windows 11 Pro Education","SI","13\"",1]
[null,"ITD Solutions S.p.A.Media81000Windows 11 Pro13\"","ITD Solutions S.p.A.","Media",8,1000,"Windows 11 Pro","SI","13\"",1]
[null,"ITD Solutions S.p.A.Media161000Distribuzione Linux13\"","ITD Solutions S.p.A.","Media",16,1000,"Distribuzione Linux","SI","13\"",1]
[null,"ITD Solutions S.p.A.Media161000Windows 11 Pro Education13\"","ITD Solutions S.p.A.","Media",16,1000,"Windows 11 Pro Education","SI","13\"",1]
[null,"ITD Solutions S.p.A.Media161000Windows 11 Pro13\"","ITD Solutions S.p.A.","Media",16,1000,"Windows 11 Pro","SI","13\"",1]
[null,"ITD Solutions S.p.A.Superiore *8512Distribuzione Linux13\"","ITD Solutions S.p.A.","Superiore *",8,512,"Distribuzione Linux","SI","13\"",1]
[null,"ITD Solutions S.p.A.Superiore *8512Windows 11 Pro Education13\"","ITD Solutions S.p.A.","Superiore *",8,512,"Windows 11 Pro Education","NO","13\"",0]
[null,"ITD Solutions S.p.A.Superiore *8512Windows 11 Pro13\"","ITD Solutions S.p.A.","Superiore *",8,512,"Windows 11 Pro","SI","13\"",1]
[null,"ITD Solutions S.p.A.Superiore *16512Distribuzione Linux13\"","ITD Solutions S.p.A.","Superiore *",16,512,"Distribuzione Linux","SI","13\"",1]
[null,"ITD Solutions S.p.A.Superiore *16512Windows 11 Pro Education13\"","ITD Solutions S.p.A.","Superiore *",16,512,"Windows 11 Pro Education","NO","13\"",0]
[null,"ITD Solutions S.p.A.Superiore *16512Windows 11 Pro13\"","ITD Solutions S.p.A.","Superiore *",16,512,"Windows 11 Pro","SI","13\"",1]
[null,"ITD Solutions S.p.A.Superiore *81000Distribuzione Linux13\"","ITD Solutions S.p.A.","Superiore *",8,1000,"Distribuzione Linux","SI","13\"",1]
[null,"ITD Solutions S.p.A.Superiore *81000Windows 11 Pro Education13\"","ITD Solutions S.p.A.","Superiore *",8,1000,"Windows 11 Pro Education","NO","13\"",0]
[null,"ITD Solutions S.p.A.Superiore *81000Windows 11 Pro13\"","ITD Solutions S.p.A.","Superiore *",8,1000,"Windows 11 Pro","SI","13\"",1]
[null,"ITD Solutions S.p.A.Superiore *161000Distribuzione Linux13\"","ITD Solutions S.p.A.","Superiore *",16,1000,"Distribuzione Linux","SI","13\"",1]
[null,"ITD Solutions S.p.A.Superiore *161000Windows 11 Pro Education13\"","ITD Solutions S.p.A.","Superiore *",16,1000,"Windows 11 Pro Education","NO","13\"",0]
[null,"ITD Solutions S.p.A.Superiore *161000Windows 11 Pro13\"","ITD Solutions S.p.A.","Superiore *",16,1000,"Windows 11 Pro","SI","13\"",1]
[null,"Posdata S.r.l.Media8512Distribuzione Linux15\"","Posdata S.r.l.","Media",8,512,"Distribuzione Linux","SI","15\"",1]
[null,"Posdata S.r.l.Media8512Windows 11 Pro Education15\"","Posdata S.r.l.","Media",8,512,"Windows 11 Pro Education","SI","15\"",1]
[null,"Posdata S.r.l.Media8512Windows 11 Pro15\"","Posdata S.r.l.","Media",8,512,"Windows 11 Pro","SI","15\"",1]
[null,"Posdata S.r.l.Media16512Distribuzione Linux15\"","Posdata S.r.l.","Media",16,512,"Distribuzione Linux","SI","15\"",1]
[null,"Posdata S.r.l.Media16512Windows 11 Pro Education15\"","Posdata S.r.l.","Media",16,512,"Windows 11 Pro Education","SI","15\"",1]
[null,"Posdata S.r.l.Media16512Windows 11 Pro15\"","Posdata S.r.l.","Media",16,512,"Windows 11 Pro","SI","15\"",1]
[null,"Posdata S.r.l.Media81000Distribuzione Linux15\"","Posdata S.r.l.","Media",8,1000,"Distribuzione Linux","SI","15\"",1]
[null,"Posdata S.r.l.Media81000Windows 11 Pro Education15\"","Posdata S.r.l.","Media",8,1000,"Windows 11 Pro Education","SI","15\"",1]
[null,"Posdata S.r.l.Media81000Windows 11 Pro15\"","Posdata S.r.l.","Media",8,1000,"Windows 11 Pro","SI","15\"",1]
[null,"Posdata S.r.l.Media161000Distribuzione Linux15\"","Posdata S.r.l.","Media",16,1000,"Distribuzione Linux","SI","15\"",1]
[null,"Posdata S.r.l.Media161000Windows 11 Pro Education15\"","Posdata S.r.l.","Media",16,1000,"Windows 11 Pro Education","SI","15\"",1]
[null,"Posdata S.r.l.Media161000Windows 11 Pro15\"","Posdata S.r.l.","Media",16,1000,"Windows 11 Pro","SI","15\"",1]
[null,"Posdata S.r.l.Superiore *8512Distribuzione Linux15\"","Posdata S.r.l.","Superiore *",8,512,"Distribuzione Linux","SI","15\"",1]
[null,"Posdata S.r.l.Superiore *8512Windows 11 Pro Education15\"","Posdata S.r.l.","Superiore *",8,512,"Windows 11 Pro Education","SI","15\"",1]
[null,"Posdata S.r.l.Superiore *8512Windows 11 Pro15\"","Posdata S.r.l.","Superiore *",8,512,"Windows 11 Pro","SI","15\"",1]
[null,"Posdata S.r.l.Superiore *16512Distribuzione Linux15\"","Posdata S.r.l.","Superiore *",16,512,"Distribuzione Linux","SI","15\"",1]
[null,"Posdata S.r.l.Superiore *16512Windows 11 Pro Education15\"","Posdata S.r.l.","Superiore *",16,512,"Windows 11 Pro Education","SI","15\"",1]
[null,{"$f":"C453&D453&E453&F453&G453&I453","v":"Posdata S.r.l.Superiore *16512Windows 11 Pro15\""},"Posdata S.r.l.","Superiore *",16,512,"Windows 11 Pro","SI","15\"",{"$f":"+IF(H453=\"NO\",0,1)","v":1}]
[null,"Posdata S.r.l.Superiore *81000Distribuzione Linux15\"","Posdata S.r.l.","Superiore *",8,1000,"Distribuzione Linux","SI","15\"",1]
[null,"Posdata S.r.l.Superiore *81000Windows 11 Pro Education15\"","Posdata S.r.l.","Superiore *",8,1000,"Windows 11 Pro Education","SI","15\"",1]
[null,"Posdata S.r.l.Superiore *81000Windows 11 Pro15\"","Posdata S.r.l.","Superiore *",8,1000,"Windows 11 Pro","SI","15\"",1]
[null,"Posdata S.r.l.Superiore *161000Distribuzione Linux15\"","Posdata S.r.l.","Superiore *",16,1000,"Distribuzione Linux","SI","15\"",1]
[null,"Posdata S.r.l.Superiore *161000Windows 11 Pro Education15\"","Posdata S.r.l.","Superiore *",16,1000,"Windows 11 Pro Education","SI","15\"",1]
[null,"Posdata S.r.l.Superiore *161000Windows 11 Pro15\"","Posdata S.r.l.","Superiore *",16,1000,"Windows 11 Pro","SI","15\"",1]
[null,"Posdata S.r.l.Media8512Distribuzione Linux14\"","Posdata S.r.l.","Media",8,512,"Distribuzione Linux","SI","14\"",1]
[null,"Posdata S.r.l.Media8512Windows 11 Pro Education14\"","Posdata S.r.l.","Media",8,512,"Windows 11 Pro Education","SI","14\"",1]
[null,"Posdata S.r.l.Media8512Windows 11 Pro14\"","Posdata S.r.l.","Media",8,512,"Windows 11 Pro","SI","14\"",1]
[null,"Posdata S.r.l.Media16512Distribuzione Linux14\"","Posdata S.r.l.","Media",16,512,"Distribuzione Linux","SI","14\"",1]
[null,"Posdata S.r.l.Media16512Windows 11 Pro Education14\"","Posdata S.r.l.","Media",16,512,"Windows 11 Pro Education","SI","14\"",1]
[null,"Posdata S.r.l.Media16512Windows 11 Pro14\"","Posdata S.r.l.","Media",16,512,"Windows 11 Pro","SI","14\"",1]
[null,"Posdata S.r.l.Media81000Distribuzione Linux14\"","Posdata S.r.l.","Media",8,1000,"Distribuzione Linux","SI","14\"",1]
[null,"Posdata S.r.l.Media81000Windows 11 Pro Education14\"","Posdata S.r.l.","Media",8,1000,"Windows 11 Pro Education","SI","14\"",1]
[null,"Posdata S.r.l.Media81000Windows 11 Pro14\"","Posdata S.r.l.","Media",8,1000,"Windows 11 Pro","SI","14\"",1]
[null,"Posdata S.r.l.Media161000Distribuzione Linux14\"","Posdata S.r.l.","Media",16,1000,"Distribuzione Linux","SI","14\"",1]
[null,"Posdata S.r.l.Media161000Windows 11 Pro Education14\"","Posdata S.r.l.","Media",16,1000,"Windows 11 Pro Education","SI","14\"",1]
[null,"Posdata S.r.l.Media161000Windows 11 Pro14\"","Posdata S.r.l.","Media",16,1000,"Windows 11 Pro","SI","14\"",1]
[null,"Posdata S.r.l.Superiore *8512Distribuzione Linux14\"","Posdata S.r.l.","Superiore *",8,512,"Distribuzione Linux","SI","14\"",1]
[null,"Posdata S.r.l.Superiore *8512Windows 11 Pro Education14\"","Posdata S.r.l.","Superiore *",8,512,"Windows 11 Pro Education","SI","14\"",1]
[null,"Posdata S.r.l.Superiore *8512Windows 11 Pro14\"","Posdata S.r.l.","Superiore *",8,512,"Windows 11 Pro","SI","14\"",1]
[null,"Posdata S.r.l.Superiore *16512Distribuzione Linux14\"","Posdata S.r.l.","Superiore *",16,512,"Distribuzione Linux","SI","14\"",1]
[null,"Posdata S.r.l.Superiore *16512Windows 11 Pro Education14\"","Posdata S.r.l.","Superiore *",16,512,"Windows 11 Pro Education","SI","14\"",1]
[null,"Posdata S.r.l.Superiore *16512Windows 11 Pro14\"","Posdata S.r.l.","Superiore *",16,512,"Windows 11 Pro","SI","14\"",1]
[null,"Posdata S.r.l.Superiore *81000Distribuzione Linux14\"","Posdata S.r.l.","Superiore *",8,1000,"Distribuzione Linux","SI","14\"",1]
[null,"Posdata S.r.l.Superiore *81000Windows 11 Pro Education14\"","Posdata S.r.l.","Superiore *",8,1000,"Windows 11 Pro Education","SI","14\"",1]
[null,"Posdata S.r.l.Superiore *81000Windows 11 Pro14\"","Posdata S.r.l.","Superiore *",8,1000,"Windows 11 Pro","SI","14\"",1]
[null,"Posdata S.r.l.Superiore *161000Distribuzione Linux14\"","Posdata S.r.l.","Superiore *",16,1000,"Distribuzione Linux","SI","14\"",1]
[null,"Posdata S.r.l.Superiore *161000Windows 11 Pro Education14\"","Posdata S.r.l.","Superiore *",16,1000,"Windows 11 Pro Education","SI","14\"",1]
[null,"Posdata S.r.l.Superiore *161000Windows 11 Pro14\"","Posdata S.r.l.","Superiore *",16,1000,"Windows 11 Pro","SI","14\"",1]
[null,"Posdata S.r.l.Media8512Distribuzione Linux13\"","Posdata S.r.l.","Media",8,512,"Distribuzione Linux","SI","13\"",1]
[null,"Posdata S.r.l.Media8512Windows 11 Pro Education13\"","Posdata S.r.l.","Media",8,512,"Windows 11 Pro Education","SI","13\"",1]
[null,"Posdata S.r.l.Media8512Windows 11 Pro13\"","Posdata S.r.l.","Media",8,512,"Windows 11 Pro","SI","13\"",1]
[null,"Posdata S.r.l.Media16512Distribuzione Linux13\"","Posdata S.r.l.","Media",16,512,"Distribuzione Linux","SI","13\"",1]
[null,"Posdata S.r.l.Media16512Windows 11 Pro Education13\"","Posdata S.r.l.","Media",16,512,"Windows 11 Pro Education","SI","13\"",1]
[null,"Posdata S.r.l.Media16512Windows 11 Pro13\"","Posdata S.r.l.","Media",16,512,"Windows 11 Pro","SI","13\"",1]
[null,"Posdata S.r.l.Media81000Distribuzione Linux13\"","Posdata S.r.l.","Media",8,1000,"Distribuzione Linux","SI","13\"",1]
[null,"Posdata S.r.l.Media81000Windows 11 Pro Education13\"","Posdata S.r.l.","Media",8,1000,"Windows 11 Pro Education","SI","13\"",1]
[null,"Posdata S.r.l.Media81000Windows 11 Pro13\"","Posdata S.r.l.","Media",8,1000,"Windows 11 Pro","SI","13\"",1]
[null,"Posdata S.r.l.Media161000Distribuzione Linux13\"","Posdata S.r.l.","Media",16,1000,"Distribuzione Linux","SI","13\"",1]
[null,"Posdata S.r.l.Media161000Windows 11 Pro Education13\"","Posdata S.r.l.","Media",16,1000,"Windows 11 Pro Education","SI","13\"",1]
[null,"Posdata S.r.l.Media161000Windows 11 Pro13\"","Posdata S.r.l.","Media",16,1000,"Windows 11 Pro","SI","13\"",1]
[null,"Posdata S.r.l.Superiore *8512Distribuzione Linux13\"","Posdata S.r.l.","Superiore *",8,512,"Distribuzione Linux","SI","13\"",1]
[null,"Posdata S.r.l.Superiore *8512Windows 11 Pro Education13\"","Posdata S.r.l.","Superiore *",8,512,"Windows 11 Pro Education","SI","13\"",1]
[null,"Posdata S.r.l.Superiore *8512Windows 11 Pro13\"","Posdata S.r.l.","Superiore *",8,512,"Windows 11 Pro","SI","13\"",1]
[null,"Posdata S.r.l.Superiore *16512Distribuzione Linux13\"","Posdata S.r.l.","Superiore *",16,512,"Distribuzione Linux","SI","13\"",1]
[null,"Posdata S.r.l.Superiore *16512Windows 11 Pro Education13\"","Posdata S.r.l.","Superiore *",16,512,"Windows 11 Pro Education","SI","13\"",1]
[null,"Posdata S.r.l.Superiore *16512Windows 11 Pro13\"","Posdata S.r.l.","Superiore *",16,512,"Windows 11 Pro","SI","13\"",1]
[null,"Posdata S.r.l.Superiore *81000Distribuzione Linux13\"","Posdata S.r.l.","Superiore *",8,1000,"Distribuzione Linux","SI","13\"",1]
[null,"Posdata S.r.l.Superiore *81000Windows 11 Pro Education13\"","Posdata S.r.l.","Superiore *",8,1000,"Windows 11 Pro Education","SI","13\"",1]
[null,"Posdata S.r.l.Superiore *81000Windows 11 Pro13\"","Posdata S.r.l.","Superiore *",8,1000,"Windows 11 Pro","SI","13\"",1]
[null,"Posdata S.r.l.Superiore *161000Distribuzione Linux13\"","Posdata S.r.l.","Superiore *",16,1000,"Distribuzione Linux","SI","13\"",1]
[null,"Posdata S.r.l.Superiore *161000Windows 11 Pro Education13\"","Posdata S.r.l.","Superiore *",16,1000,"Windows 11 Pro Education","SI","13\"",1]
[null,"Posdata S.r.l.Superiore *161000Windows 11 Pro13\"","Posdata S.r.l.","Superiore *",16,1000,"Windows 11 Pro","SI","13\"",1]
[null,"RTI Trust Technology Services  S.r.l.Media8512Distribuzione Linux15\"","RTI Trust Technology Services  S.r.l.","Media",8,512,"Distribuzione Linux","SI","15\"",1]
[null,"RTI Trust Technology Services  S.r.l.Media8512Windows 11 Pro Education15\"","RTI Trust Technology Services  S.r.l.","Media",8,512,"Windows 11 Pro Education","SI","15\"",1]
[null,"RTI Trust Technology Services  S.r.l.Media8512Windows 11 Pro15\"","RTI Trust Technology Services  S.r.l.","Media",8,512,"Windows 11 Pro","SI","15\"",1]
[null,"RTI Trust Technology Services  S.r.l.Media16512Distribuzione Linux15\"","RTI Trust Technology Services  S.r.l.","Media",16,512,"Distribuzione Linux","SI","15\"",1]
[null,"RTI Trust Technology Services  S.r.l.Media16512Windows 11 Pro Education15\"","RTI Trust Technology Services  S.r.l.","Media",16,512,"Windows 11 Pro Education","SI","15\"",1]
[null,"RTI Trust Technology Services  S.r.l.Media16512Windows 11 Pro15\"","RTI Trust Technology Services  S.r.l.","Media",16,512,"Windows 11 Pro","SI","15\"",1]
[null,"RTI Trust Technology Services  S.r.l.Media81000Distribuzione Linux15\"","RTI Trust Technology Services  S.r.l.","Media",8,1000,"Distribuzione Linux","SI","15\"",1]
[null,"RTI Trust Technology Services  S.r.l.Media81000Windows 11 Pro Education15\"","RTI Trust Technology Services  S.r.l.","Media",8,1000,"Windows 11 Pro Education","SI","15\"",1]
[null,"RTI Trust Technology Services  S.r.l.Media81000Windows 11 Pro15\"","RTI Trust Technology Services  S.r.l.","Media",8,1000,"Windows 11 Pro","SI","15\"",1]
[null,{"$f":"C517&D517&E517&F517&G517&I517","v":"RTI Trust Technology Services  S.r.l.Media161000Distribuzione Linux15\""},"RTI Trust Technology Services  S.r.l.","Media",16,1000,"Distribuzione Linux","SI","15\"",{"$f":"+IF(H517=\"NO\",0,1)","v":1}]
[null,"RTI Trust Technology Services  S.r.l.Media161000Windows 11 Pro Education15\"","RTI Trust Technology Services  S.r.l.","Media",16,1000,"Windows 11 Pro Education","SI","15\"",1]
[null,"RTI Trust Technology Services  S.r.l.Media161000Windows 11 Pro15\"","RTI Trust Technology Services  S.r.l.","Media",16,1000,"Windows 11 Pro","SI","15\"",1]
[null,"RTI Trust Technology Services  S.r.l.Superiore *8512Distribuzione Linux15\"","RTI Trust Technology Services  S.r.l.","Superiore *",8,512,"Distribuzione Linux","SI","15\"",1]
[null,"RTI Trust Technology Services  S.r.l.Superiore *8512Windows 11 Pro Education15\"","RTI Trust Technology Services  S.r.l.","Superiore *",8,512,"Windows 11 Pro Education","SI","15\"",1]
[null,"RTI Trust Technology Services  S.r.l.Superiore *8512Windows 11 Pro15\"","RTI Trust Technology Services  S.r.l.","Superiore *",8,512,"Windows 11 Pro","SI","15\"",1]
[null,"RTI Trust Technology Services  S.r.l.Superiore *16512Distribuzione Linux15\"","RTI Trust Technology Services  S.r.l.","Superiore *",16,512,"Distribuzione Linux","SI","15\"",1]
[null,"RTI Trust Technology Services  S.r.l.Superiore *16512Windows 11 Pro Education15\"","RTI Trust Technology Services  S.r.l.","Superiore *",16,512,"Windows 11 Pro Education","SI","15\"",1]
[null,"RTI Trust Technology Services  S.r.l.Superiore *16512Windows 11 Pro15\"","RTI Trust Technology Services  S.r.l.","Superiore *",16,512,"Windows 11 Pro","SI","15\"",1]
[null,"RTI Trust Technology Services  S.r.l.Superiore *81000Distribuzione Linux15\"","RTI Trust Technology Services  S.r.l.","Superiore *",8,1000,"Distribuzione Linux","SI","15\"",1]
[null,"RTI Trust Technology Services  S.r.l.Superiore *81000Windows 11 Pro Education15\"","RTI Trust Technology Services  S.r.l.","Superiore *",8,1000,"Windows 11 Pro Education","SI","15\"",1]
[null,"RTI Trust Technology Services  S.r.l.Superiore *81000Windows 11 Pro15\"","RTI Trust Technology Services  S.r.l.","Superiore *",8,1000,"Windows 11 Pro","SI","15\"",1]
[null,"RTI Trust Technology Services  S.r.l.Superiore *161000Distribuzione Linux15\"","RTI Trust Technology Services  S.r.l.","Superiore *",16,1000,"Distribuzione Linux","SI","15\"",1]
[null,"RTI Trust Technology Services  S.r.l.Superiore *161000Windows 11 Pro Education15\"","RTI Trust Technology Services  S.r.l.","Superiore *",16,1000,"Windows 11 Pro Education","SI","15\"",1]
[null,"RTI Trust Technology Services  S.r.l.Superiore *161000Windows 11 Pro15\"","RTI Trust Technology Services  S.r.l.","Superiore *",16,1000,"Windows 11 Pro","SI","15\"",1]
[null,"RTI Trust Technology Services  S.r.l.Media8512Distribuzione Linux14\"","RTI Trust Technology Services  S.r.l.","Media",8,512,"Distribuzione Linux","SI","14\"",1]
[null,"RTI Trust Technology Services  S.r.l.Media8512Windows 11 Pro Education14\"","RTI Trust Technology Services  S.r.l.","Media",8,512,"Windows 11 Pro Education","SI","14\"",1]
[null,"RTI Trust Technology Services  S.r.l.Media8512Windows 11 Pro14\"","RTI Trust Technology Services  S.r.l.","Media",8,512,"Windows 11 Pro","SI","14\"",1]
[null,"RTI Trust Technology Services  S.r.l.Media16512Distribuzione Linux14\"","RTI Trust Technology Services  S.r.l.","Media",16,512,"Distribuzione Linux","SI","14\"",1]
[null,"RTI Trust Technology Services  S.r.l.Media16512Windows 11 Pro Education14\"","RTI Trust Technology Services  S.r.l.","Media",16,512,"Windows 11 Pro Education","SI","14\"",1]
[null,"RTI Trust Technology Services  S.r.l.Media16512Windows 11 Pro14\"","RTI Trust Technology Services  S.r.l.","Media",16,512,"Windows 11 Pro","SI","14\"",1]
[null,"RTI Trust Technology Services  S.r.l.Media81000Distribuzione Linux14\"","RTI Trust Technology Services  S.r.l.","Media",8,1000,"Distribuzione Linux","SI","14\"",1]
[null,"RTI Trust Technology Services  S.r.l.Media81000Windows 11 Pro Education14\"","RTI Trust Technology Services  S.r.l.","Media",8,1000,"Windows 11 Pro Education","SI","14\"",1]
[null,"RTI Trust Technology Services  S.r.l.Media81000Windows 11 Pro14\"","RTI Trust Technology Services  S.r.l.","Media",8,1000,"Windows 11 Pro","SI","14\"",1]
[null,"RTI Trust Technology Services  S.r.l.Media161000Distribuzione Linux14\"","RTI Trust Technology Services  S.r.l.","Media",16,1000,"Distribuzione Linux","SI","14\"",1]
[null,"RTI Trust Technology Services  S.r.l.Media161000Windows 11 Pro Education14\"","RTI Trust Technology Services  S.r.l.","Media",16,1000,"Windows 11 Pro Education","SI","14\"",1]
[null,"RTI Trust Technology Services  S.r.l.Media161000Windows 11 Pro14\"","RTI Trust Technology Services  S.r.l.","Media",16,1000,"Windows 11 Pro","SI","14\"",1]
[null,"RTI Trust Technology Services  S.r.l.Superiore *8512Distribuzione Linux14\"","RTI Trust Technology Services  S.r.l.","Superiore *",8,512,"Distribuzione Linux","SI","14\"",1]
[null,"RTI Trust Technology Services  S.r.l.Superiore *8512Windows 11 Pro Education14\"","RTI Trust Technology Services  S.r.l.","Superiore *",8,512,"Windows 11 Pro Education","SI","14\"",1]
[null,"RTI Trust Technology Services  S.r.l.Superiore *8512Windows 11 Pro14\"","RTI Trust Technology Services  S.r.l.","Superiore *",8,512,"Windows 11 Pro","SI","14\"",1]
[null,"RTI Trust Technology Services  S.r.l.Superiore *16512Distribuzione Linux14\"","RTI Trust Technology Services  S.r.l.","Superiore *",16,512,"Distribuzione Linux","SI","14\"",1]
[null,"RTI Trust Technology Services  S.r.l.Superiore *16512Windows 11 Pro Education14\"","RTI Trust Technology Services  S.r.l.","Superiore *",16,512,"Windows 11 Pro Education","SI","14\"",1]
[null,"RTI Trust Technology Services  S.r.l.Superiore *16512Windows 11 Pro14\"","RTI Trust Technology Services  S.r.l.","Superiore *",16,512,"Windows 11 Pro","SI","14\"",1]
[null,"RTI Trust Technology Services  S.r.l.Superiore *81000Distribuzione Linux14\"","RTI Trust Technology Services  S.r.l.","Superiore *",8,1000,"Distribuzione Linux","SI","14\"",1]
[null,"RTI Trust Technology Services  S.r.l.Superiore *81000Windows 11 Pro Education14\"","RTI Trust Technology Services  S.r.l.","Superiore *",8,1000,"Windows 11 Pro Education","SI","14\"",1]
[null,"RTI Trust Technology Services  S.r.l.Superiore *81000Windows 11 Pro14\"","RTI Trust Technology Services  S.r.l.","Superiore *",8,1000,"Windows 11 Pro","SI","14\"",1]
[null,"RTI Trust Technology Services  S.r.l.Superiore *161000Distribuzione Linux14\"","RTI Trust Technology Services  S.r.l.","Superiore *",16,1000,"Distribuzione Linux","SI","14\"",1]
[null,"RTI Trust Technology Services  S.r.l.Superiore *161000Windows 11 Pro Education14\"","RTI Trust Technology Services  S.r.l.","Superiore *",16,1000,"Windows 11 Pro Education","SI","14\"",1]
[null,"RTI Trust Technology Services  S.r.l.Superiore *161000Windows 11 Pro14\"","RTI Trust Technology Services  S.r.l.","Superiore *",16,1000,"Windows 11 Pro","SI","14\"",1]
[null,"RTI Trust Technology Services  S.r.l.Media8512Distribuzione Linux13\"","RTI Trust Technology Services  S.r.l.","Media",8,512,"Distribuzione Linux","SI","13\"",1]
[null,"RTI Trust Technology Services  S.r.l.Media8512Windows 11 Pro Education13\"","RTI Trust Technology Services  S.r.l.","Media",8,512,"Windows 11 Pro Education","SI","13\"",1]
[null,"RTI Trust Technology Services  S.r.l.Media8512Windows 11 Pro13\"","RTI Trust Technology Services  S.r.l.","Media",8,512,"Windows 11 Pro","SI","13\"",1]
[null,"RTI Trust Technology Services  S.r.l.Media16512Distribuzione Linux13\"","RTI Trust Technology Services  S.r.l.","Media",16,512,"Distribuzione Linux","SI","13\"",1]
[null,"RTI Trust Technology Services  S.r.l.Media16512Windows 11 Pro Education13\"","RTI Trust Technology Services  S.r.l.","Media",16,512,"Windows 11 Pro Education","SI","13\"",1]
[null,"RTI Trust Technology Services  S.r.l.Media16512Windows 11 Pro13\"","RTI Trust Technology Services  S.r.l.","Media",16,512,"Windows 11 Pro","SI","13\"",1]
[null,"RTI Trust Technology Services  S.r.l.Media81000Distribuzione Linux13\"","RTI Trust Technology Services  S.r.l.","Media",8,1000,"Distribuzione Linux","SI","13\"",1]
[null,"RTI Trust Technology Services  S.r.l.Media81000Windows 11 Pro Education13\"","RTI Trust Technology Services  S.r.l.","Media",8,1000,"Windows 11 Pro Education","SI","13\"",1]
[null,"RTI Trust Technology Services  S.r.l.Media81000Windows 11 Pro13\"","RTI Trust Technology Services  S.r.l.","Media",8,1000,"Windows 11 Pro","SI","13\"",1]
[null,"RTI Trust Technology Services  S.r.l.Media161000Distribuzione Linux13\"","RTI Trust Technology Services  S.r.l.","Media",16,1000,"Distribuzione Linux","SI","13\"",1]
[null,"RTI Trust Technology Services  S.r.l.Media161000Windows 11 Pro Education13\"","RTI Trust Technology Services  S.r.l.","Media",16,1000,"Windows 11 Pro Education","SI","13\"",1]
[null,"RTI Trust Technology Services  S.r.l.Media161000Windows 11 Pro13\"","RTI Trust Technology Services  S.r.l.","Media",16,1000,"Windows 11 Pro","SI","13\"",1]
[null,"RTI Trust Technology Services  S.r.l.Superiore *8512Distribuzione Linux13\"","RTI Trust Technology Services  S.r.l.","Superiore *",8,512,"Distribuzione Linux","SI","13\"",1]
[null,"RTI Trust Technology Services  S.r.l.Superiore *8512Windows 11 Pro Education13\"","RTI Trust Technology Services  S.r.l.","Superiore *",8,512,"Windows 11 Pro Education","SI","13\"",1]
[null,"RTI Trust Technology Services  S.r.l.Superiore *8512Windows 11 Pro13\"","RTI Trust Technology Services  S.r.l.","Superiore *",8,512,"Windows 11 Pro","SI","13\"",1]
[null,"RTI Trust Technology Services  S.r.l.Superiore *16512Distribuzione Linux13\"","RTI Trust Technology Services  S.r.l.","Superiore *",16,512,"Distribuzione Linux","SI","13\"",1]
[null,"RTI Trust Technology Services  S.r.l.Superiore *16512Windows 11 Pro Education13\"","RTI Trust Technology Services  S.r.l.","Superiore *",16,512,"Windows 11 Pro Education","SI","13\"",1]
[null,"RTI Trust Technology Services  S.r.l.Superiore *16512Windows 11 Pro13\"","RTI Trust Technology Services  S.r.l.","Superiore *",16,512,"Windows 11 Pro","SI","13\"",1]
[null,"RTI Trust Technology Services  S.r.l.Superiore *81000Distribuzione Linux13\"","RTI Trust Technology Services  S.r.l.","Superiore *",8,1000,"Distribuzione Linux","SI","13\"",1]
[null,"RTI Trust Technology Services  S.r.l.Superiore *81000Windows 11 Pro Education13\"","RTI Trust Technology Services  S.r.l.","Superiore *",8,1000,"Windows 11 Pro Education","SI","13\"",1]
[null,"RTI Trust Technology Services  S.r.l.Superiore *81000Windows 11 Pro13\"","RTI Trust Technology Services  S.r.l.","Superiore *",8,1000,"Windows 11 Pro","SI","13\"",1]
[null,"RTI Trust Technology Services  S.r.l.Superiore *161000Distribuzione Linux13\"","RTI Trust Technology Services  S.r.l.","Superiore *",16,1000,"Distribuzione Linux","SI","13\"",1]
[null,"RTI Trust Technology Services  S.r.l.Superiore *161000Windows 11 Pro Education13\"","RTI Trust Technology Services  S.r.l.","Superiore *",16,1000,"Windows 11 Pro Education","SI","13\"",1]
[null,"RTI Trust Technology Services  S.r.l.Superiore *161000Windows 11 Pro13\"","RTI Trust Technology Services  S.r.l.","Superiore *",16,1000,"Windows 11 Pro","SI","13\"",1]
[null,"Sistemi Hardware & Software S.p.A.Media8512Distribuzione Linux15\"","Sistemi Hardware & Software S.p.A.","Media",8,512,"Distribuzione Linux","SI","15\"",1]
[null,{"$f":"C581&D581&E581&F581&G581&I581","v":"Sistemi Hardware & Software S.p.A.Media8512Windows 11 Pro Education15\""},"Sistemi Hardware & Software S.p.A.","Media",8,512,"Windows 11 Pro Education","SI","15\"",{"$f":"+IF(H581=\"NO\",0,1)","v":1}]
[null,"Sistemi Hardware & Software S.p.A.Media8512Windows 11 Pro15\"","Sistemi Hardware & Software S.p.A.","Media",8,512,"Windows 11 Pro","SI","15\"",1]
[null,"Sistemi Hardware & Software S.p.A.Media16512Distribuzione Linux15\"","Sistemi Hardware & Software S.p.A.","Media",16,512,"Distribuzione Linux","SI","15\"",1]
[null,"Sistemi Hardware & Software S.p.A.Media16512Windows 11 Pro Education15\"","Sistemi Hardware & Software S.p.A.","Media",16,512,"Windows 11 Pro Education","SI","15\"",1]
[null,"Sistemi Hardware & Software S.p.A.Media16512Windows 11 Pro15\"","Sistemi Hardware & Software S.p.A.","Media",16,512,"Windows 11 Pro","SI","15\"",1]
[null,"Sistemi Hardware & Software S.p.A.Media81000Distribuzione Linux15\"","Sistemi Hardware & Software S.p.A.","Media",8,1000,"Distribuzione Linux","SI","15\"",1]
[null,"Sistemi Hardware & Software S.p.A.Media81000Windows 11 Pro Education15\"","Sistemi Hardware & Software S.p.A.","Media",8,1000,"Windows 11 Pro Education","SI","15\"",1]
[null,"Sistemi Hardware & Software S.p.A.Media81000Windows 11 Pro15\"","Sistemi Hardware & Software S.p.A.","Media",8,1000,"Windows 11 Pro","SI","15\"",1]
[null,"Sistemi Hardware & Software S.p.A.Media161000Distribuzione Linux15\"","Sistemi Hardware & Software S.p.A.","Media",16,1000,"Distribuzione Linux","SI","15\"",1]
[null,"Sistemi Hardware & Software S.p.A.Media161000Windows 11 Pro Education15\"","Sistemi Hardware & Software S.p.A.","Media",16,1000,"Windows 11 Pro Education","SI","15\"",1]
[null,"Sistemi Hardware & Software S.p.A.Media161000Windows 11 Pro15\"","Sistemi Hardware & Software S.p.A.","Media",16,1000,"Windows 11 Pro","SI","15\"",1]
[null,"Sistemi Hardware & Software S.p.A.Superiore *8512Distribuzione Linux15\"","Sistemi Hardware & Software S.p.A.","Superiore *",8,512,"Distribuzione Linux","SI","15\"",1]
[null,"Sistemi Hardware & Software S.p.A.Superiore *8512Windows 11 Pro Education15\"","Sistemi Hardware & Software S.p.A.","Superiore *",8,512,"Windows 11 Pro Education","SI","15\"",1]
[null,"Sistemi Hardware & Software S.p.A.Superiore *8512Windows 11 Pro15\"","Sistemi Hardware & Software S.p.A.","Superiore *",8,512,"Windows 11 Pro","SI","15\"",1]
[null,"Sistemi Hardware & Software S.p.A.Superiore *16512Distribuzione Linux15\"","Sistemi Hardware & Software S.p.A.","Superiore *",16,512,"Distribuzione Linux","SI","15\"",1]
[null,"Sistemi Hardware & Software S.p.A.Superiore *16512Windows 11 Pro Education15\"","Sistemi Hardware & Software S.p.A.","Superiore *",16,512,"Windows 11 Pro Education","SI","15\"",1]
[null,"Sistemi Hardware & Software S.p.A.Superiore *16512Windows 11 Pro15\"","Sistemi Hardware & Software S.p.A.","Superiore *",16,512,"Windows 11 Pro","SI","15\"",1]
[null,"Sistemi Hardware & Software S.p.A.Superiore *81000Distribuzione Linux15\"","Sistemi Hardware & Software S.p.A.","Superiore *",8,1000,"Distribuzione Linux","SI","15\"",1]
[null,"Sistemi Hardware & Software S.p.A.Superiore *81000Windows 11 Pro Education15\"","Sistemi Hardware & Software S.p.A.","Superiore *",8,1000,"Windows 11 Pro Education","SI","15\"",1]
[null,"Sistemi Hardware & Software S.p.A.Superiore *81000Windows 11 Pro15\"","Sistemi Hardware & Software S.p.A.","Superiore *",8,1000,"Windows 11 Pro","SI","15\"",1]
[null,"Sistemi Hardware & Software S.p.A.Superiore *161000Distribuzione Linux15\"","Sistemi Hardware & Software S.p.A.","Superiore *",16,1000,"Distribuzione Linux","SI","15\"",1]
[null,"Sistemi Hardware & Software S.p.A.Superiore *161000Windows 11 Pro Education15\"","Sistemi Hardware & Software S.p.A.","Superiore *",16,1000,"Windows 11 Pro Education","SI","15\"",1]
[null,"Sistemi Hardware & Software S.p.A.Superiore *161000Windows 11 Pro15\"","Sistemi Hardware & Software S.p.A.","Superiore *",16,1000,"Windows 11 Pro","SI","15\"",1]
[null,"Sistemi Hardware & Software S.p.A.Media8512Distribuzione Linux14\"","Sistemi Hardware & Software S.p.A.","Media",8,512,"Distribuzione Linux","SI","14\"",1]
[null,"Sistemi Hardware & Software S.p.A.Media8512Windows 11 Pro Education14\"","Sistemi Hardware & Software S.p.A.","Media",8,512,"Windows 11 Pro Education","SI","14\"",1]
[null,"Sistemi Hardware & Software S.p.A.Media8512Windows 11 Pro14\"","Sistemi Hardware & Software S.p.A.","Media",8,512,"Windows 11 Pro","SI","14\"",1]
[null,"Sistemi Hardware & Software S.p.A.Media16512Distribuzione Linux14\"","Sistemi Hardware & Software S.p.A.","Media",16,512,"Distribuzione Linux","SI","14\"",1]
[null,"Sistemi Hardware & Software S.p.A.Media16512Windows 11 Pro Education14\"","Sistemi Hardware & Software S.p.A.","Media",16,512,"Windows 11 Pro Education","SI","14\"",1]
[null,"Sistemi Hardware & Software S.p.A.Media16512Windows 11 Pro14\"","Sistemi Hardware & Software S.p.A.","Media",16,512,"Windows 11 Pro","SI","14\"",1]
[null,"Sistemi Hardware & Software S.p.A.Media81000Distribuzione Linux14\"","Sistemi Hardware & Software S.p.A.","Media",8,1000,"Distribuzione Linux","SI","14\"",1]
[null,"Sistemi Hardware & Software S.p.A.Media81000Windows 11 Pro Education14\"","Sistemi Hardware & Software S.p.A.","Media",8,1000,"Windows 11 Pro Education","SI","14\"",1]
[null,"Sistemi Hardware & Software S.p.A.Media81000Windows 11 Pro14\"","Sistemi Hardware & Software S.p.A.","Media",8,1000,"Windows 11 Pro","SI","14\"",1]
[null,"Sistemi Hardware & Software S.p.A.Media161000Distribuzione Linux14\"","Sistemi Hardware & Software S.p.A.","Media",16,1000,"Distribuzione Linux","SI","14\"",1]
[null,"Sistemi Hardware & Software S.p.A.Media161000Windows 11 Pro Education14\"","Sistemi Hardware & Software S.p.A.","Media",16,1000,"Windows 11 Pro Education","SI","14\"",1]
[null,"Sistemi Hardware & Software S.p.A.Media161000Windows 11 Pro14\"","Sistemi Hardware & Software S.p.A.","Media",16,1000,"Windows 11 Pro","SI","14\"",1]
[null,"Sistemi Hardware & Software S.p.A.Superiore *8512Distribuzione Linux14\"","Sistemi Hardware & Software S.p.A.","Superiore *",8,512,"Distribuzione Linux","SI","14\"",1]
[null,"Sistemi Hardware & Software S.p.A.Superiore *8512Windows 11 Pro Education14\"","Sistemi Hardware & Software S.p.A.","Superiore *",8,512,"Windows 11 Pro Education","SI","14\"",1]
[null,"Sistemi Hardware & Software S.p.A.Superiore *8512Windows 11 Pro14\"","Sistemi Hardware & Software S.p.A.","Superiore *",8,512,"Windows 11 Pro","SI","14\"",1]
[null,"Sistemi Hardware & Software S.p.A.Superiore *16512Distribuzione Linux14\"","Sistemi Hardware & Software S.p.A.","Superiore *",16,512,"Distribuzione Linux","SI","14\"",1]
[null,"Sistemi Hardware & Software S.p.A.Superiore *16512Windows 11 Pro Education14\"","Sistemi Hardware & Software S.p.A.","Superiore *",16,512,"Windows 11 Pro Education","SI","14\"",1]
[null,"Sistemi Hardware & Software S.p.A.Superiore *16512Windows 11 Pro14\"","Sistemi Hardware & Software S.p.A.","Superiore *",16,512,"Windows 11 Pro","SI","14\"",1]
[null,"Sistemi Hardware & Software S.p.A.Superiore *81000Distribuzione Linux14\"","Sistemi Hardware & Software S.p.A.","Superiore *",8,1000,"Distribuzione Linux","SI","14\"",1]
[null,"Sistemi Hardware & Software S.p.A.Superiore *81000Windows 11 Pro Education14\"","Sistemi Hardware & Software S.p.A.","Superiore *",8,1000,"Windows 11 Pro Education","SI","14\"",1]
[null,"Sistemi Hardware & Software S.p.A.Superiore *81000Windows 11 Pro14\"","Sistemi Hardware & Software S.p.A.","Superiore *",8,1000,"Windows 11 Pro","SI","14\"",1]
[null,"Sistemi Hardware & Software S.p.A.Superiore *161000Distribuzione Linux14\"","Sistemi Hardware & Software S.p.A.","Superiore *",16,1000,"Distribuzione Linux","SI","14\"",1]
[null,"Sistemi Hardware & Software S.p.A.Superiore *161000Windows 11 Pro Education14\"","Sistemi Hardware & Software S.p.A.","Superiore *",16,1000,"Windows 11 Pro Education","SI","14\"",1]
[null,"Sistemi Hardware & Software S.p.A.Superiore *161000Windows 11 Pro14\"","Sistemi Hardware & Software S.p.A.","Superiore *",16,1000,"Windows 11 Pro","SI","14\"",1]
[null,"Sistemi Hardware & Software S.p.A.Media8512Distribuzione Linux13\"","Sistemi Hardware & Software S.p.A.","Media",8,512,"Distribuzione Linux","SI","13\"",1]
[null,"Sistemi Hardware & Software S.p.A.Media8512Windows 11 Pro Education13\"","Sistemi Hardware & Software S.p.A.","Media",8,512,"Windows 11 Pro Education","SI","13\"",1]
[null,"Sistemi Hardware & Software S.p.A.Media8512Windows 11 Pro13\"","Sistemi Hardware & Software S.p.A.","Media",8,512,"Windows 11 Pro","SI","13\"",1]
[null,"Sistemi Hardware & Software S.p.A.Media16512Distribuzione Linux13\"","Sistemi Hardware & Software S.p.A.","Media",16,512,"Distribuzione Linux","SI","13\"",1]
[null,"Sistemi Hardware & Software S.p.A.Media16512Windows 11 Pro Education13\"","Sistemi Hardware & Software S.p.A.","Media",16,512,"Windows 11 Pro Education","SI","13\"",1]
[null,"Sistemi Hardware & Software S.p.A.Media16512Windows 11 Pro13\"","Sistemi Hardware & Software S.p.A.","Media",16,512,"Windows 11 Pro","SI","13\"",1]
[null,"Sistemi Hardware & Software S.p.A.Media81000Distribuzione Linux13\"","Sistemi Hardware & Software S.p.A.","Media",8,1000,"Distribuzione Linux","SI","13\"",1]
[null,"Sistemi Hardware & Software S.p.A.Media81000Windows 11 Pro Education13\"","Sistemi Hardware & Software S.p.A.","Media",8,1000,"Windows 11 Pro Education","SI","13\"",1]
[null,"Sistemi Hardware & Software S.p.A.Media81000Windows 11 Pro13\"","Sistemi Hardware & Software S.p.A.","Media",8,1000,"Windows 11 Pro","SI","13\"",1]
[null,"Sistemi Hardware & Software S.p.A.Media161000Distribuzione Linux13\"","Sistemi Hardware & Software S.p.A.","Media",16,1000,"Distribuzione Linux","SI","13\"",1]
[null,"Sistemi Hardware & Software S.p.A.Media161000Windows 11 Pro Education13\"","Sistemi Hardware & Software S.p.A.","Media",16,1000,"Windows 11 Pro Education","SI","13\"",1]
[null,"Sistemi Hardware & Software S.p.A.Media161000Windows 11 Pro13\"","Sistemi Hardware & Software S.p.A.","Media",16,1000,"Windows 11 Pro","SI","13\"",1]
[null,"Sistemi Hardware & Software S.p.A.Superiore *8512Distribuzione Linux13\"","Sistemi Hardware & Software S.p.A.","Superiore *",8,512,"Distribuzione Linux","SI","13\"",1]
[null,"Sistemi Hardware & Software S.p.A.Superiore *8512Windows 11 Pro Education13\"","Sistemi Hardware & Software S.p.A.","Superiore *",8,512,"Windows 11 Pro Education","SI","13\"",1]
[null,"Sistemi Hardware & Software S.p.A.Superiore *8512Windows 11 Pro13\"","Sistemi Hardware & Software S.p.A.","Superiore *",8,512,"Windows 11 Pro","SI","13\"",1]
[null,"Sistemi Hardware & Software S.p.A.Superiore *16512Distribuzione Linux13\"","Sistemi Hardware & Software S.p.A.","Superiore *",16,512,"Distribuzione Linux","SI","13\"",1]
[null,"Sistemi Hardware & Software S.p.A.Superiore *16512Windows 11 Pro Education13\"","Sistemi Hardware & Software S.p.A.","Superiore *",16,512,"Windows 11 Pro Education","SI","13\"",1]
[null,{"$f":"C645&D645&E645&F645&G645&I645","v":"Sistemi Hardware & Software S.p.A.Superiore *16512Windows 11 Pro13\""},"Sistemi Hardware & Software S.p.A.","Superiore *",16,512,"Windows 11 Pro","SI","13\"",{"$f":"+IF(H645=\"NO\",0,1)","v":1}]
[null,"Sistemi Hardware & Software S.p.A.Superiore *81000Distribuzione Linux13\"","Sistemi Hardware & Software S.p.A.","Superiore *",8,1000,"Distribuzione Linux","SI","13\"",1]
[null,"Sistemi Hardware & Software S.p.A.Superiore *81000Windows 11 Pro Education13\"","Sistemi Hardware & Software S.p.A.","Superiore *",8,1000,"Windows 11 Pro Education","SI","13\"",1]
[null,"Sistemi Hardware & Software S.p.A.Superiore *81000Windows 11 Pro13\"","Sistemi Hardware & Software S.p.A.","Superiore *",8,1000,"Windows 11 Pro","SI","13\"",1]
[null,"Sistemi Hardware & Software S.p.A.Superiore *161000Distribuzione Linux13\"","Sistemi Hardware & Software S.p.A.","Superiore *",16,1000,"Distribuzione Linux","SI","13\"",1]
[null,"Sistemi Hardware & Software S.p.A.Superiore *161000Windows 11 Pro Education13\"","Sistemi Hardware & Software S.p.A.","Superiore *",16,1000,"Windows 11 Pro Education","SI","13\"",1]
[null,"Sistemi Hardware & Software S.p.A.Superiore *161000Windows 11 Pro13\"","Sistemi Hardware & Software S.p.A.","Superiore *",16,1000,"Windows 11 Pro","SI","13\"",1]
[null,"Team Memores Computer S.p.A.Media8512Distribuzione Linux15\"","Team Memores Computer S.p.A.","Media",8,512,"Distribuzione Linux","SI","15\"",1]
[null,"Team Memores Computer S.p.A.Media8512Windows 11 Pro Education15\"","Team Memores Computer S.p.A.","Media",8,512,"Windows 11 Pro Education","SI","15\"",1]
[null,"Team Memores Computer S.p.A.Media8512Windows 11 Pro15\"","Team Memores Computer S.p.A.","Media",8,512,"Windows 11 Pro","SI","15\"",1]
[null,"Team Memores Computer S.p.A.Media16512Distribuzione Linux15\"","Team Memores Computer S.p.A.","Media",16,512,"Distribuzione Linux","SI","15\"",1]
[null,"Team Memores Computer S.p.A.Media16512Windows 11 Pro Education15\"","Team Memores Computer S.p.A.","Media",16,512,"Windows 11 Pro Education","SI","15\"",1]
[null,"Team Memores Computer S.p.A.Media16512Windows 11 Pro15\"","Team Memores Computer S.p.A.","Media",16,512,"Windows 11 Pro","SI","15\"",1]
[null,"Team Memores Computer S.p.A.Media81000Distribuzione Linux15\"","Team Memores Computer S.p.A.","Media",8,1000,"Distribuzione Linux","SI","15\"",1]
[null,"Team Memores Computer S.p.A.Media81000Windows 11 Pro Education15\"","Team Memores Computer S.p.A.","Media",8,1000,"Windows 11 Pro Education","SI","15\"",1]
[null,"Team Memores Computer S.p.A.Media81000Windows 11 Pro15\"","Team Memores Computer S.p.A.","Media",8,1000,"Windows 11 Pro","SI","15\"",1]
[null,"Team Memores Computer S.p.A.Media161000Distribuzione Linux15\"","Team Memores Computer S.p.A.","Media",16,1000,"Distribuzione Linux","SI","15\"",1]
[null,"Team Memores Computer S.p.A.Media161000Windows 11 Pro Education15\"","Team Memores Computer S.p.A.","Media",16,1000,"Windows 11 Pro Education","SI","15\"",1]
[null,"Team Memores Computer S.p.A.Media161000Windows 11 Pro15\"","Team Memores Computer S.p.A.","Media",16,1000,"Windows 11 Pro","SI","15\"",1]
[null,"Team Memores Computer S.p.A.Superiore *8512Distribuzione Linux15\"","Team Memores Computer S.p.A.","Superiore *",8,512,"Distribuzione Linux","SI","15\"",1]
[null,"Team Memores Computer S.p.A.Superiore *8512Windows 11 Pro Education15\"","Team Memores Computer S.p.A.","Superiore *",8,512,"Windows 11 Pro Education","NO","15\"",0]
[null,"Team Memores Computer S.p.A.Superiore *8512Windows 11 Pro15\"","Team Memores Computer S.p.A.","Superiore *",8,512,"Windows 11 Pro","SI","15\"",1]
[null,"Team Memores Computer S.p.A.Superiore *16512Distribuzione Linux15\"","Team Memores Computer S.p.A.","Superiore *",16,512,"Distribuzione Linux","SI","15\"",1]
[null,"Team Memores Computer S.p.A.Superiore *16512Windows 11 Pro Education15\"","Team Memores Computer S.p.A.","Superiore *",16,512,"Windows 11 Pro Education","NO","15\"",0]
[null,"Team Memores Computer S.p.A.Superiore *16512Windows 11 Pro15\"","Team Memores Computer S.p.A.","Superiore *",16,512,"Windows 11 Pro","SI","15\"",1]
[null,"Team Memores Computer S.p.A.Superiore *81000Distribuzione Linux15\"","Team Memores Computer S.p.A.","Superiore *",8,1000,"Distribuzione Linux","SI","15\"",1]
[null,"Team Memores Computer S.p.A.Superiore *81000Windows 11 Pro Education15\"","Team Memores Computer S.p.A.","Superiore *",8,1000,"Windows 11 Pro Education","NO","15\"",0]
[null,"Team Memores Computer S.p.A.Superiore *81000Windows 11 Pro15\"","Team Memores Computer S.p.A.","Superiore *",8,1000,"Windows 11 Pro","SI","15\"",1]
[null,"Team Memores Computer S.p.A.Superiore *161000Distribuzione Linux15\"","Team Memores Computer S.p.A.","Superiore *",16,1000,"Distribuzione Linux","SI","15\"",1]
[null,"Team Memores Computer S.p.A.Superiore *161000Windows 11 Pro Education15\"","Team Memores Computer S.p.A.","Superiore *",16,1000,"Windows 11 Pro Education","NO","15\"",0]
[null,"Team Memores Computer S.p.A.Superiore *161000Windows 11 Pro15\"","Team Memores Computer S.p.A.","Superiore *",16,1000,"Windows 11 Pro","SI","15\"",1]
[null,"Team Memores Computer S.p.A.Media8512Distribuzione Linux14\"","Team Memores Computer S.p.A.","Media",8,512,"Distribuzione Linux","SI","14\"",1]
[null,"Team Memores Computer S.p.A.Media8512Windows 11 Pro Education14\"","Team Memores Computer S.p.A.","Media",8,512,"Windows 11 Pro Education","SI","14\"",1]
[null,"Team Memores Computer S.p.A.Media8512Windows 11 Pro14\"","Team Memores Computer S.p.A.","Media",8,512,"Windows 11 Pro","SI","14\"",1]
[null,"Team Memores Computer S.p.A.Media16512Distribuzione Linux14\"","Team Memores Computer S.p.A.","Media",16,512,"Distribuzione Linux","SI","14\"",1]
[null,"Team Memores Computer S.p.A.Media16512Windows 11 Pro Education14\"","Team Memores Computer S.p.A.","Media",16,512,"Windows 11 Pro Education","SI","14\"",1]
[null,"Team Memores Computer S.p.A.Media16512Windows 11 Pro14\"","Team Memores Computer S.p.A.","Media",16,512,"Windows 11 Pro","SI","14\"",1]
[null,"Team Memores Computer S.p.A.Media81000Distribuzione Linux14\"","Team Memores Computer S.p.A.","Media",8,1000,"Distribuzione Linux","SI","14\"",1]
[null,"Team Memores Computer S.p.A.Media81000Windows 11 Pro Education14\"","Team Memores Computer S.p.A.","Media",8,1000,"Windows 11 Pro Education","SI","14\"",1]
[null,"Team Memores Computer S.p.A.Media81000Windows 11 Pro14\"","Team Memores Computer S.p.A.","Media",8,1000,"Windows 11 Pro","SI","14\"",1]
[null,"Team Memores Computer S.p.A.Media161000Distribuzione Linux14\"","Team Memores Computer S.p.A.","Media",16,1000,"Distribuzione Linux","SI","14\"",1]
[null,"Team Memores Computer S.p.A.Media161000Windows 11 Pro Education14\"","Team Memores Computer S.p.A.","Media",16,1000,"Windows 11 Pro Education","SI","14\"",1]
[null,"Team Memores Computer S.p.A.Media161000Windows 11 Pro14\"","Team Memores Computer S.p.A.","Media",16,1000,"Windows 11 Pro","SI","14\"",1]
[null,"Team Memores Computer S.p.A.Superiore *8512Distribuzione Linux14\"","Team Memores Computer S.p.A.","Superiore *",8,512,"Distribuzione Linux","SI","14\"",1]
[null,"Team Memores Computer S.p.A.Superiore *8512Windows 11 Pro Education14\"","Team Memores Computer S.p.A.","Superiore *",8,512,"Windows 11 Pro Education","NO","14\"",0]
[null,"Team Memores Computer S.p.A.Superiore *8512Windows 11 Pro14\"","Team Memores Computer S.p.A.","Superiore *",8,512,"Windows 11 Pro","SI","14\"",1]
[null,"Team Memores Computer S.p.A.Superiore *16512Distribuzione Linux14\"","Team Memores Computer S.p.A.","Superiore *",16,512,"Distribuzione Linux","SI","14\"",1]
[null,"Team Memores Computer S.p.A.Superiore *16512Windows 11 Pro Education14\"","Team Memores Computer S.p.A.","Superiore *",16,512,"Windows 11 Pro Education","NO","14\"",0]
[null,"Team Memores Computer S.p.A.Superiore *16512Windows 11 Pro14\"","Team Memores Computer S.p.A.","Superiore *",16,512,"Windows 11 Pro","SI","14\"",1]
[null,"Team Memores Computer S.p.A.Superiore *81000Distribuzione Linux14\"","Team Memores Computer S.p.A.","Superiore *",8,1000,"Distribuzione Linux","SI","14\"",1]
[null,"Team Memores Computer S.p.A.Superiore *81000Windows 11 Pro Education14\"","Team Memores Computer S.p.A.","Superiore *",8,1000,"Windows 11 Pro Education","NO","14\"",0]
[null,"Team Memores Computer S.p.A.Superiore *81000Windows 11 Pro14\"","Team Memores Computer S.p.A.","Superiore *",8,1000,"Windows 11 Pro","SI","14\"",1]
[null,"Team Memores Computer S.p.A.Superiore *161000Distribuzione Linux14\"","Team Memores Computer S.p.A.","Superiore *",16,1000,"Distribuzione Linux","SI","14\"",1]
[null,"Team Memores Computer S.p.A.Superiore *161000Windows 11 Pro Education14\"","Team Memores Computer S.p.A.","Superiore *",16,1000,"Windows 11 Pro Education","NO","14\"",0]
[null,"Team Memores Computer S.p.A.Superiore *161000Windows 11 Pro14\"","Team Memores Computer S.p.A.","Superiore *",16,1000,"Windows 11 Pro","SI","14\"",1]
[null,"Team Memores Computer S.p.A.Media8512Distribuzione Linux13\"","Team Memores Computer S.p.A.","Media",8,512,"Distribuzione Linux","SI","13\"",1]
[null,"Team Memores Computer S.p.A.Media8512Windows 11 Pro Education13\"","Team Memores Computer S.p.A.","Media",8,512,"Windows 11 Pro Education","SI","13\"",1]
[null,"Team Memores Computer S.p.A.Media8512Windows 11 Pro13\"","Team Memores Computer S.p.A.","Media",8,512,"Windows 11 Pro","SI","13\"",1]
[null,"Team Memores Computer S.p.A.Media16512Distribuzione Linux13\"","Team Memores Computer S.p.A.","Media",16,512,"Distribuzione Linux","SI","13\"",1]
[null,"Team Memores Computer S.p.A.Media16512Windows 11 Pro Education13\"","Team Memores Computer S.p.A.","Media",16,512,"Windows 11 Pro Education","SI","13\"",1]
[null,"Team Memores Computer S.p.A.Media16512Windows 11 Pro13\"","Team Memores Computer S.p.A.","Media",16,512,"Windows 11 Pro","SI","13\"",1]
[null,"Team Memores Computer S.p.A.Media81000Distribuzione Linux13\"","Team Memores Computer S.p.A.","Media",8,1000,"Distribuzione Linux","SI","13\"",1]
[null,"Team Memores Computer S.p.A.Media81000Windows 11 Pro Education13\"","Team Memores Computer S.p.A.","Media",8,1000,"Windows 11 Pro Education","SI","13\"",1]
[null,"Team Memores Computer S.p.A.Media81000Windows 11 Pro13\"","Team Memores Computer S.p.A.","Media",8,1000,"Windows 11 Pro","SI","13\"",1]
[null,{"$f":"C709&D709&E709&F709&G709&I709","v":"Team Memores Computer S.p.A.Media161000Distribuzione Linux13\""},"Team Memores Computer S.p.A.","Media",16,1000,"Distribuzione Linux","SI","13\"",{"$f":"+IF(H709=\"NO\",0,1)","v":1}]
[null,"Team Memores Computer S.p.A.Media161000Windows 11 Pro Education13\"","Team Memores Computer S.p.A.","Media",16,1000,"Windows 11 Pro Education","SI","13\"",1]
[null,"Team Memores Computer S.p.A.Media161000Windows 11 Pro13\"","Team Memores Computer S.p.A.","Media",16,1000,"Windows 11 Pro","SI","13\"",1]
[null,"Team Memores Computer S.p.A.Superiore *8512Distribuzione Linux13\"","Team Memores Computer S.p.A.","Superiore *",8,512,"Distribuzione Linux","SI","13\"",1]
[null,"Team Memores Computer S.p.A.Superiore *8512Windows 11 Pro Education13\"","Team Memores Computer S.p.A.","Superiore *",8,512,"Windows 11 Pro Education","NO","13\"",0]
[null,"Team Memores Computer S.p.A.Superiore *8512Windows 11 Pro13\"","Team Memores Computer S.p.A.","Superiore *",8,512,"Windows 11 Pro","SI","13\"",1]
[null,"Team Memores Computer S.p.A.Superiore *16512Distribuzione Linux13\"","Team Memores Computer S.p.A.","Superiore *",16,512,"Distribuzione Linux","SI","13\"",1]
[null,"Team Memores Computer S.p.A.Superiore *16512Windows 11 Pro Education13\"","Team Memores Computer S.p.A.","Superiore *",16,512,"Windows 11 Pro Education","NO","13\"",0]
[null,"Team Memores Computer S.p.A.Superiore *16512Windows 11 Pro13\"","Team Memores Computer S.p.A.","Superiore *",16,512,"Windows 11 Pro","SI","13\"",1]
[null,"Team Memores Computer S.p.A.Superiore *81000Distribuzione Linux13\"","Team Memores Computer S.p.A.","Superiore *",8,1000,"Distribuzione Linux","SI","13\"",1]
[null,"Team Memores Computer S.p.A.Superiore *81000Windows 11 Pro Education13\"","Team Memores Computer S.p.A.","Superiore *",8,1000,"Windows 11 Pro Education","NO","13\"",0]
[null,"Team Memores Computer S.p.A.Superiore *81000Windows 11 Pro13\"","Team Memores Computer S.p.A.","Superiore *",8,1000,"Windows 11 Pro","SI","13\"",1]
[null,"Team Memores Computer S.p.A.Superiore *161000Distribuzione Linux13\"","Team Memores Computer S.p.A.","Superiore *",16,1000,"Distribuzione Linux","SI","13\"",1]
[null,"Team Memores Computer S.p.A.Superiore *161000Windows 11 Pro Education13\"","Team Memores Computer S.p.A.","Superiore *",16,1000,"Windows 11 Pro Education","NO","13\"",0]
[null,"Team Memores Computer S.p.A.Superiore *161000Windows 11 Pro13\"","Team Memores Computer S.p.A.","Superiore *",16,1000,"Windows 11 Pro","SI","13\"",1]
[null,"Wetech’s S.p.A.Media8512Distribuzione Linux15\"","Wetech’s S.p.A.","Media",8,512,"Distribuzione Linux","SI","15\"",1]
[null,"Wetech’s S.p.A.Media8512Windows 11 Pro Education15\"","Wetech’s S.p.A.","Media",8,512,"Windows 11 Pro Education","SI","15\"",1]
[null,"Wetech’s S.p.A.Media8512Windows 11 Pro15\"","Wetech’s S.p.A.","Media",8,512,"Windows 11 Pro","SI","15\"",1]
[null,"Wetech’s S.p.A.Media16512Distribuzione Linux15\"","Wetech’s S.p.A.","Media",16,512,"Distribuzione Linux","SI","15\"",1]
[null,"Wetech’s S.p.A.Media16512Windows 11 Pro Education15\"","Wetech’s S.p.A.","Media",16,512,"Windows 11 Pro Education","SI","15\"",1]
[null,"Wetech’s S.p.A.Media16512Windows 11 Pro15\"","Wetech’s S.p.A.","Media",16,512,"Windows 11 Pro","SI","15\"",1]
[null,"Wetech’s S.p.A.Media81000Distribuzione Linux15\"","Wetech’s S.p.A.","Media",8,1000,"Distribuzione Linux","SI","15\"",1]
[null,"Wetech’s S.p.A.Media81000Windows 11 Pro Education15\"","Wetech’s S.p.A.","Media",8,1000,"Windows 11 Pro Education","SI","15\"",1]
[null,"Wetech’s S.p.A.Media81000Windows 11 Pro15\"","Wetech’s S.p.A.","Media",8,1000,"Windows 11 Pro","SI","15\"",1]
[null,"Wetech’s S.p.A.Media161000Distribuzione Linux15\"","Wetech’s S.p.A.","Media",16,1000,"Distribuzione Linux","SI","15\"",1]
[null,"Wetech’s S.p.A.Media161000Windows 11 Pro Education15\"","Wetech’s S.p.A.","Media",16,1000,"Windows 11 Pro Education","SI","15\"",1]
[null,"Wetech’s S.p.A.Media161000Windows 11 Pro15\"","Wetech’s S.p.A.","Media",16,1000,"Windows 11 Pro","SI","15\"",1]
[null,"Wetech’s S.p.A.Superiore *8512Distribuzione Linux15\"","Wetech’s S.p.A.","Superiore *",8,512,"Distribuzione Linux","SI","15\"",1]
[null,"Wetech’s S.p.A.Superiore *8512Windows 11 Pro Education15\"","Wetech’s S.p.A.","Superiore *",8,512,"Windows 11 Pro Education","SI","15\"",1]
[null,"Wetech’s S.p.A.Superiore *8512Windows 11 Pro15\"","Wetech’s S.p.A.","Superiore *",8,512,"Windows 11 Pro","SI","15\"",1]
[null,"Wetech’s S.p.A.Superiore *16512Distribuzione Linux15\"","Wetech’s S.p.A.","Superiore *",16,512,"Distribuzione Linux","SI","15\"",1]
[null,"Wetech’s S.p.A.Superiore *16512Windows 11 Pro Education15\"","Wetech’s S.p.A.","Superiore *",16,512,"Windows 11 Pro Education","SI","15\"",1]
[null,"Wetech’s S.p.A.Superiore *16512Windows 11 Pro15\"","Wetech’s S.p.A.","Superiore *",16,512,"Windows 11 Pro","SI","15\"",1]
[null,"Wetech’s S.p.A.Superiore *81000Distribuzione Linux15\"","Wetech’s S.p.A.","Superiore *",8,1000,"Distribuzione Linux","SI","15\"",1]
[null,"Wetech’s S.p.A.Superiore *81000Windows 11 Pro Education15\"","Wetech’s S.p.A.","Superiore *",8,1000,"Windows 11 Pro Education","SI","15\"",1]
[null,"Wetech’s S.p.A.Superiore *81000Windows 11 Pro15\"","Wetech’s S.p.A.","Superiore *",8,1000,"Windows 11 Pro","SI","15\"",1]
[null,"Wetech’s S.p.A.Superiore *161000Distribuzione Linux15\"","Wetech’s S.p.A.","Superiore *",16,1000,"Distribuzione Linux","SI","15\"",1]
[null,"Wetech’s S.p.A.Superiore *161000Windows 11 Pro Education15\"","Wetech’s S.p.A.","Superiore *",16,1000,"Windows 11 Pro Education","SI","15\"",1]
[null,"Wetech’s S.p.A.Superiore *161000Windows 11 Pro15\"","Wetech’s S.p.A.","Superiore *",16,1000,"Windows 11 Pro","SI","15\"",1]
[null,"Wetech’s S.p.A.Media8512Distribuzione Linux14\"","Wetech’s S.p.A.","Media",8,512,"Distribuzione Linux","SI","14\"",1]
[null,"Wetech’s S.p.A.Media8512Windows 11 Pro Education14\"","Wetech’s S.p.A.","Media",8,512,"Windows 11 Pro Education","SI","14\"",1]
[null,"Wetech’s S.p.A.Media8512Windows 11 Pro14\"","Wetech’s S.p.A.","Media",8,512,"Windows 11 Pro","SI","14\"",1]
[null,"Wetech’s S.p.A.Media16512Distribuzione Linux14\"","Wetech’s S.p.A.","Media",16,512,"Distribuzione Linux","SI","14\"",1]
[null,"Wetech’s S.p.A.Media16512Windows 11 Pro Education14\"","Wetech’s S.p.A.","Media",16,512,"Windows 11 Pro Education","SI","14\"",1]
[null,"Wetech’s S.p.A.Media16512Windows 11 Pro14\"","Wetech’s S.p.A.","Media",16,512,"Windows 11 Pro","SI","14\"",1]
[null,"Wetech’s S.p.A.Media81000Distribuzione Linux14\"","Wetech’s S.p.A.","Media",8,1000,"Distribuzione Linux","SI","14\"",1]
[null,"Wetech’s S.p.A.Media81000Windows 11 Pro Education14\"","Wetech’s S.p.A.","Media",8,1000,"Windows 11 Pro Education","SI","14\"",1]
[null,"Wetech’s S.p.A.Media81000Windows 11 Pro14\"","Wetech’s S.p.A.","Media",8,1000,"Windows 11 Pro","SI","14\"",1]
[null,"Wetech’s S.p.A.Media161000Distribuzione Linux14\"","Wetech’s S.p.A.","Media",16,1000,"Distribuzione Linux","SI","14\"",1]
[null,"Wetech’s S.p.A.Media161000Windows 11 Pro Education14\"","Wetech’s S.p.A.","Media",16,1000,"Windows 11 Pro Education","SI","14\"",1]
[null,"Wetech’s S.p.A.Media161000Windows 11 Pro14\"","Wetech’s S.p.A.","Media",16,1000,"Windows 11 Pro","SI","14\"",1]
[null,"Wetech’s S.p.A.Superiore *8512Distribuzione Linux14\"","Wetech’s S.p.A.","Superiore *",8,512,"Distribuzione Linux","SI","14\"",1]
[null,"Wetech’s S.p.A.Superiore *8512Windows 11 Pro Education14\"","Wetech’s S.p.A.","Superiore *",8,512,"Windows 11 Pro Education","SI","14\"",1]
[null,"Wetech’s S.p.A.Superiore *8512Windows 11 Pro14\"","Wetech’s S.p.A.","Superiore *",8,512,"Windows 11 Pro","SI","14\"",1]
[null,"Wetech’s S.p.A.Superiore *16512Distribuzione Linux14\"","Wetech’s S.p.A.","Superiore *",16,512,"Distribuzione Linux","SI","14\"",1]
[null,"Wetech’s S.p.A.Superiore *16512Windows 11 Pro Education14\"","Wetech’s S.p.A.","Superiore *",16,512,"Windows 11 Pro Education","SI","14\"",1]
[null,"Wetech’s S.p.A.Superiore *16512Windows 11 Pro14\"","Wetech’s S.p.A.","Superiore *",16,512,"Windows 11 Pro","SI","14\"",1]
[null,"Wetech’s S.p.A.Superiore *81000Distribuzione Linux14\"","Wetech’s S.p.A.","Superiore *",8,1000,"Distribuzione Linux","SI","14\"",1]
[null,"Wetech’s S.p.A.Superiore *81000Windows 11 Pro Education14\"","Wetech’s S.p.A.","Superiore *",8,1000,"Windows 11 Pro Education","SI","14\"",1]
[null,"Wetech’s S.p.A.Superiore *81000Windows 11 Pro14\"","Wetech’s S.p.A.","Superiore *",8,1000,"Windows 11 Pro","SI","14\"",1]
[null,"Wetech’s S.p.A.Superiore *161000Distribuzione Linux14\"","Wetech’s S.p.A.","Superiore *",16,1000,"Distribuzione Linux","SI","14\"",1]
[null,"Wetech’s S.p.A.Superiore *161000Windows 11 Pro Education14\"","Wetech’s S.p.A.","Superiore *",16,1000,"Windows 11 Pro Education","SI","14\"",1]
[null,"Wetech’s S.p.A.Superiore *161000Windows 11 Pro14\"","Wetech’s S.p.A.","Superiore *",16,1000,"Windows 11 Pro","SI","14\"",1]
[null,"Wetech’s S.p.A.Media8512Distribuzione Linux13\"","Wetech’s S.p.A.","Media",8,512,"Distribuzione Linux","SI","13\"",1]
[null,{"$f":"C773&D773&E773&F773&G773&I773","v":"Wetech’s S.p.A.Media8512Windows 11 Pro Education13\""},"Wetech’s S.p.A.","Media",8,512,"Windows 11 Pro Education","SI","13\"",{"$f":"+IF(H773=\"NO\",0,1)","v":1}]
[null,"Wetech’s S.p.A.Media8512Windows 11 Pro13\"","Wetech’s S.p.A.","Media",8,512,"Windows 11 Pro","SI","13\"",1]
[null,"Wetech’s S.p.A.Media16512Distribuzione Linux13\"","Wetech’s S.p.A.","Media",16,512,"Distribuzione Linux","SI","13\"",1]
[null,"Wetech’s S.p.A.Media16512Windows 11 Pro Education13\"","Wetech’s S.p.A.","Media",16,512,"Windows 11 Pro Education","SI","13\"",1]
[null,"Wetech’s S.p.A.Media16512Windows 11 Pro13\"","Wetech’s S.p.A.","Media",16,512,"Windows 11 Pro","SI","13\"",1]
[null,"Wetech’s S.p.A.Media81000Distribuzione Linux13\"","Wetech’s S.p.A.","Media",8,1000,"Distribuzione Linux","SI","13\"",1]
[null,"Wetech’s S.p.A.Media81000Windows 11 Pro Education13\"","Wetech’s S.p.A.","Media",8,1000,"Windows 11 Pro Education","SI","13\"",1]
[null,"Wetech’s S.p.A.Media81000Windows 11 Pro13\"","Wetech’s S.p.A.","Media",8,1000,"Windows 11 Pro","SI","13\"",1]
[null,"Wetech’s S.p.A.Media161000Distribuzione Linux13\"","Wetech’s S.p.A.","Media",16,1000,"Distribuzione Linux","SI","13\"",1]
[null,"Wetech’s S.p.A.Media161000Windows 11 Pro Education13\"","Wetech’s S.p.A.","Media",16,1000,"Windows 11 Pro Education","SI","13\"",1]
[null,"Wetech’s S.p.A.Media161000Windows 11 Pro13\"","Wetech’s S.p.A.","Media",16,1000,"Windows 11 Pro","SI","13\"",1]
[null,"Wetech’s S.p.A.Superiore *8512Distribuzione Linux13\"","Wetech’s S.p.A.","Superiore *",8,512,"Distribuzione Linux","SI","13\"",1]
[null,"Wetech’s S.p.A.Superiore *8512Windows 11 Pro Education13\"","Wetech’s S.p.A.","Superiore *",8,512,"Windows 11 Pro Education","SI","13\"",1]
[null,"Wetech’s S.p.A.Superiore *8512Windows 11 Pro13\"","Wetech’s S.p.A.","Superiore *",8,512,"Windows 11 Pro","SI","13\"",1]
[null,"Wetech’s S.p.A.Superiore *16512Distribuzione Linux13\"","Wetech’s S.p.A.","Superiore *",16,512,"Distribuzione Linux","SI","13\"",1]
[null,"Wetech’s S.p.A.Superiore *16512Windows 11 Pro Education13\"","Wetech’s S.p.A.","Superiore *",16,512,"Windows 11 Pro Education","SI","13\"",1]
[null,"Wetech’s S.p.A.Superiore *16512Windows 11 Pro13\"","Wetech’s S.p.A.","Superiore *",16,512,"Windows 11 Pro","SI","13\"",1]
[null,"Wetech’s S.p.A.Superiore *81000Distribuzione Linux13\"","Wetech’s S.p.A.","Superiore *",8,1000,"Distribuzione Linux","SI","13\"",1]
[null,"Wetech’s S.p.A.Superiore *81000Windows 11 Pro Education13\"","Wetech’s S.p.A.","Superiore *",8,1000,"Windows 11 Pro Education","SI","13\"",1]
[null,"Wetech’s S.p.A.Superiore *81000Windows 11 Pro13\"","Wetech’s S.p.A.","Superiore *",8,1000,"Windows 11 Pro","SI","13\"",1]
[null,"Wetech’s S.p.A.Superiore *161000Distribuzione Linux13\"","Wetech’s S.p.A.","Superiore *",16,1000,"Distribuzione Linux","SI","13\"",1]
[null,"Wetech’s S.p.A.Superiore *161000Windows 11 Pro Education13\"","Wetech’s S.p.A.","Superiore *",16,1000,"Windows 11 Pro Education","SI","13\"",1]
[null,"Wetech’s S.p.A.Superiore *161000Windows 11 Pro13\"","Wetech’s S.p.A.","Superiore *",16,1000,"Windows 11 Pro","SI","13\"",1]
[null,"Zucchetti Informatica S.p.A.Media8512Distribuzione Linux15\"","Zucchetti Informatica S.p.A.","Media",8,512,"Distribuzione Linux","SI","15\"",1]
[null,"Zucchetti Informatica S.p.A.Media8512Windows 11 Pro Education15\"","Zucchetti Informatica S.p.A.","Media",8,512,"Windows 11 Pro Education","SI","15\"",1]
[null,"Zucchetti Informatica S.p.A.Media8512Windows 11 Pro15\"","Zucchetti Informatica S.p.A.","Media",8,512,"Windows 11 Pro","SI","15\"",1]
[null,"Zucchetti Informatica S.p.A.Media16512Distribuzione Linux15\"","Zucchetti Informatica S.p.A.","Media",16,512,"Distribuzione Linux","SI","15\"",1]
[null,"Zucchetti Informatica S.p.A.Media16512Windows 11 Pro Education15\"","Zucchetti Informatica S.p.A.","Media",16,512,"Windows 11 Pro Education","SI","15\"",1]
[null,"Zucchetti Informatica S.p.A.Media16512Windows 11 Pro15\"","Zucchetti Informatica S.p.A.","Media",16,512,"Windows 11 Pro","SI","15\"",1]
[null,"Zucchetti Informatica S.p.A.Media81000Distribuzione Linux15\"","Zucchetti Informatica S.p.A.","Media",8,1000,"Distribuzione Linux","SI","15\"",1]
[null,"Zucchetti Informatica S.p.A.Media81000Windows 11 Pro Education15\"","Zucchetti Informatica S.p.A.","Media",8,1000,"Windows 11 Pro Education","SI","15\"",1]
[null,"Zucchetti Informatica S.p.A.Media81000Windows 11 Pro15\"","Zucchetti Informatica S.p.A.","Media",8,1000,"Windows 11 Pro","SI","15\"",1]
[null,"Zucchetti Informatica S.p.A.Media161000Distribuzione Linux15\"","Zucchetti Informatica S.p.A.","Media",16,1000,"Distribuzione Linux","SI","15\"",1]
[null,"Zucchetti Informatica S.p.A.Media161000Windows 11 Pro Education15\"","Zucchetti Informatica S.p.A.","Media",16,1000,"Windows 11 Pro Education","SI","15\"",1]
[null,"Zucchetti Informatica S.p.A.Media161000Windows 11 Pro15\"","Zucchetti Informatica S.p.A.","Media",16,1000,"Windows 11 Pro","SI","15\"",1]
[null,"Zucchetti Informatica S.p.A.Superiore *8512Distribuzione Linux15\"","Zucchetti Informatica S.p.A.","Superiore *",8,512,"Distribuzione Linux","SI","15\"",1]
[null,"Zucchetti Informatica S.p.A.Superiore *8512Windows 11 Pro Education15\"","Zucchetti Informatica S.p.A.","Superiore *",8,512,"Windows 11 Pro Education","SI","15\"",1]
[null,"Zucchetti Informatica S.p.A.Superiore *8512Windows 11 Pro15\"","Zucchetti Informatica S.p.A.","Superiore *",8,512,"Windows 11 Pro","SI","15\"",1]
[null,"Zucchetti Informatica S.p.A.Superiore *16512Distribuzione Linux15\"","Zucchetti Informatica S.p.A.","Superiore *",16,512,"Distribuzione Linux","SI","15\"",1]
[null,"Zucchetti Informatica S.p.A.Superiore *16512Windows 11 Pro Education15\"","Zucchetti Informatica S.p.A.","Superiore *",16,512,"Windows 11 Pro Education","SI","15\"",1]
[null,"Zucchetti Informatica S.p.A.Superiore *16512Windows 11 Pro15\"","Zucchetti Informatica S.p.A.","Superiore *",16,512,"Windows 11 Pro","SI","15\"",1]
[null,"Zucchetti Informatica S.p.A.Superiore *81000Distribuzione Linux15\"","Zucchetti Informatica S.p.A.","Superiore *",8,1000,"Distribuzione Linux","SI","15\"",1]
[null,"Zucchetti Informatica S.p.A.Superiore *81000Windows 11 Pro Education15\"","Zucchetti Informatica S.p.A.","Superiore *",8,1000,"Windows 11 Pro Education","SI","15\"",1]
[null,"Zucchetti Informatica S.p.A.Superiore *81000Windows 11 Pro15\"","Zucchetti Informatica S.p.A.","Superiore *",8,1000,"Windows 11 Pro","SI","15\"",1]
[null,"Zucchetti Informatica S.p.A.Superiore *161000Distribuzione Linux15\"","Zucchetti Informatica S.p.A.","Superiore *",16,1000,"Distribuzione Linux","SI","15\"",1]
[null,"Zucchetti Informatica S.p.A.Superiore *161000Windows 11 Pro Education15\"","Zucchetti Informatica S.p.A.","Superiore *",16,1000,"Windows 11 Pro Education","SI","15\"",1]
[null,"Zucchetti Informatica S.p.A.Superiore *161000Windows 11 Pro15\"","Zucchetti Informatica S.p.A.","Superiore *",16,1000,"Windows 11 Pro","SI","15\"",1]
[null,"Zucchetti Informatica S.p.A.Media8512Distribuzione Linux14\"","Zucchetti Informatica S.p.A.","Media",8,512,"Distribuzione Linux","SI","14\"",1]
[null,"Zucchetti Informatica S.p.A.Media8512Windows 11 Pro Education14\"","Zucchetti Informatica S.p.A.","Media",8,512,"Windows 11 Pro Education","SI","14\"",1]
[null,"Zucchetti Informatica S.p.A.Media8512Windows 11 Pro14\"","Zucchetti Informatica S.p.A.","Media",8,512,"Windows 11 Pro","SI","14\"",1]
[null,"Zucchetti Informatica S.p.A.Media16512Distribuzione Linux14\"","Zucchetti Informatica S.p.A.","Media",16,512,"Distribuzione Linux","SI","14\"",1]
[null,"Zucchetti Informatica S.p.A.Media16512Windows 11 Pro Education14\"","Zucchetti Informatica S.p.A.","Media",16,512,"Windows 11 Pro Education","SI","14\"",1]
[null,"Zucchetti Informatica S.p.A.Media16512Windows 11 Pro14\"","Zucchetti Informatica S.p.A.","Media",16,512,"Windows 11 Pro","SI","14\"",1]
[null,"Zucchetti Informatica S.p.A.Media81000Distribuzione Linux14\"","Zucchetti Informatica S.p.A.","Media",8,1000,"Distribuzione Linux","SI","14\"",1]
[null,"Zucchetti Informatica S.p.A.Media81000Windows 11 Pro Education14\"","Zucchetti Informatica S.p.A.","Media",8,1000,"Windows 11 Pro Education","SI","14\"",1]
[null,"Zucchetti Informatica S.p.A.Media81000Windows 11 Pro14\"","Zucchetti Informatica S.p.A.","Media",8,1000,"Windows 11 Pro","SI","14\"",1]
[null,"Zucchetti Informatica S.p.A.Media161000Distribuzione Linux14\"","Zucchetti Informatica S.p.A.","Media",16,1000,"Distribuzione Linux","SI","14\"",1]
[null,"Zucchetti Informatica S.p.A.Media161000Windows 11 Pro Education14\"","Zucchetti Informatica S.p.A.","Media",16,1000,"Windows 11 Pro Education","SI","14\"",1]
[null,"Zucchetti Informatica S.p.A.Media161000Windows 11 Pro14\"","Zucchetti Informatica S.p.A.","Media",16,1000,"Windows 11 Pro","SI","14\"",1]
[null,"Zucchetti Informatica S.p.A.Superiore *8512Distribuzione Linux14\"","Zucchetti Informatica S.p.A.","Superiore *",8,512,"Distribuzione Linux","SI","14\"",1]
[null,"Zucchetti Informatica S.p.A.Superiore *8512Windows 11 Pro Education14\"","Zucchetti Informatica S.p.A.","Superiore *",8,512,"Windows 11 Pro Education","SI","14\"",1]
[null,"Zucchetti Informatica S.p.A.Superiore *8512Windows 11 Pro14\"","Zucchetti Informatica S.p.A.","Superiore *",8,512,"Windows 11 Pro","SI","14\"",1]
[null,"Zucchetti Informatica S.p.A.Superiore *16512Distribuzione Linux14\"","Zucchetti Informatica S.p.A.","Superiore *",16,512,"Distribuzione Linux","SI","14\"",1]
[null,"Zucchetti Informatica S.p.A.Superiore *16512Windows 11 Pro Education14\"","Zucchetti Informatica S.p.A.","Superiore *",16,512,"Windows 11 Pro Education","SI","14\"",1]
[null,{"$f":"C837&D837&E837&F837&G837&I837","v":"Zucchetti Informatica S.p.A.Superiore *16512Windows 11 Pro14\""},"Zucchetti Informatica S.p.A.","Superiore *",16,512,"Windows 11 Pro","SI","14\"",{"$f":"+IF(H837=\"NO\",0,1)","v":1}]
[null,"Zucchetti Informatica S.p.A.Superiore *81000Distribuzione Linux14\"","Zucchetti Informatica S.p.A.","Superiore *",8,1000,"Distribuzione Linux","SI","14\"",1]
[null,"Zucchetti Informatica S.p.A.Superiore *81000Windows 11 Pro Education14\"","Zucchetti Informatica S.p.A.","Superiore *",8,1000,"Windows 11 Pro Education","SI","14\"",1]
[null,"Zucchetti Informatica S.p.A.Superiore *81000Windows 11 Pro14\"","Zucchetti Informatica S.p.A.","Superiore *",8,1000,"Windows 11 Pro","SI","14\"",1]
[null,"Zucchetti Informatica S.p.A.Superiore *161000Distribuzione Linux14\"","Zucchetti Informatica S.p.A.","Superiore *",16,1000,"Distribuzione Linux","SI","14\"",1]
[null,"Zucchetti Informatica S.p.A.Superiore *161000Windows 11 Pro Education14\"","Zucchetti Informatica S.p.A.","Superiore *",16,1000,"Windows 11 Pro Education","SI","14\"",1]
[null,"Zucchetti Informatica S.p.A.Superiore *161000Windows 11 Pro14\"","Zucchetti Informatica S.p.A.","Superiore *",16,1000,"Windows 11 Pro","SI","14\"",1]
[null,"Zucchetti Informatica S.p.A.Media8512Distribuzione Linux13\"","Zucchetti Informatica S.p.A.","Media",8,512,"Distribuzione Linux","SI","13\"",1]
[null,"Zucchetti Informatica S.p.A.Media8512Windows 11 Pro Education13\"","Zucchetti Informatica S.p.A.","Media",8,512,"Windows 11 Pro Education","SI","13\"",1]
[null,"Zucchetti Informatica S.p.A.Media8512Windows 11 Pro13\"","Zucchetti Informatica S.p.A.","Media",8,512,"Windows 11 Pro","SI","13\"",1]
[null,"Zucchetti Informatica S.p.A.Media16512Distribuzione Linux13\"","Zucchetti Informatica S.p.A.","Media",16,512,"Distribuzione Linux","SI","13\"",1]
[null,"Zucchetti Informatica S.p.A.Media16512Windows 11 Pro Education13\"","Zucchetti Informatica S.p.A.","Media",16,512,"Windows 11 Pro Education","SI","13\"",1]
[null,"Zucchetti Informatica S.p.A.Media16512Windows 11 Pro13\"","Zucchetti Informatica S.p.A.","Media",16,512,"Windows 11 Pro","SI","13\"",1]
[null,"Zucchetti Informatica S.p.A.Media81000Distribuzione Linux13\"","Zucchetti Informatica S.p.A.","Media",8,1000,"Distribuzione Linux","SI","13\"",1]
[null,"Zucchetti Informatica S.p.A.Media81000Windows 11 Pro Education13\"","Zucchetti Informatica S.p.A.","Media",8,1000,"Windows 11 Pro Education","SI","13\"",1]
[null,"Zucchetti Informatica S.p.A.Media81000Windows 11 Pro13\"","Zucchetti Informatica S.p.A.","Media",8,1000,"Windows 11 Pro","SI","13\"",1]
[null,"Zucchetti Informatica S.p.A.Media161000Distribuzione Linux13\"","Zucchetti Informatica S.p.A.","Media",16,1000,"Distribuzione Linux","SI","13\"",1]
[null,"Zucchetti Informatica S.p.A.Media161000Windows 11 Pro Education13\"","Zucchetti Informatica S.p.A.","Media",16,1000,"Windows 11 Pro Education","SI","13\"",1]
[null,"Zucchetti Informatica S.p.A.Media161000Windows 11 Pro13\"","Zucchetti Informatica S.p.A.","Media",16,1000,"Windows 11 Pro","SI","13\"",1]
[null,"Zucchetti Informatica S.p.A.Superiore *8512Distribuzione Linux13\"","Zucchetti Informatica S.p.A.","Superiore *",8,512,"Distribuzione Linux","SI","13\"",1]
[null,"Zucchetti Informatica S.p.A.Superiore *8512Windows 11 Pro Education13\"","Zucchetti Informatica S.p.A.","Superiore *",8,512,"Windows 11 Pro Education","SI","13\"",1]
[null,"Zucchetti Informatica S.p.A.Superiore *8512Windows 11 Pro13\"","Zucchetti Informatica S.p.A.","Superiore *",8,512,"Windows 11 Pro","SI","13\"",1]
[null,"Zucchetti Informatica S.p.A.Superiore *16512Distribuzione Linux13\"","Zucchetti Informatica S.p.A.","Superiore *",16,512,"Distribuzione Linux","SI","13\"",1]
[null,"Zucchetti Informatica S.p.A.Superiore *16512Windows 11 Pro Education13\"","Zucchetti Informatica S.p.A.","Superiore *",16,512,"Windows 11 Pro Education","SI","13\"",1]
[null,"Zucchetti Informatica S.p.A.Superiore *16512Windows 11 Pro13\"","Zucchetti Informatica S.p.A.","Superiore *",16,512,"Windows 11 Pro","SI","13\"",1]
[null,"Zucchetti Informatica S.p.A.Superiore *81000Distribuzione Linux13\"","Zucchetti Informatica S.p.A.","Superiore *",8,1000,"Distribuzione Linux","SI","13\"",1]
[null,"Zucchetti Informatica S.p.A.Superiore *81000Windows 11 Pro Education13\"","Zucchetti Informatica S.p.A.","Superiore *",8,1000,"Windows 11 Pro Education","SI","13\"",1]
[null,"Zucchetti Informatica S.p.A.Superiore *81000Windows 11 Pro13\"","Zucchetti Informatica S.p.A.","Superiore *",8,1000,"Windows 11 Pro","SI","13\"",1]
[null,"Zucchetti Informatica S.p.A.Superiore *161000Distribuzione Linux13\"","Zucchetti Informatica S.p.A.","Superiore *",16,1000,"Distribuzione Linux","SI","13\"",1]
[null,"Zucchetti Informatica S.p.A.Superiore *161000Windows 11 Pro Education13\"","Zucchetti Informatica S.p.A.","Superiore *",16,1000,"Windows 11 Pro Education","SI","13\"",1]
[null,"Zucchetti Informatica S.p.A.Superiore *161000Windows 11 Pro13\"","Zucchetti Informatica S.p.A.","Superiore *",16,1000,"Windows 11 Pro","SI","13\"",1]

{"sheet":"Contatti_Fornitori","index":7,"n_rows":14,"n_cols":5,"rows_kept":14,"cut":false,"hidden":true,"merged":[]}
[]
[null,"OE","Nome e Cognome","e-mail","Tel"]
[null,"Bellucci S.p.A.","Roberto Santarelli","rsantarelli@gruppobellucci.it"]
[null,"Bsistemi S.p.A.","Stefania Scappaticci"," s.scappaticci@bsistemi.com"]
[null,"Converge S.r.l.","Massimo Tosti","m.tosti@converge.it"]
[null,"Eurome S.r.l.","Giorgio Marinelli","gestioneAQ@eurome.it"]
[null,"Hitech Distribuzione Informatica S.r.l.","Walter Pistone","w.pistone@htdi.it"]
[null,"ITD Solutions S.p.A.","Francesca Colozza","francesca.colozza@digitalvalue.it"]
[null,"Posdata S.r.l.","Andrea Calibani","andrea.calibani@posdata.it"]
[null,"RTI Trust Technology Services  S.r.l.","Nicola Belloni","ufficiogare@tt-services.it"]
[null,"Sistemi Hardware & Software S.p.A."," Ilaria Lotti","i.lotti@sistemihs.it"]
[null,"Team Memores Computer S.p.A.","Daniele Palazzina","palazzina@teammemores.it"]
[null,"Wetech’s S.p.A.","Luca Garavaglia","luca.garavaglia@wetechs.it"]
[null,"Zucchetti Informatica S.p.A.","Walter Crosignani","walter.crosignani@zucchetti.it"]

{"sheet":"Ana","index":8,"n_rows":16,"n_cols":22,"rows_kept":16,"cut":false,"hidden":true,"merged":[]}
["Prodotto_Princip","Sosten_Amb","CPU","RAM",null,"SSD",null,"Sist_Operat",null,"Sì/No","Sì/No/StessoProd","Monitor","Num","Scheda_Graf","Display","EspRAM","EspSSD",null,"Monitor",null,"Tendine","Valori"]
["15\"","Nessuna certificazione","Media",8,8,512,512,"Distribuzione Linux","Distribuzione Linux","No","No","No",2,"Integrata","HD",16,512,null,"No",null,8,8]
["14\"","Etichetta ISO di tipo I (UNI EN ISO 14024)","Superiore *","16 *",16,"1000 *",1000,"Windows 11 Pro *","Windows 11 Pro","Sì *","Sì *","Sì, da 23.6” *",3,"Discreta *","FHD *",32,1024,null,"Sì, da 23.6” *",null,"16 *",16]
["13\"","Certificazione TCO",null,null,null,null,null,"Windows 11 Pro Education *","Windows 11 Pro Education",null,"Sì, dello stesso produttore del PC *","Sì, da 27” *",4,null,null,64,null,null,"Sì, da 27” *",null,"Low","Low"]
[null,null,null,null,null,null,null,null,null,null,null,"Sì, da 23.6” dello stesso produttore del PC *",5,null,null,128,null,null,"Sì, da 23.6” dello stesso produttore del PC *",null,"Mid *","Mid"]
[null,null,null,null,null,null,null,null,null,null,null,"Sì, da 27” dello stesso produttore del PC *",null,null,null,null,null,null,"Sì, da 27” dello stesso produttore del PC *",null,"High *","High"]
[null,null,null,null,null,null,null,null,null,null,null,null,null,null,null,null,null,null,null,null,256,256]
[null,null,null,null,null,null,null,null,null,null,null,null,null,null,null,null,null,null,null,null,"512 *",512]
[null,null,null,null,null,null,null,null,null,null,null,null,null,null,null,null,null,null,null,null,"Distribuzione Linux","Distribuzione Linux"]
[null,null,null,null,null,null,null,null,null,null,null,null,null,null,null,null,null,null,null,null,"Windows 11 Pro *","Windows 11 Pro"]
[null,null,null,null,null,null,null,null,null,null,null,null,null,null,null,null,null,null,null,null,"Windows 11 Pro Education *","Windows 11 Pro Education"]
[null,null,null,null,null,null,null,null,null,null,null,null,null,null,null,null,null,null,null,null,"HD","HD"]
[null,null,null,null,null,null,null,null,null,null,null,null,null,null,null,null,null,null,null,null,"FHD *","FHD"]
[null,null,null,null,null,null,null,null,null,null,null,null,null,null,null,null,null,null,null,null,"Nessuna certificazione","NO"]
[null,null,null,null,null,null,null,null,null,null,null,null,null,null,null,null,null,null,null,null,"Etichetta ISO di tipo I (UNI EN ISO 14024)","NO"]
[null,null,null,null,null,null,null,null,null,null,null,null,null,null,null,null,null,null,null,null,"Certificazione TCO","SI"]